Workbook

Sheet INGRESO DE DATOS
O2: 24 years | P2: FALSE
O4: Descuento 24 años (por edad)
O5: age | P5: Discount (%) | Q5: Parameter | S5: Type | T5: Nuevo Negocio | V5: Región | W5: 2
O6: 24 | P6: 35 | Q6: =1-P6/100 -> 0.65 | T6: Renovación | W6: 3
O7: 25 | P7: 30 | Q7: =1-P7/100 -> 0.7 | W7: 4
O8: 26 | P8: 25 | Q8: 0.75 | W8: 5
O9: 27 | P9: 20 | Q9: 0.8 | W9: 6
O10: 28 | P10: 15 | Q10: 0.85 | W10: 8
O11: 29 | P11: 6 | Q11: 0.94 | W11: 9
O12: All ages | P12: 0 | Q12: 1 | W12: Perú (Pólizas: 2020)
S13: Type selected | T13: 2 | V13: Selección | W13: 1
V14: Región | W14: =IF(W13=1,2,IF(W13=2,3,IF(W13=3,4,IF(W13=4,5,IF(W13=4,5,IF(W13=5,6,IF(W13=6,8,IF(W13=7,9,IF(W13=8,"PERU2020"))))))))) -> 2
O19: Descuento de 24 años: | P19: =IF(P2,_xlfn.SWITCH(C42,O6,Q6,O7,Q7,O8,Q8,O9,Q9,O10,Q10,O11,Q11,Q12),Q12) -> 1
O24: Descuento por variante de coaseguro | P24: N/A
O30: Descuento si es nuevo negocio (ENTRADA MANUAL)
O32: NEW BUSINESS DISCOUNT
O33: Critical | P33: Exclusive | Q33: Privilege | R33: Advantage | S33: Secure | T33: Essential
O34: 0 | P34: 0 | Q34: 0 | R34: 0 | S34: 0 | T34: 0
A36: Nombre del Asegurado principal: | C36: John Doe
O37: Descuento combinado 24 años + Nuevo Negocio o Roneovaciones
A38: Número de adultos en la póliza: | C38: 2
A40: Número de hijos en la póliza: | C40: 2 | O40: TOTAL DISCOUNT
O41: Critical | P41: Exclusive | Q41: Privilege | R41: Advantage | S41: Secure | T41: Essential
A42: Edad del titular: | C42: 32 | O42: =1*$P$19 -> 1 | P42: =IF($T$13=1,IF($W$14="PERU2020", (1-O51)*$P$19,(1-P34)*$P$19),1*$P$19) -> 1 | Q42: =IF($T$13=1,IF($W$14="PERU2020", (1-O54)*$P$19,(1-Q34)*$P$19),1*$P$19) -> 1 | R42: =IF($T$13=1,IF($W$14="PERU2020", (1-O57)*$P$19,(1-R34)*$P$19),1*$P$19) -> 1 | S42: =IF($T$13=1,IF($W$14="PERU2020", (1-O60)*$P$19,(1-S34)*$P$19),1*$P$19) -> 1 | T42: =IF($T$13=1,IF($W$14="PERU2020", (1-O63)*$P$19,(1-T34)*$P$19),1*$P$19) -> 1
A44: Edad de cónyuge: | C44: 46
A47: Nombre de la Agencia : | C47: Agencia
O48: DISCOUNT PERU 2020
O50: EXCLUSIVE CARE
O51: 0.51
O53: PRIVILEGE CARE
O54: 0.51
O56: ADVANTAGE CARE
O57: 0.47
O59: SECURE CARE
O60: 0.54
O62: ESSENTIAL CARE
O63: 0.54

Sheet Bupa Exclusive Care
N1: RESUMEN DE BENEFICIOS | AB1: RESUMEN DE BENEFICIOS
G2: FALSE | H2: FALSE
A5: Cotización de Seguro Médico Internacional Bupa Exclusive Care Tarifas en US$ | Validas: 1 de enero de 2026 | L5: REGIÓN
L7: =IF('INGRESO DE DATOS'!W14="PERU2020","Perú",'INGRESO DE DATOS'!W14) -> 2
A13: Nombre del asegurado principal: | G13: =+'INGRESO DE DATOS'!$C$36 -> John Doe
A15: Broker/Agente | G15: =+'INGRESO DE DATOS'!$C$47 -> Agencia
B17: Número de Adultos en la Póliza | G17: =+'INGRESO DE DATOS'!$C$38 -> 2 | J17: Dependientes (menores de 24 años) | L17: =+'INGRESO DE DATOS'!$C$40 -> 2
J18: =IF('INGRESO DE DATOS'!$P$2=TRUE, "Cotización para dependiente de 24 años","") -> 
B19: Edad del Titular | G19: =+'INGRESO DE DATOS'!$C$42 -> 32 | J19: Edad del Cónyuge | L19: =+'INGRESO DE DATOS'!$C$44 -> 46
J21: Fecha de Cotización: | K21: =NOW() -> 2025-11-19T09:24:18.530
F29: DEDUCIBLES | G29: PLAN 1 | H29: PLAN 2 | I29: PLAN 3 | J29: PLAN 4 | K29: PLAN 5 | L29: PLAN 6
F30: Dentro del pais de residencia | G30: n/a | H30: 1000 | I30: 2000 | J30: 5000 | K30: 10000 | L30: 20000
F31: Fuera del pais de residencia | G31: n/a | H31: 2000 | I31: 3000 | J31: 5000 | K31: 10000 | L31: 20000
F34: TARIFAS ANUALES
F35: Prima de Titular | G35: n/a | H35: =VLOOKUP($G$19,Tablas!$A$9:$H$32,4,TRUE) -> 35641 | I35: =VLOOKUP($G$19,Tablas!$A$9:$H$32,5,TRUE) -> 25576 | J35: =VLOOKUP($G$19,Tablas!$A$9:$H$32,6,TRUE) -> 17391 | K35: =VLOOKUP($G$19,Tablas!$A$9:$H$32,7,TRUE) -> 11902 | L35: =VLOOKUP($G$19,Tablas!$A$9:$H$32,8,TRUE) -> 9379
F36: Prima de Cónyuge | G36: n/a | H36: =IF($G$17=1,0,(VLOOKUP($L$19,Tablas!$A$9:$H$32,4,TRUE))) -> 51738 | I36: =IF($G$17=1,0,(VLOOKUP($L$19,Tablas!$A$9:$H$32,5,TRUE))) -> 35032 | J36: =IF($G$17=1,0,(VLOOKUP($L$19,Tablas!$A$9:$H$32,6,TRUE))) -> 24197 | K36: =IF($G$17=1,0,(VLOOKUP($L$19,Tablas!$A$9:$H$32,7,TRUE))) -> 16420 | L36: =IF($G$17=1,0,(VLOOKUP($L$19,Tablas!$A$9:$H$32,8,TRUE))) -> 12928
F37: Primas Hijos | G37: n/a | H37: =IF($L$17=0,0,(VLOOKUP($L$17,Tablas!$A$33:$H$35,4,TRUE))) -> 18066 | I37: =IF($L$17=0,0,(VLOOKUP($L$17,Tablas!$A$33:$H$35,5,TRUE))) -> 13326 | J37: =IF($L$17=0,0,(VLOOKUP($L$17,Tablas!$A$33:$H$35,6,TRUE))) -> 9993 | K37: =IF($L$17=0,0,(VLOOKUP($L$17,Tablas!$A$33:$H$35,7,TRUE))) -> 7581 | L37: =IF($L$17=0,0,(VLOOKUP($L$17,Tablas!$A$33:$H$35,8,TRUE))) -> 5894
F38: Rider: Complicaciones de Maternidad | G38: n/a | H38: =+IF($G$2=FALSE,0,Tablas!D$36) -> 0 | I38: =+IF($G$2=FALSE,0,Tablas!E$36) -> 0 | J38: =+IF($G$2=FALSE,0,Tablas!F$36) -> 0 | K38: =+IF($G$2=FALSE,0,Tablas!G$36) -> 0 | L38: =+IF($G$2=FALSE,0,Tablas!H$36) -> 0
F39: TOTAL PRIMA NETA | G39: n/a | H39: =SUM(H35:H38) -> 105445 | I39: =SUM(I35:I38) -> 73934 | J39: =SUM(J35:J38) -> 51581 | K39: =SUM(K35:K38) -> 35903 | L39: =SUM(L35:L38) -> 28201
F40: Costo Administrativo Anual | G40: n/a | H40: 75 | I40: 75 | J40: 75 | K40: 75 | L40: 75
F41: GRAN TOTAL: | G41: n/a | H41: =SUM(H39:H40) -> 105520 | I41: =SUM(I39:I40) -> 74009 | J41: =SUM(J39:J40) -> 51656 | K41: =SUM(K39:K40) -> 35978 | L41: =SUM(L39:L40) -> 28276
F44: TARIFAS SEMESTRALES
F45: Prima de Titular | G45: n/a | H45: =VLOOKUP($G$19,Tablas!$A$44:$H$67,4,TRUE) -> 18889.73 | I45: =VLOOKUP($G$19,Tablas!$A$44:$H$67,5,TRUE) -> 13555.28 | J45: =VLOOKUP($G$19,Tablas!$A$44:$H$67,6,TRUE) -> 9217.23 | K45: =VLOOKUP($G$19,Tablas!$A$44:$H$67,7,TRUE) -> 6308.06 | L45: =VLOOKUP($G$19,Tablas!$A$44:$H$67,8,TRUE) -> 4970.87
F46: Prima de Cónyuge | G46: n/a | H46: =IF($G$17=1,0,(VLOOKUP($L$19,Tablas!$A$44:$H$67,4,TRUE))) -> 27421.14 | I46: =IF($G$17=1,0,(VLOOKUP($L$19,Tablas!$A$44:$H$67,5,TRUE))) -> 18566.96 | J46: =IF($G$17=1,0,(VLOOKUP($L$19,Tablas!$A$44:$H$67,6,TRUE))) -> 12824.41 | K46: =IF($G$17=1,0,(VLOOKUP($L$19,Tablas!$A$44:$H$67,7,TRUE))) -> 8702.6 | L46: =IF($G$17=1,0,(VLOOKUP($L$19,Tablas!$A$44:$H$67,8,TRUE))) -> 6851.84
F47: Primas Hijos | G47: n/a | H47: =IF($L$17=0,0,(VLOOKUP($L$17,Tablas!$A$68:$H$70,4,TRUE))) -> 9574.98 | I47: =IF($L$17=0,0,(VLOOKUP($L$17,Tablas!$A$68:$H$70,5,TRUE))) -> 7062.78 | J47: =IF($L$17=0,0,(VLOOKUP($L$17,Tablas!$A$68:$H$70,6,TRUE))) -> 5296.29 | K47: =IF($L$17=0,0,(VLOOKUP($L$17,Tablas!$A$68:$H$70,7,TRUE))) -> 4017.93 | L47: =IF($L$17=0,0,(VLOOKUP($L$17,Tablas!$A$68:$H$70,8,TRUE))) -> 3123.82
F48: Rider: Complicación de Maternidad | G48: n/a | H48: =+IF($G$2=FALSE,0,Tablas!D$71) -> 0 | I48: =+IF($G$2=FALSE,0,Tablas!E$71) -> 0 | J48: =+IF($G$2=FALSE,0,Tablas!F$71) -> 0 | K48: =+IF($G$2=FALSE,0,Tablas!G$71) -> 0 | L48: =+IF($G$2=FALSE,0,Tablas!H$71) -> 0
F49: TOTAL PRIMA NETA | G49: n/a | H49: =SUM(H45:H48) -> 55885.85 | I49: =SUM(I45:I48) -> 39185.02 | J49: =SUM(J45:J48) -> 27337.93 | K49: =SUM(K45:K48) -> 19028.59 | L49: =SUM(L45:L48) -> 14946.53
F50: Costo Administrativo Anual | G50: n/a | H50: 75 | I50: 75 | J50: 75 | K50: 75 | L50: 75
F51: TOTAL (1ra Cuota) | G51: n/a | H51: =SUM(H49:H50) -> 55960.85 | I51: =SUM(I49:I50) -> 39260.02 | J51: =SUM(J49:J50) -> 27412.93 | K51: =SUM(K49:K50) -> 19103.59 | L51: =SUM(L49:L50) -> 15021.53
F52: TOTAL (2da Cuota) | G52: n/a | H52: =H49 -> 55885.85 | I52: =I49 -> 39185.02 | J52: 27337.93 | K52: 19028.59 | L52: 14946.53
F53: GRAN TOTAL | G53: n/a | H53: =SUM(H51:H52) -> 111846.7 | I53: =SUM(I51:I52) -> 78445.04 | J53: 54750.86 | K53: 38132.18 | L53: 29968.06
F55: Este presupuesto solamente tiene carácter informativo y en ningún momento expresa compromiso legal para suministrarle cobertura de seguro. La emisión de una póliza de seguro Bupa está sujeta a todas las evaluaciones de riesgo por parte de Bupa y a la recepción de todos los pagos de prima requeridos.

Sheet Bupa Privilege Care
N1: RESUMEN DE BENEFICIOS | AB1: RESUMEN DE BENEFICIOS
G2: FALSE
F5: Cotización de Seguro Médico Internacional Bupa Privilege Care Tarifas en US$ | Validas: 1 de enero de 2026 | L5: REGIÓN
L7: =IF('INGRESO DE DATOS'!W14="PERU2020","Perú",'INGRESO DE DATOS'!W14) -> 2
F13: Nombre del asegurado principal | G13: =+'INGRESO DE DATOS'!$C$36 -> John Doe
F15: Broker/Agente | G15: =+'INGRESO DE DATOS'!$C$47 -> Agencia
F17: Número de Adultos en la Póliza | G17: =+'INGRESO DE DATOS'!$C$38 -> 2 | I17: Dependientes (menores de 24 años) | L17: =+'INGRESO DE DATOS'!$C$40 -> 2
I18: =IF('INGRESO DE DATOS'!$P$2=TRUE, "Cotización para dependiente de 24 años","") -> 
F19: Edad del Titular | G19: =+'INGRESO DE DATOS'!$C$42 -> 32 | I19: Edad del Cónyuge | L19: =+'INGRESO DE DATOS'!$C$44 -> 46
I21: Fecha de Cotización: | K21: =NOW() -> 2025-11-19T09:24:18.530
F25: DEDUCIBLES | G25: PLAN 1 | H25: PLAN 2 | I25: PLAN 3 | J25: PLAN 4 | K25: PLAN 5 | L25: PLAN 6
F26: Dentro del pais de residencia | G26: n/a | H26: 1000 | I26: 2000 | J26: 5000 | K26: 10000 | L26: 20000
F27: Fuera del pais de residencia | G27: n/a | H27: 2000 | I27: 3000 | J27: 5000 | K27: 10000 | L27: 20000
F30: TARIFAS ANUALES
F31: Prima de Titular | G31: n/a | H31: =VLOOKUP($G$19,Tablas!$A$152:$H$175,4,TRUE) -> 30078 | I31: =VLOOKUP($G$19,Tablas!$A$152:$H$175,5,TRUE) -> 22355 | J31: =VLOOKUP($G$19,Tablas!$A$152:$H$175,6,TRUE) -> 15156 | K31: =VLOOKUP($G$19,Tablas!$A$152:$H$175,7,TRUE) -> 10446 | L31: =VLOOKUP($G$19,Tablas!$A$152:$H$175,8,TRUE) -> 7967
F32: Prima de Cónyuge | G32: n/a | H32: =IF($G$17=1,0,(VLOOKUP($L$19,Tablas!$A$152:$H$175,4,TRUE))) -> 43582 | I32: =IF($G$17=1,0,(VLOOKUP($L$19,Tablas!$A$152:$H$175,5,TRUE))) -> 30666 | J32: =IF($G$17=1,0,(VLOOKUP($L$19,Tablas!$A$152:$H$175,6,TRUE))) -> 21117 | K32: =IF($G$17=1,0,(VLOOKUP($L$19,Tablas!$A$152:$H$175,7,TRUE))) -> 14418 | L32: =IF($G$17=1,0,(VLOOKUP($L$19,Tablas!$A$152:$H$175,8,TRUE))) -> 11015
F33: Primas Hijos | G33: n/a | H33: =IF($L$17=0,0,(VLOOKUP($L$17,Tablas!$A$176:$H$178,4,TRUE))) -> 15159 | I33: =IF($L$17=0,0,(VLOOKUP($L$17,Tablas!$A$176:$H$178,5,TRUE))) -> 11087 | J33: =IF($L$17=0,0,(VLOOKUP($L$17,Tablas!$A$176:$H$178,6,TRUE))) -> 7893 | K33: =IF($L$17=0,0,(VLOOKUP($L$17,Tablas!$A$176:$H$178,7,TRUE))) -> 5979 | L33: =IF($L$17=0,0,(VLOOKUP($L$17,Tablas!$A$176:$H$178,8,TRUE))) -> 4438
F34: Rider: Complicaciones de Maternidad | G34: n/a | H34: =+IF($G$2=FALSE,0,Tablas!D$179) -> 0 | I34: =+IF($G$2=FALSE,0,Tablas!E$179) -> 0 | J34: =+IF($G$2=FALSE,0,Tablas!F$179) -> 0 | K34: =+IF($G$2=FALSE,0,Tablas!G$179) -> 0 | L34: =+IF($G$2=FALSE,0,Tablas!H$179) -> 0
F35: TOTAL PRIMA NETA | G35: n/a | H35: =SUM(H31:H34) -> 88819 | I35: =SUM(I31:I34) -> 64108 | J35: =SUM(J31:J34) -> 44166 | K35: =SUM(K31:K34) -> 30843 | L35: =SUM(L31:L34) -> 23420
F36: Costo Administrativo Anual | G36: n/a | H36: 75 | I36: 75 | J36: 75 | K36: 75 | L36: 75
F37: GRAN TOTAL | G37: n/a | H37: =SUM(H35:H36) -> 88894 | I37: =SUM(I35:I36) -> 64183 | J37: =SUM(J35:J36) -> 44241 | K37: =SUM(K35:K36) -> 30918 | L37: =SUM(L35:L36) -> 23495
F40: TARIFAS SEMESTRALES
F41: Prima de Titular | G41: n/a | H41: =VLOOKUP($G$19,Tablas!$A$187:$H$210,4,TRUE) -> 15941.34 | I41: =VLOOKUP($G$19,Tablas!$A$187:$H$210,5,TRUE) -> 11848.15 | J41: =VLOOKUP($G$19,Tablas!$A$187:$H$210,6,TRUE) -> 8032.68 | K41: =VLOOKUP($G$19,Tablas!$A$187:$H$210,7,TRUE) -> 5536.38 | L41: =VLOOKUP($G$19,Tablas!$A$187:$H$210,8,TRUE) -> 4222.51
F42: Prima de Cónyuge | G42: n/a | H42: =IF($G$17=1,0,(VLOOKUP($L$19,Tablas!$A$187:$H$210,4,TRUE))) -> 23098.46 | I42: =IF($G$17=1,0,(VLOOKUP($L$19,Tablas!$A$187:$H$210,5,TRUE))) -> 16252.98 | J42: =IF($G$17=1,0,(VLOOKUP($L$19,Tablas!$A$187:$H$210,6,TRUE))) -> 11192.01 | K42: =IF($G$17=1,0,(VLOOKUP($L$19,Tablas!$A$187:$H$210,7,TRUE))) -> 7641.54 | L42: =IF($G$17=1,0,(VLOOKUP($L$19,Tablas!$A$187:$H$210,8,TRUE))) -> 5837.95
F43: Primas Hijos | G43: n/a | H43: =IF($L$17=0,0,(VLOOKUP($L$17,Tablas!$A$211:$H$213,4,TRUE))) -> 8034.27 | I43: =IF($L$17=0,0,(VLOOKUP($L$17,Tablas!$A$211:$H$213,5,TRUE))) -> 5876.11 | J43: =IF($L$17=0,0,(VLOOKUP($L$17,Tablas!$A$211:$H$213,6,TRUE))) -> 4183.29 | K43: =IF($L$17=0,0,(VLOOKUP($L$17,Tablas!$A$211:$H$213,7,TRUE))) -> 3168.87 | L43: =IF($L$17=0,0,(VLOOKUP($L$17,Tablas!$A$211:$H$213,8,TRUE))) -> 2352.14
F44: Prima Rider Complic. Maternidad | G44: n/a | H44: =+IF($G$2=FALSE,0,Tablas!D$214) -> 0 | I44: =+IF($G$2=FALSE,0,Tablas!E$214) -> 0 | J44: =+IF($G$2=FALSE,0,Tablas!F$214) -> 0 | K44: =+IF($G$2=FALSE,0,Tablas!G$214) -> 0 | L44: =+IF($G$2=FALSE,0,Tablas!H$214) -> 0
F45: TOTAL PRIMA NETA | G45: n/a | H45: =SUM(H41:H44) -> 47074.07 | I45: =SUM(I41:I44) -> 33977.24 | J45: =SUM(J41:J44) -> 23407.98 | K45: =SUM(K41:K44) -> 16346.79 | L45: =SUM(L41:L44) -> 12412.6
F46: Costo Administrativo Anual | G46: n/a | H46: 75 | I46: 75 | J46: 75 | K46: 75 | L46: 75
F47: TOTAL (1ra Cuota) : | G47: n/a | H47: =SUM(H45:H46) -> 47149.07 | I47: =SUM(I45:I46) -> 34052.24 | J47: =SUM(J45:J46) -> 23482.98 | K47: =SUM(K45:K46) -> 16421.79 | L47: =SUM(L45:L46) -> 12487.6
F48: TOTAL (2da Cuota) : | G48: n/a | H48: =H45 -> 47074.07 | I48: =I45 -> 33977.24 | J48: 23407.98 | K48: 16346.79 | L48: 12412.6
F49: GRAN TOTAL | G49: n/a | H49: =SUM(H47:H48) -> 94223.14 | I49: =SUM(I47:I48) -> 68029.48 | J49: 46890.96 | K49: 32768.58 | L49: 24900.2
F51: Este presupuesto solamente tiene carácter informativo y en ningún momento expresa compromiso legal para suministrarle cobertura de seguro. La emisión de una póliza de seguro Bupa está sujeta a todas las evaluaciones de riesgo por parte de Bupa y a la recepción de todos los pagos de prima requeridos.

Sheet Bupa Advantage Care (Mundial)
C1: FALSE | D1: FALSE | I1: RESUMEN DE BENEFICIOS | W1: RESUMEN DE BENEFICIOS
A5: Cotización de Seguro Médico Internacional Bupa Advantage Care (Mundial) Tarifas en US$ | Validas: 1 de enero de 2026 | G5: REGIÓN
G7: =IF('INGRESO DE DATOS'!W14="PERU2020","Perú",'INGRESO DE DATOS'!W14) -> 2
A13: Nombre del asegurado principal | B13: =+'INGRESO DE DATOS'!$C$36 -> John Doe
A15: Broker/Agente | B15: =+'INGRESO DE DATOS'!$C$47 -> Agencia
A17: Número de Adultos en la Póliza | B17: =+'INGRESO DE DATOS'!$C$38 -> 2 | D17: Dependientes (menores de 24 años) | G17: =+'INGRESO DE DATOS'!$C$40 -> 2
D18: =IF('INGRESO DE DATOS'!$P$2=TRUE, "Cotización para dependiente de 24 años","") -> 
A19: Edad del Titular | B19: =+'INGRESO DE DATOS'!$C$42 -> 32 | D19: Edad del Cónyuge | G19: =+'INGRESO DE DATOS'!$C$44 -> 46
D21: Fecha de Cotización: | F21: =NOW() -> 2025-11-19T09:24:18.530
A25: DEDUCIBLES | B25: PLAN 1 | C25: PLAN 2 | D25: PLAN 3 | E25: PLAN 4 | F25: PLAN 5 | G25: PLAN 6
A26: Dentro del pais de residencia | B26: n/a | C26: 1000 | D26: 2000 | E26: 5000 | F26: 10000 | G26: 20000
A27: Fuera del pais de residencia | B27: n/a | C27: 2000 | D27: 3000 | E27: 5000 | F27: 10000 | G27: 20000
A30: TARIFAS ANUALES
A31: Prima de Titular | B31: n/a | C31: =VLOOKUP($B$19,Tablas!$A$297:$H$320,4,TRUE) -> 23541 | D31: =VLOOKUP($B$19,Tablas!$A$297:$H$320,5,TRUE) -> 18027 | E31: =VLOOKUP($B$19,Tablas!$A$297:$H$320,6,TRUE) -> 12700 | F31: =VLOOKUP($B$19,Tablas!$A$297:$H$320,7,TRUE) -> 8703 | G31: =VLOOKUP($B$19,Tablas!$A$297:$H$320,8,TRUE) -> 6706
A32: Prima de Cónyuge | B32: n/a | C32: =IF($B$17=1,0,(VLOOKUP($G$19,Tablas!$A$297:$H$320,4,TRUE))) -> 34200 | D32: =IF($B$17=1,0,(VLOOKUP($G$19,Tablas!$A$297:$H$320,5,TRUE))) -> 26186 | E32: =IF($B$17=1,0,(VLOOKUP($G$19,Tablas!$A$297:$H$320,6,TRUE))) -> 18049 | F32: =IF($B$17=1,0,(VLOOKUP($G$19,Tablas!$A$297:$H$320,7,TRUE))) -> 12608 | G32: =IF($B$17=1,0,(VLOOKUP($G$19,Tablas!$A$297:$H$320,8,TRUE))) -> 9769
A33: Primas Hijos | B33: n/a | C33: =IF($G$17=0,0,(VLOOKUP($G$17,Tablas!$A$321:$H$323,4,TRUE))) -> 13250 | D33: =IF($G$17=0,0,(VLOOKUP($G$17,Tablas!$A$321:$H$323,5,TRUE))) -> 9156 | E33: =IF($G$17=0,0,(VLOOKUP($G$17,Tablas!$A$321:$H$323,6,TRUE))) -> 6613 | F33: =IF($G$17=0,0,(VLOOKUP($G$17,Tablas!$A$321:$H$323,7,TRUE))) -> 5241 | G33: =IF($G$17=0,0,(VLOOKUP($G$17,Tablas!$A$321:$H$323,8,TRUE))) -> 3534
A34: Rider: Complicaciones de Maternidad | B34: n/a | C34: =+IF($C$1=FALSE,0,Tablas!D$324) -> 0 | D34: =+IF($C$1=FALSE,0,Tablas!E$324) -> 0 | E34: =+IF($C$1=FALSE,0,Tablas!F$324) -> 0 | F34: =+IF($C$1=FALSE,0,Tablas!G$324) -> 0 | G34: =+IF($C$1=FALSE,0,Tablas!H$324) -> 0
A35: Rider: Trasplante de Órganos | B35: n/a | C35: =IF($D$1=FALSE,0,Tablas!D$325) -> 0 | D35: =IF($D$1=FALSE,0,Tablas!E$325) -> 0 | E35: =IF($D$1=FALSE,0,Tablas!F$325) -> 0 | F35: =IF($D$1=FALSE,0,Tablas!G$325) -> 0 | G35: =IF($D$1=FALSE,0,Tablas!H$325) -> 0
A36: TOTAL PRIMA NETA | B36: n/a | C36: =SUM(C31:C35) -> 70991 | D36: 53369 | E36: 37362 | F36: 26552 | G36: 20009
A37: Costo Administrativo Annual | B37: n/a | C37: 75 | D37: 75 | E37: 75 | F37: 75 | G37: 75
A38: GRAN TOTAL : | B38: n/a | C38: =SUM(C36:C37) -> 71066 | D38: =SUM(D36:D37) -> 53444 | E38: =SUM(E36:E37) -> 37437 | F38: =SUM(F36:F37) -> 26627 | G38: =SUM(G36:G37) -> 20084
A41: TARIFAS SEMESTRALES
A42: Prima de Titular | B42: n/a | C42: =VLOOKUP($B$19,Tablas!$A$332:$H$355,4,TRUE) -> 12476.73 | D42: =VLOOKUP($B$19,Tablas!$A$332:$H$355,5,TRUE) -> 9554.31 | E42: =VLOOKUP($B$19,Tablas!$A$332:$H$355,6,TRUE) -> 6731 | F42: =VLOOKUP($B$19,Tablas!$A$332:$H$355,7,TRUE) -> 4612.59 | G42: =VLOOKUP($B$19,Tablas!$A$332:$H$355,8,TRUE) -> 3554.18
A43: Prima de Cónyuge | B43: n/a | C43: =IF($B$17=1,0,(VLOOKUP($G$19,Tablas!$A$332:$H$355,4,TRUE))) -> 18126 | D43: =IF($B$17=1,0,(VLOOKUP($G$19,Tablas!$A$332:$H$355,5,TRUE))) -> 13878.58 | E43: =IF($B$17=1,0,(VLOOKUP($G$19,Tablas!$A$332:$H$355,6,TRUE))) -> 9565.97 | F43: =IF($B$17=1,0,(VLOOKUP($G$19,Tablas!$A$332:$H$355,7,TRUE))) -> 6682.24 | G43: =IF($B$17=1,0,(VLOOKUP($G$19,Tablas!$A$332:$H$355,8,TRUE))) -> 5177.57
A44: Primas Hijos | B44: n/a | C44: =IF($G$17=0,0,(VLOOKUP($G$17,Tablas!$A$356:$H$358,4,TRUE))) -> 7022.5 | D44: =IF($G$17=0,0,(VLOOKUP($G$17,Tablas!$A$356:$H$358,5,TRUE))) -> 4852.68 | E44: =IF($G$17=0,0,(VLOOKUP($G$17,Tablas!$A$356:$H$358,6,TRUE))) -> 3504.89 | F44: =IF($G$17=0,0,(VLOOKUP($G$17,Tablas!$A$356:$H$358,7,TRUE))) -> 2777.73 | G44: =IF($G$17=0,0,(VLOOKUP($G$17,Tablas!$A$356:$H$358,8,TRUE))) -> 1873.02
A45: Rider: Complicaciones de Maternidad | B45: n/a | C45: =+IF($C$1=FALSE,0,Tablas!D$359) -> 0 | D45: =+IF($C$1=FALSE,0,Tablas!E$359) -> 0 | E45: =+IF($C$1=FALSE,0,Tablas!F$359) -> 0 | F45: =+IF($C$1=FALSE,0,Tablas!G$359) -> 0 | G45: =+IF($C$1=FALSE,0,Tablas!H$359) -> 0
A46: Rider: Trasplante Organos | B46: n/a | C46: =IF($D$1=FALSE,0,Tablas!D$360) -> 0 | D46: =IF($D$1=FALSE,0,Tablas!E$360) -> 0 | E46: =IF($D$1=FALSE,0,Tablas!F$360) -> 0 | F46: =IF($D$1=FALSE,0,Tablas!G$360) -> 0 | G46: =IF($D$1=FALSE,0,Tablas!H$360) -> 0
A47: TOTAL PRIMA NETA | B47: n/a | C47: =SUM(C42:C46) -> 37625.23 | D47: 28285.57 | E47: 19801.86 | F47: 14072.56 | G47: 10604.77
A48: Costo Administrativo Anual | B48: n/a | C48: 75 | D48: 75 | E48: 75 | F48: 75 | G48: 75
A49: TOTAL (1ra Cuota) | B49: n/a | C49: =SUM(C47:C48) -> 37700.23 | D49: =SUM(D47:D48) -> 28360.57 | E49: =SUM(E47:E48) -> 19876.86 | F49: =SUM(F47:F48) -> 14147.56 | G49: =SUM(G47:G48) -> 10679.77
A50: TOTAL (2da Cuota) | B50: n/a | C50: =C47 -> 37625.23 | D50: =D47 -> 28285.57 | E50: 19801.86 | F50: 14072.56 | G50: 10604.77
A51: GRAN TOTAL | B51: n/a | C51: =SUM(C49:C50) -> 75325.46 | D51: =SUM(D49:D50) -> 56646.14 | E51: 39678.72 | F51: 28220.12 | G51: 21284.54
A54: Este presupuesto solamente tiene carácter informativo y en ningún momento expresa compromiso legal para suministrarle cobertura de seguro. La emisión de una póliza de seguro Bupa está sujeta a todas las evaluaciones de riesgo por parte de Bupa y a la recepción de todos los pagos de prima requeridos.

Sheet Bupa Secure Care
B1: FALSE | C1: FALSE | I1: RESUMEN DE BENEFICIOS | W1: RESUMEN DE BENEFICIOS
A5: Cotización de Seguro Médico Internacional Bupa Secure Care Tarifas en US$ | Validas: 1 de enero de 2026 | G5: REGIÓN
G7: =IF('INGRESO DE DATOS'!W14="PERU2020","Perú",'INGRESO DE DATOS'!W14) -> 2
A13: Nombre del asegurado principal | B13: =+'INGRESO DE DATOS'!$C$36 -> John Doe
A15: Broker/Agente | B15: =+'INGRESO DE DATOS'!$C$47 -> Agencia
A17: Número de Adultos en la Póliza | B17: =+'INGRESO DE DATOS'!$C$38 -> 2 | D17: Dependientes (menores de 24 años) | G17: =+'INGRESO DE DATOS'!$C$40 -> 2
D18: =IF('INGRESO DE DATOS'!$P$2=TRUE, "Cotización para dependiente de 24 años","") -> 
A19: Edad del Titular | B19: =+'INGRESO DE DATOS'!$C$42 -> 32 | D19: Edad del Cónyuge | G19: =+'INGRESO DE DATOS'!$C$44 -> 46
D21: Fecha de Cotización: | F21: =NOW() -> 2025-11-19T09:24:18.530
A25: DEDUCIBLES | B25: PLAN 1 | C25: PLAN 2 | D25: PLAN 3 | E25: PLAN 4 | F25: PLAN 5 | G25: PLAN 6
A26: Dentro del pais de residencia | B26: n/a | C26: 1000 | D26: 2000 | E26: 5000 | F26: 10000 | G26: 20000
A27: Fuera del pais de residencia | B27: n/a | C27: 2000 | D27: 3000 | E27: 5000 | F27: 10000 | G27: 20000
A30: TARIFAS ANUALES
A31: Prima de Titular | B31: n/a | C31: =VLOOKUP($B$19,Tablas!$A$440:$H$463,4,TRUE) -> 18242 | D31: =VLOOKUP($B$19,Tablas!$A$440:$H$463,5,TRUE) -> 15015 | E31: =VLOOKUP($B$19,Tablas!$A$440:$H$463,6,TRUE) -> 10280 | F31: =VLOOKUP($B$19,Tablas!$A$440:$H$463,7,TRUE) -> 8084 | G31: =VLOOKUP($B$19,Tablas!$A$440:$H$463,8,TRUE) -> 6121
A32: Prima de Cónyuge | B32: n/a | C32: =IF($B$17=1,0,(VLOOKUP($G$19,Tablas!$A$440:$H$463,4,TRUE))) -> 25981 | D32: =IF($B$17=1,0,(VLOOKUP($G$19,Tablas!$A$440:$H$463,5,TRUE))) -> 22465 | E32: =IF($B$17=1,0,(VLOOKUP($G$19,Tablas!$A$440:$H$463,6,TRUE))) -> 15081 | F32: =IF($B$17=1,0,(VLOOKUP($G$19,Tablas!$A$440:$H$463,7,TRUE))) -> 11845 | G32: =IF($B$17=1,0,(VLOOKUP($G$19,Tablas!$A$440:$H$463,8,TRUE))) -> 8895
A33: Primas Hijos | B33: n/a | C33: =IF($G$17=0,0,(VLOOKUP($G$17,Tablas!$A$464:$H$466,4,TRUE))) -> 11796 | D33: =IF($G$17=0,0,(VLOOKUP($G$17,Tablas!$A$464:$H$466,5,TRUE))) -> 6108 | E33: =IF($G$17=0,0,(VLOOKUP($G$17,Tablas!$A$464:$H$466,6,TRUE))) -> 5059 | F33: =IF($G$17=0,0,(VLOOKUP($G$17,Tablas!$A$464:$H$466,7,TRUE))) -> 3955 | G33: =IF($G$17=0,0,(VLOOKUP($G$17,Tablas!$A$464:$H$466,8,TRUE))) -> 2935
A34: Rider: Complicaciones de Maternidad | B34: n/a | C34: =+IF($B$1=FALSE,0,Tablas!D$467) -> 0 | D34: =+IF($B$1=FALSE,0,Tablas!E$467) -> 0 | E34: =+IF($B$1=FALSE,0,Tablas!F$467) -> 0 | F34: =+IF($B$1=FALSE,0,Tablas!G$467) -> 0 | G34: =+IF($B$1=FALSE,0,Tablas!H$467) -> 0
A35: Rider: Trasplante de Órganos | B35: n/a | C35: =IF($C$1=FALSE,0,Tablas!D$468) -> 0 | D35: =IF($C$1=FALSE,0,Tablas!E$468) -> 0 | E35: =IF($C$1=FALSE,0,Tablas!F$468) -> 0 | F35: =IF($C$1=FALSE,0,Tablas!G$468) -> 0 | G35: =IF($C$1=FALSE,0,Tablas!H$468) -> 0
A36: TOTAL PRIMA NETA | B36: n/a | C36: =SUM(C31:C35) -> 56019 | D36: 43588 | E36: 30420 | F36: 23884 | G36: 17951
A37: Costo Administrativo Annual | B37: n/a | C37: 75 | D37: 75 | E37: 75 | F37: 75 | G37: 75
A38: GRAN TOTAL : | B38: n/a | C38: =SUM(C36:C37) -> 56094 | D38: =SUM(D36:D37) -> 43663 | E38: =SUM(E36:E37) -> 30495 | F38: =SUM(F36:F37) -> 23959 | G38: =SUM(G36:G37) -> 18026
A40: TARIFAS SEMESTRALES
A41: Prima de Titular | B41: n/a | C41: =VLOOKUP($B$19,Tablas!$A$476:$H$499,4,TRUE) -> 9668.26 | D41: =VLOOKUP($B$19,Tablas!$A$476:$H$499,5,TRUE) -> 7957.95 | E41: =VLOOKUP($B$19,Tablas!$A$476:$H$499,6,TRUE) -> 5448.4 | F41: =VLOOKUP($B$19,Tablas!$A$476:$H$499,7,TRUE) -> 4284.52 | G41: =VLOOKUP($B$19,Tablas!$A$476:$H$499,8,TRUE) -> 3244.13
A42: Prima de Cónyuge | B42: n/a | C42: =IF($B$17=1,0,(VLOOKUP($G$19,Tablas!$A$476:$H$499,4,TRUE))) -> 13769.93 | D42: =IF($B$17=1,0,(VLOOKUP($G$19,Tablas!$A$476:$H$499,5,TRUE))) -> 11906.45 | E42: =IF($B$17=1,0,(VLOOKUP($G$19,Tablas!$A$476:$H$499,6,TRUE))) -> 7992.93 | F42: =IF($B$17=1,0,(VLOOKUP($G$19,Tablas!$A$476:$H$499,7,TRUE))) -> 6277.85 | G42: =IF($B$17=1,0,(VLOOKUP($G$19,Tablas!$A$476:$H$499,8,TRUE))) -> 4714.35
A43: Primas Hijos | B43: n/a | C43: =IF($G$17=0,0,(VLOOKUP($G$17,Tablas!$A$500:$H$502,4,TRUE))) -> 6251.88 | D43: =IF($G$17=0,0,(VLOOKUP($G$17,Tablas!$A$500:$H$502,5,TRUE))) -> 3237.24 | E43: =IF($G$17=0,0,(VLOOKUP($G$17,Tablas!$A$500:$H$502,6,TRUE))) -> 2681.27 | F43: =IF($G$17=0,0,(VLOOKUP($G$17,Tablas!$A$500:$H$502,7,TRUE))) -> 2096.15 | G43: =IF($G$17=0,0,(VLOOKUP($G$17,Tablas!$A$500:$H$502,8,TRUE))) -> 1555.55
A44: Rider: Complicaciones de Maternidad | B44: n/a | C44: =+IF($B$1=FALSE,0,Tablas!D$503) -> 0 | D44: =+IF($B$1=FALSE,0,Tablas!E$503) -> 0 | E44: =+IF($B$1=FALSE,0,Tablas!F$503) -> 0 | F44: =+IF($B$1=FALSE,0,Tablas!G$503) -> 0 | G44: =+IF($B$1=FALSE,0,Tablas!H$503) -> 0
A45: Rider: Trasplante Organos | B45: n/a | C45: =IF($C$1=FALSE,0,Tablas!D$504) -> 0 | D45: =IF($C$1=FALSE,0,Tablas!E$504) -> 0 | E45: =IF($C$1=FALSE,0,Tablas!F$504) -> 0 | F45: =IF($C$1=FALSE,0,Tablas!G$504) -> 0 | G45: =IF($C$1=FALSE,0,Tablas!H$504) -> 0
A46: TOTAL PRIMA NETA | B46: n/a | C46: =SUM(C41:C45) -> 29690.07 | D46: 23101.64 | E46: 16122.6 | F46: 12658.52 | G46: 9514.03
A47: Costo Administrativo Anual | B47: n/a | C47: 75 | D47: 75 | E47: 75 | F47: 75 | G47: 75
A48: TOTAL (1ra Cuota) | B48: n/a | C48: =SUM(C46:C47) -> 29765.07 | D48: =SUM(D46:D47) -> 23176.64 | E48: =SUM(E46:E47) -> 16197.6 | F48: =SUM(F46:F47) -> 12733.52 | G48: =SUM(G46:G47) -> 9589.03
A49: TOTAL (2da Cuota) | B49: n/a | C49: =C46 -> 29690.07 | D49: =D46 -> 23101.64 | E49: 16122.6 | F49: 12658.52 | G49: 9514.03
A50: GRAN TOTAL | B50: n/a | C50: =SUM(C48:C49) -> 59455.14 | D50: =SUM(D48:D49) -> 46278.28 | E50: 32320.2 | F50: 25392.04 | G50: 19103.06
A52: Este presupuesto solamente tiene carácter informativo y en ningún momento expresa compromiso legal para suministrarle cobertura de seguro. La emisión de una póliza de seguro Bupa está sujeta a todas las evaluaciones de riesgo por parte de Bupa y a la recepción de todos los pagos de prima requeridos.

Sheet Bupa Essential Care
B1: FALSE | C1: FALSE | I1: RESUMEN DE BENEFICIOS | W1: RESUMEN DE BENEFICIOS
A5: Cotización de Seguro Médico Internacional Bupa Essential Care Tarifas en US$ | Validas: 1 de enero de 2026 | G5: REGIÓN
G7: =IF('INGRESO DE DATOS'!W14="PERU2020","Perú",'INGRESO DE DATOS'!W14) -> 2
A13: Nombre del asegurado principal | B13: =+'INGRESO DE DATOS'!$C$36 -> John Doe
A15: Broker/Agente | B15: =+'INGRESO DE DATOS'!$C$47 -> Agencia
A17: Número de Adultos en la Póliza | B17: =+'INGRESO DE DATOS'!$C$38 -> 2 | D17: Dependientes (menores de 24 años) | G17: =+'INGRESO DE DATOS'!$C$40 -> 2
D18: =IF('INGRESO DE DATOS'!$P$2=TRUE, "Cotización para dependiente de 24 años","") -> 
A19: Edad del Titular | B19: =+'INGRESO DE DATOS'!$C$42 -> 32 | D19: Edad del Cónyuge | G19: =+'INGRESO DE DATOS'!$C$44 -> 46
D21: Fecha de Cotización: | F21: =NOW() -> 2025-11-19T09:24:18.530
A25: DEdUCIBLES | B25: PLAN 1 | C25: PLAN 2 | D25: PLAN 3 | E25: PLAN 4 | F25: PLAN 5 | G25: PLAN 6
A26: Dentro del pais de residencia | B26: n/a | C26: 1000 | D26: 2000 | E26: 5000 | F26: 10000 | G26: 20000
A27: Fuera del pais de residencia | B27: n/a | C27: 2000 | D27: 3000 | E27: 5000 | F27: 10000 | G27: 20000
A30: TARIFAS ANUALES
A31: Prima de Titular | B31: n/a | C31: =VLOOKUP($B$19,Tablas!$A$513:$H$536,4,TRUE) -> 15078 | D31: =VLOOKUP($B$19,Tablas!$A$513:$H$536,5,TRUE) -> 12411 | E31: =VLOOKUP($B$19,Tablas!$A$513:$H$536,6,TRUE) -> 8501 | F31: =VLOOKUP($B$19,Tablas!$A$513:$H$536,7,TRUE) -> 6691 | G31: =VLOOKUP($B$19,Tablas!$A$513:$H$536,8,TRUE) -> 5042
A32: Prima de Cónyuge | B32: n/a | C32: =IF($B$17=1,0,(VLOOKUP($G$19,Tablas!$A$513:$H$536,4,TRUE))) -> 21484 | D32: =IF($B$17=1,0,(VLOOKUP($G$19,Tablas!$A$513:$H$536,5,TRUE))) -> 18600 | E32: =IF($B$17=1,0,(VLOOKUP($G$19,Tablas!$A$513:$H$536,6,TRUE))) -> 12476 | F32: =IF($B$17=1,0,(VLOOKUP($G$19,Tablas!$A$513:$H$536,7,TRUE))) -> 9793 | G32: =IF($B$17=1,0,(VLOOKUP($G$19,Tablas!$A$513:$H$536,8,TRUE))) -> 7350
A33: Primas Hijos | B33: n/a | C33: =IF($G$17=0,0,(VLOOKUP($G$17,Tablas!$A$537:$H$539,4,TRUE))) -> 9769 | D33: =IF($G$17=0,0,(VLOOKUP($G$17,Tablas!$A$537:$H$539,5,TRUE))) -> 5058 | E33: =IF($G$17=0,0,(VLOOKUP($G$17,Tablas!$A$537:$H$539,6,TRUE))) -> 4186 | F33: =IF($G$17=0,0,(VLOOKUP($G$17,Tablas!$A$537:$H$539,7,TRUE))) -> 3293 | G33: =IF($G$17=0,0,(VLOOKUP($G$17,Tablas!$A$537:$H$539,8,TRUE))) -> 2433
A34: Rider: Complicaciones de Maternidad | B34: n/a | C34: =+IF($B$1=FALSE,0,Tablas!D$540) -> 0 | D34: =+IF($B$1=FALSE,0,Tablas!E$540) -> 0 | E34: =+IF($B$1=FALSE,0,Tablas!F$540) -> 0 | F34: =+IF($B$1=FALSE,0,Tablas!G$540) -> 0 | G34: =+IF($B$1=FALSE,0,Tablas!H$540) -> 0
A35: Rider: Trasplante Órganos | B35: n/a | C35: =IF($C$1=FALSE,0,Tablas!D$541) -> 0 | D35: =IF($C$1=FALSE,0,Tablas!E$541) -> 0 | E35: =IF($C$1=FALSE,0,Tablas!F$541) -> 0 | F35: =IF($C$1=FALSE,0,Tablas!G$541) -> 0 | G35: =IF($C$1=FALSE,0,Tablas!H$541) -> 0
A36: TOTAL PRIMA NETA | B36: n/a | C36: =SUM(C31:C35) -> 46331 | D36: 36069 | E36: 25163 | F36: 19777 | G36: 14825
A37: Costo Administrativo Annual | B37: n/a | C37: 75 | D37: 75 | E37: 75 | F37: 75 | G37: 75
A38: GRAN TOTAL : | B38: n/a | C38: =SUM(C36:C37) -> 46406 | D38: =SUM(D36:D37) -> 36144 | E38: =SUM(E36:E37) -> 25238 | F38: =SUM(F36:F37) -> 19852 | G38: =SUM(G36:G37) -> 14900
A41: TARIFAS SEMESTRALES
A42: Prima de Titular | B42: n/a | C42: =VLOOKUP($B$19,Tablas!$A$548:$H$571,4,TRUE) -> 7991.34 | D42: =VLOOKUP($B$19,Tablas!$A$548:$H$571,5,TRUE) -> 6577.83 | E42: =VLOOKUP($B$19,Tablas!$A$548:$H$571,6,TRUE) -> 4505.53 | F42: =VLOOKUP($B$19,Tablas!$A$548:$H$571,7,TRUE) -> 3546.23 | G42: =VLOOKUP($B$19,Tablas!$A$548:$H$571,8,TRUE) -> 2672.26
A43: Prima de Cónyuge | B43: n/a | C43: =IF($B$17=1,0,(VLOOKUP($G$19,Tablas!$A$548:$H$571,4,TRUE))) -> 11386.52 | D43: =IF($B$17=1,0,(VLOOKUP($G$19,Tablas!$A$548:$H$571,5,TRUE))) -> 9858 | E43: =IF($B$17=1,0,(VLOOKUP($G$19,Tablas!$A$548:$H$571,6,TRUE))) -> 6612.28 | F43: =IF($B$17=1,0,(VLOOKUP($G$19,Tablas!$A$548:$H$571,7,TRUE))) -> 5190.29 | G43: =IF($B$17=1,0,(VLOOKUP($G$19,Tablas!$A$548:$H$571,8,TRUE))) -> 3895.5
A44: Primas Hijos | B44: n/a | C44: =IF($G$17=0,0,(VLOOKUP($G$17,Tablas!$A$572:$H$574,4,TRUE))) -> 5177.57 | D44: =IF($G$17=0,0,(VLOOKUP($G$17,Tablas!$A$572:$H$574,5,TRUE))) -> 2680.74 | E44: =IF($G$17=0,0,(VLOOKUP($G$17,Tablas!$A$572:$H$574,6,TRUE))) -> 2218.58 | F44: =IF($G$17=0,0,(VLOOKUP($G$17,Tablas!$A$572:$H$574,7,TRUE))) -> 1745.29 | G44: =IF($G$17=0,0,(VLOOKUP($G$17,Tablas!$A$572:$H$574,8,TRUE))) -> 1289.49
A45: Rider: Complicaciones de Maternidad | B45: n/a | C45: =+IF($B$1=FALSE,0,Tablas!D$575) -> 0 | D45: =+IF($B$1=FALSE,0,Tablas!E$575) -> 0 | E45: =+IF($B$1=FALSE,0,Tablas!F$575) -> 0 | F45: =+IF($B$1=FALSE,0,Tablas!G$575) -> 0 | G45: =+IF($B$1=FALSE,0,Tablas!H$575) -> 0
A46: Rider: Trasplante Organos | B46: n/a | C46: =IF($C$1=FALSE,0,Tablas!D$576) -> 0 | D46: =IF($C$1=FALSE,0,Tablas!E$576) -> 0 | E46: =IF($C$1=FALSE,0,Tablas!F$576) -> 0 | F46: =IF($C$1=FALSE,0,Tablas!G$576) -> 0 | G46: =IF($C$1=FALSE,0,Tablas!H$576) -> 0
A47: TOTAL PRIMA NETA | B47: n/a | C47: =SUM(C42:C46) -> 24555.43 | D47: 19116.57 | E47: 13336.39 | F47: 10481.81 | G47: 7857.25
A48: Costo Administrativo Anual | B48: n/a | C48: 75 | D48: 75 | E48: 75 | F48: 75 | G48: 75
A49: TOTAL (1ra Cuota) | B49: n/a | C49: =SUM(C47:C48) -> 24630.43 | D49: =SUM(D47:D48) -> 19191.57 | E49: =SUM(E47:E48) -> 13411.39 | F49: =SUM(F47:F48) -> 10556.81 | G49: =SUM(G47:G48) -> 7932.25
A50: TOTAL (2da Cuota) | B50: n/a | C50: =C47 -> 24555.43 | D50: =D47 -> 19116.57 | E50: 13336.39 | F50: 10481.81 | G50: 7857.25
A51: GRAN TOTAL | B51: n/a | C51: =SUM(C49:C50) -> 49185.86 | D51: =SUM(D49:D50) -> 38308.14 | E51: 26747.78 | F51: 21038.62 | G51: 15789.5
A54: Este presupuesto solamente tiene carácter informativo y en ningún momento expresa compromiso legal para suministrarle cobertura de seguro. La emisión de una póliza de seguro Bupa está sujeta a todas las evaluaciones de riesgo por parte de Bupa y a la recepción de todos los pagos de prima requeridos.

Sheet Bupa Crititcal
B1: TRUE | J1: RESUMEN DE BENEFICIOS | X1: RESUMEN DE BENEFICIOS
A5: Cotización de Seguro Médico Internacional Bupa Critical Care Tarifas en US$ | Validas: 1 de enero de 2026 | H5: REGIÓN
H7: =IF('INGRESO DE DATOS'!W14="PERU2020","Perú",'INGRESO DE DATOS'!W14) -> 2
A13: Nombre del asegurado principal | B13: =+'INGRESO DE DATOS'!$C$36 -> John Doe
A15: Broker/Agente | B15: =+'INGRESO DE DATOS'!$C$47 -> Agencia
A17: Número de Adultos en la Póliza | B17: =+'INGRESO DE DATOS'!$C$38 -> 2 | D17: Dependientes (menores de 24 años) | H17: =+'INGRESO DE DATOS'!$C$40 -> 2
D18: =IF('INGRESO DE DATOS'!$P$2=TRUE, "Cotización para dependiente de 24 años","") -> 
A19: Edad del Titular | B19: =+'INGRESO DE DATOS'!$C$42 -> 32 | D19: Edad del Cónyuge | H19: =+'INGRESO DE DATOS'!$C$44 -> 46
D21: Edad del adulto mayor en la pareja | H21: =IF(B19>=H19,B19,H19) -> 46
A24: CONDICION CRÍTICA CUBIERTA | D24: MÁXIMO (Por asegurado, por año Póliza) | F24: TRASPLANTE DE ÓRGANOS
F26: Tipo de trasplante | H26: Máximo Vitalicio por persona
A27: Enfermedades neurológicas y accidentes cerebro-vasculares | D27: 150000
A29: Cirugías cardíacas y angioplastías | D29: 150000 | F29: Corazón | H29: 300000
F30: Corazón y Pulmón (simultáneamente) | H30: 300000
A31: Tratamiento de cáncer | D31: 200000 | F31: Pulmón | H31: 250000
F32: Pancreas | H32: 250000
A33: Trauma grave (Politraumatismos) | D33: 150000 | F33: Pancreas y Riñón (simultáneamente) | H33: 300000
F34: Riñón | H34: 200000
A35: Insuficiencia renal crónica (Diálisis) | D35: 100000 | F35: Hígado | H35: 200000
F36: Médula ósea | H36: 250000
A37: Quemaduras graves | D37: 300000 | F37: La cobertura de trasplante de órganos está limitada a la Red de Proveedores para Procedimiento de Trasplante de la Compañía y no se proporcionará cobertura en proveedores fuera de esta Red especializada.
A38: Desorden infeccioso grave (Septicemia) | D38: 150000
A41: Deducibles | C41: PLAN 1 | D41: PLAN 2 | E41: PLAN 3 | F41: PLAN 4 | G41: PLAN 5 | H41: PLAN 6
A42: Dentro del pais de residencia | C42: 2000 | D42: 3500 | E42: 5000 | F42: 10000 | G42: 20000 | H42: 50000
A43: Fuera del pais de residencia | C43: 2000 | D43: 3500 | E43: 5000 | F43: 10000 | G43: 20000 | H43: 50000
A45: TARIFAS ANUALES
A46: Prima por plan individual | C46: =IF((($B$17+$H$17)=1),(VLOOKUP($H$21,Tablas!$A$587:$T$588,3,TRUE)),0) -> 0 | D46: =IF((($B$17+$H$17)=1),(VLOOKUP($H$21,Tablas!$A$587:$T$588,6,TRUE)),0) -> 0 | E46: =IF((($B$17+$H$17)=1),(VLOOKUP($H$21,Tablas!$A$587:$T$588,9,TRUE)),0) -> 0 | F46: =IF((($B$17+$H$17)=1),(VLOOKUP($H$21,Tablas!$A$587:$T$588,12,TRUE)),0) -> 0 | G46: =IF((($B$17+$H$17)=1),(VLOOKUP($H$21,Tablas!$A$587:$T$588,15,TRUE)),0) -> 0 | H46: =IF((($B$17+$H$17)=1),(VLOOKUP($H$21,Tablas!$A$587:$T$588,18,TRUE)),0) -> 0
A47: Prima por plan para 2 personas | C47: =IF((($B$17+$H$17)=2),(VLOOKUP($H$21,Tablas!$A$587:$T$588,4,TRUE)),0) -> 0 | D47: =IF((($B$17+$H$17)=2),(VLOOKUP($H$21,Tablas!$A$587:$T$588,7,TRUE)),0) -> 0 | E47: =IF((($B$17+$H$17)=2),(VLOOKUP($H$21,Tablas!$A$587:$T$588,10,TRUE)),0) -> 0 | F47: =IF((($B$17+$H$17)=2),(VLOOKUP($H$21,Tablas!$A$587:$T$588,13,TRUE)),0) -> 0 | G47: =IF((($B$17+$H$17)=2),(VLOOKUP($H$21,Tablas!$A$587:$T$588,16,TRUE)),0) -> 0 | H47: =IF((($B$17+$H$17)=2),(VLOOKUP($H$21,Tablas!$A$587:$T$588,19,TRUE)),0) -> 0
A48: Prima por plan familiar | C48: =IF((($B$17+$H$17)>=3),(VLOOKUP($H$21,Tablas!$A$587:$T$588,5,TRUE)),0) -> 17691 | D48: =IF((($B$17+$H$17)>=3),(VLOOKUP($H$21,Tablas!$A$587:$T$588,8,TRUE)),0) -> 13725 | E48: =IF((($B$17+$H$17)>=3),(VLOOKUP($H$21,Tablas!$A$587:$T$588,11,TRUE)),0) -> 11837 | F48: =IF((($B$17+$H$17)>=3),(VLOOKUP($H$21,Tablas!$A$587:$T$588,14,TRUE)),0) -> 8705 | G48: =IF((($B$17+$H$17)>=3),(VLOOKUP($H$21,Tablas!$A$587:$T$588,17,TRUE)),0) -> 6162 | H48: =IF((($B$17+$H$17)>=3),(VLOOKUP($H$21,Tablas!$A$587:$T$588,20,TRUE)),0) -> 3467
A49: TOTAL PRIMA NETA | C49: =SUM(C46:C48) -> 17691 | D49: =SUM(D46:D48) -> 13725 | E49: 11837 | F49: 8705 | G49: 6162 | H49: 3467
A50: Costo Administrativo Anual | C50: 75 | D50: 75 | E50: 75 | F50: 75 | G50: 75 | H50: 75
A51: GRAN TOTAL | C51: =SUM(C49:C50) -> 17766 | D51: 13800 | E51: 11912 | F51: 8780 | G51: 6237 | H51: 3542
A53: Este presupuesto solamente tiene carácter informativo y en ningún momento expresa compromiso legal para suministrarle cobertura de seguro. La emisión de una póliza de seguro Bupa está sujeta a todas las evaluaciones de riesgo por parte de Bupa y a la recepción de todos los pagos de prima requeridos.

Sheet Resumen tarifas anuales
A5: Cotización de Seguro Médico Internacional Bupa Care — Resumen de Tarifas (Anuales) Tarifas en US$ | Validas: 1 de enero de 2026 | H5: REGIÓN
H7: =IF('INGRESO DE DATOS'!W14="PERU2020","Perú",'INGRESO DE DATOS'!W14) -> 2
A13: Nombre del asegurado principal | B13: =+'INGRESO DE DATOS'!$C$36 -> John Doe
A15: Broker/Agente | B15: =+'INGRESO DE DATOS'!$C$47 -> Agencia
A17: Número de Adultos en la Póliza | B17: =+'INGRESO DE DATOS'!$C$38 -> 2 | F17: Dependientes (menores de 24 años) | H17: =+'INGRESO DE DATOS'!$C$40 -> 2
F18: =IF('INGRESO DE DATOS'!$P$2=TRUE, "Cotización para dependiente de 24 años","") -> 
A19: Edad del Titular | B19: =+'INGRESO DE DATOS'!$C$42 -> 32 | F19: Edad del Cónyuge | H19: =+'INGRESO DE DATOS'!$C$44 -> 46
A22: DEDUCIBLES | C22: PLAN 1 | D22: PLAN 2 | E22: PLAN 3 | F22: PLAN 4 | G22: PLAN 5 | H22: PLAN 6
A23: Dentro del pais de residencia | C23: n/a | D23: 1000 | E23: 2000 | F23: 5000 | G23: 10000 | H23: 20000
A24: Fuera del pais de residencia | C24: n/a | D24: 2000 | E24: 3000 | F24: 5000 | G24: 10000 | H24: 20000
A26: PRODUCTOS | C26: TARIFAS ANUALES
A27: Bupa Exclusive Care | C27: n/a | D27: =+'Bupa Exclusive Care'!H41 -> 105520 | E27: =+'Bupa Exclusive Care'!I41 -> 74009 | F27: =+'Bupa Exclusive Care'!J41 -> 51656 | G27: =+'Bupa Exclusive Care'!K41 -> 35978 | H27: =+'Bupa Exclusive Care'!L41 -> 28276
A28: Bupa Privilege Care | C28: n/a | D28: =+'Bupa Privilege Care'!H37 -> 88894 | E28: =+'Bupa Privilege Care'!I37 -> 64183 | F28: =+'Bupa Privilege Care'!J37 -> 44241 | G28: =+'Bupa Privilege Care'!K37 -> 30918 | H28: =+'Bupa Privilege Care'!L37 -> 23495
A29: Bupa Advantage Care | C29: n/a | D29: =+'Bupa Advantage Care (Mundial)'!C38 -> 71066 | E29: =+'Bupa Advantage Care (Mundial)'!D38 -> 53444 | F29: =+'Bupa Advantage Care (Mundial)'!E38 -> 37437 | G29: =+'Bupa Advantage Care (Mundial)'!F38 -> 26627 | H29: =+'Bupa Advantage Care (Mundial)'!G38 -> 20084
A30: Bupa Secure Care | C30: n/a | D30: =+'Bupa Secure Care'!C38 -> 56094 | E30: =+'Bupa Secure Care'!D38 -> 43663 | F30: =+'Bupa Secure Care'!E38 -> 30495 | G30: =+'Bupa Secure Care'!F38 -> 23959 | H30: =+'Bupa Secure Care'!G38 -> 18026
A31: Bupa Essential Care | C31: n/a | D31: =+'Bupa Essential Care'!C38 -> 46406 | E31: =+'Bupa Essential Care'!D38 -> 36144 | F31: =+'Bupa Essential Care'!E38 -> 25238 | G31: =+'Bupa Essential Care'!F38 -> 19852 | H31: =+'Bupa Essential Care'!G38 -> 14900
A33: BUPA CRITICAL CARE
A34: DEDUCIBLES | C34: PLAN 1 | D34: PLAN 2 | E34: PLAN 3 | F34: PLAN 4 | G34: PLAN 5 | H34: PLAN 6
A35: Dentro del pais de residencia | C35: 2000 | D35: 3500 | E35: 5000 | F35: 10000 | G35: 20000 | H35: 50000
A36: Fuera del pais de residencia | C36: 2000 | D36: 3500 | E36: 5000 | F36: 10000 | G36: 20000 | H36: 50000
C39: TARIFAS ANUALES
A40: Bupa Critical Care | C40: =+'Bupa Crititcal'!C51 -> 17766 | D40: =+'Bupa Crititcal'!D51 -> 13800 | E40: =+'Bupa Crititcal'!E51 -> 11912 | F40: =+'Bupa Crititcal'!F51 -> 8780 | G40: =+'Bupa Crititcal'!G51 -> 6237 | H40: =+'Bupa Crititcal'!H51 -> 3542

Sheet Comparacion de Beneficios (hidden)
A1: 2023 BUPA CARE COMPARACION DE BENEFICIOS

Sheet Tablas (hidden)
K1: Critical | L1: Exclusive | M1: Privilege | N1: Advantage | O1: Secure | P1: Essential
B2: REGIÓN | C2: ='INGRESO DE DATOS'!W14 -> 2 | E2: FACTOR SEMESTRAL : | G2: =IF('INGRESO DE DATOS'!W14=8,0.51,0.53) -> 0.53 | I2: TOTAL DISCOUNT | K2: ='INGRESO DE DATOS'!O42 -> 1 | L2: ='INGRESO DE DATOS'!P42 -> 1 | M2: ='INGRESO DE DATOS'!Q42 -> 1 | N2: ='INGRESO DE DATOS'!R42 -> 1 | O2: ='INGRESO DE DATOS'!S42 -> 1 | P2: ='INGRESO DE DATOS'!T42 -> 1
A5: BUPA EXCLUSIVE CARE | K5: ORIGINAL RATES | Q5: DISCOUNTS APPLIED
A6: TARIFAS ANUALES
A7: EDAD
C8: DW1 | D8: DW2 | E8: DW3 | F8: DW4 | G8: DW5 | H8: DW6
A9: 18 | B9: 18-24 | D9: =Q9 -> 32656 | E9: =R9 -> 21567 | F9: 14014 | G9: 8956 | H9: 7038 | K9: =IF($C$2=2,'2'!D9,IF($C$2=3,'3'!D9,IF($C$2=4,'4'!D9,IF($C$2=5,'5'!D9,IF($C$2=6,'6'!D9,IF($C$2=8,'8'!D9,IF($C$2=9,'9'!D9,IF($C$2="PERU2020",PERU2020!D9)))))))) -> 32656 | L9: =IF($C$2=2,'2'!E9,IF($C$2=3,'3'!E9,IF($C$2=4,'4'!E9,IF($C$2=5,'5'!E9,IF($C$2=6,'6'!E9,IF($C$2=8,'8'!E9,IF($C$2=9,'9'!E9,IF($C$2="PERU2020",PERU2020!E9)))))))) -> 21567 | M9: =IF($C$2=2,'2'!F9,IF($C$2=3,'3'!F9,IF($C$2=4,'4'!F9,IF($C$2=5,'5'!F9,IF($C$2=6,'6'!F9,IF($C$2=8,'8'!F9,IF($C$2=9,'9'!F9,IF($C$2="PERU2020",PERU2020!F9)))))))) -> 14014 | N9: =IF($C$2=2,'2'!G9,IF($C$2=3,'3'!G9,IF($C$2=4,'4'!G9,IF($C$2=5,'5'!G9,IF($C$2=6,'6'!G9,IF($C$2=8,'8'!G9,IF($C$2=9,'9'!G9,IF($C$2="PERU2020",PERU2020!G9)))))))) -> 8956 | O9: =IF($C$2=2,'2'!H9,IF($C$2=3,'3'!H9,IF($C$2=4,'4'!H9,IF($C$2=5,'5'!H9,IF($C$2=6,'6'!H9,IF($C$2=8,'8'!H9,IF($C$2=9,'9'!H9,IF($C$2="PERU2020",PERU2020!H9)))))))) -> 7038 | Q9: =(K9-50)*$L$2+50 -> 32656 | R9: =(L9-50)*$L$2+50 -> 21567 | S9: 14014 | T9: 8956 | U9: 7038
A10: 25 | B10: 25-29 | D10: =Q10 -> 34251 | E10: =R10 -> 23835 | F10: =S10 -> 15520 | G10: =T10 -> 9931 | H10: =U10 -> 7799 | K10: =IF($C$2=2,'2'!D10,IF($C$2=3,'3'!D10,IF($C$2=4,'4'!D10,IF($C$2=5,'5'!D10,IF($C$2=6,'6'!D10,IF($C$2=8,'8'!D10,IF($C$2=9,'9'!D10,IF($C$2="PERU2020",PERU2020!D10)))))))) -> 34251 | L10: =IF($C$2=2,'2'!E10,IF($C$2=3,'3'!E10,IF($C$2=4,'4'!E10,IF($C$2=5,'5'!E10,IF($C$2=6,'6'!E10,IF($C$2=8,'8'!E10,IF($C$2=9,'9'!E10,IF($C$2="PERU2020",PERU2020!E10)))))))) -> 23835 | M10: =IF($C$2=2,'2'!F10,IF($C$2=3,'3'!F10,IF($C$2=4,'4'!F10,IF($C$2=5,'5'!F10,IF($C$2=6,'6'!F10,IF($C$2=8,'8'!F10,IF($C$2=9,'9'!F10,IF($C$2="PERU2020",PERU2020!F10)))))))) -> 15520 | N10: =IF($C$2=2,'2'!G10,IF($C$2=3,'3'!G10,IF($C$2=4,'4'!G10,IF($C$2=5,'5'!G10,IF($C$2=6,'6'!G10,IF($C$2=8,'8'!G10,IF($C$2=9,'9'!G10,IF($C$2="PERU2020",PERU2020!G10)))))))) -> 9931 | O10: =IF($C$2=2,'2'!H10,IF($C$2=3,'3'!H10,IF($C$2=4,'4'!H10,IF($C$2=5,'5'!H10,IF($C$2=6,'6'!H10,IF($C$2=8,'8'!H10,IF($C$2=9,'9'!H10,IF($C$2="PERU2020",PERU2020!H10)))))))) -> 7799 | Q10: =(K10-50)*$L$2+50 -> 34251 | R10: =(L10-50)*$L$2+50 -> 23835 | S10: =(M10-50)*$L$2+50 -> 15520 | T10: =(N10-50)*$L$2+50 -> 9931 | U10: =(O10-50)*$L$2+50 -> 7799
A11: 30 | B11: 30-34 | D11: 35641 | E11: 25576 | F11: 17391 | G11: 11902 | H11: 9379 | K11: =IF($C$2=2,'2'!D11,IF($C$2=3,'3'!D11,IF($C$2=4,'4'!D11,IF($C$2=5,'5'!D11,IF($C$2=6,'6'!D11,IF($C$2=8,'8'!D11,IF($C$2=9,'9'!D11,IF($C$2="PERU2020",PERU2020!D11)))))))) -> 35641 | L11: =IF($C$2=2,'2'!E11,IF($C$2=3,'3'!E11,IF($C$2=4,'4'!E11,IF($C$2=5,'5'!E11,IF($C$2=6,'6'!E11,IF($C$2=8,'8'!E11,IF($C$2=9,'9'!E11,IF($C$2="PERU2020",PERU2020!E11)))))))) -> 25576 | M11: =IF($C$2=2,'2'!F11,IF($C$2=3,'3'!F11,IF($C$2=4,'4'!F11,IF($C$2=5,'5'!F11,IF($C$2=6,'6'!F11,IF($C$2=8,'8'!F11,IF($C$2=9,'9'!F11,IF($C$2="PERU2020",PERU2020!F11)))))))) -> 17391 | N11: =IF($C$2=2,'2'!G11,IF($C$2=3,'3'!G11,IF($C$2=4,'4'!G11,IF($C$2=5,'5'!G11,IF($C$2=6,'6'!G11,IF($C$2=8,'8'!G11,IF($C$2=9,'9'!G11,IF($C$2="PERU2020",PERU2020!G11)))))))) -> 11902 | O11: =IF($C$2=2,'2'!H11,IF($C$2=3,'3'!H11,IF($C$2=4,'4'!H11,IF($C$2=5,'5'!H11,IF($C$2=6,'6'!H11,IF($C$2=8,'8'!H11,IF($C$2=9,'9'!H11,IF($C$2="PERU2020",PERU2020!H11)))))))) -> 9379 | Q11: 35641 | R11: 25576 | S11: 17391 | T11: 11902 | U11: 9379
A12: 35 | B12: 35-39 | D12: 39907 | E12: 28627 | F12: 19507 | G12: 13350 | H12: 10507 | K12: =IF($C$2=2,'2'!D12,IF($C$2=3,'3'!D12,IF($C$2=4,'4'!D12,IF($C$2=5,'5'!D12,IF($C$2=6,'6'!D12,IF($C$2=8,'8'!D12,IF($C$2=9,'9'!D12,IF($C$2="PERU2020",PERU2020!D12)))))))) -> 39907 | L12: =IF($C$2=2,'2'!E12,IF($C$2=3,'3'!E12,IF($C$2=4,'4'!E12,IF($C$2=5,'5'!E12,IF($C$2=6,'6'!E12,IF($C$2=8,'8'!E12,IF($C$2=9,'9'!E12,IF($C$2="PERU2020",PERU2020!E12)))))))) -> 28627 | M12: =IF($C$2=2,'2'!F12,IF($C$2=3,'3'!F12,IF($C$2=4,'4'!F12,IF($C$2=5,'5'!F12,IF($C$2=6,'6'!F12,IF($C$2=8,'8'!F12,IF($C$2=9,'9'!F12,IF($C$2="PERU2020",PERU2020!F12)))))))) -> 19507 | N12: =IF($C$2=2,'2'!G12,IF($C$2=3,'3'!G12,IF($C$2=4,'4'!G12,IF($C$2=5,'5'!G12,IF($C$2=6,'6'!G12,IF($C$2=8,'8'!G12,IF($C$2=9,'9'!G12,IF($C$2="PERU2020",PERU2020!G12)))))))) -> 13350 | O12: =IF($C$2=2,'2'!H12,IF($C$2=3,'3'!H12,IF($C$2=4,'4'!H12,IF($C$2=5,'5'!H12,IF($C$2=6,'6'!H12,IF($C$2=8,'8'!H12,IF($C$2=9,'9'!H12,IF($C$2="PERU2020",PERU2020!H12)))))))) -> 10507 | Q12: 39907 | R12: 28627 | S12: 19507 | T12: 13350 | U12: 10507
A13: 40 | B13: 40-44 | D13: 46269 | E13: 31326 | F13: 21643 | G13: 14687 | H13: 11552 | K13: =IF($C$2=2,'2'!D13,IF($C$2=3,'3'!D13,IF($C$2=4,'4'!D13,IF($C$2=5,'5'!D13,IF($C$2=6,'6'!D13,IF($C$2=8,'8'!D13,IF($C$2=9,'9'!D13,IF($C$2="PERU2020",PERU2020!D13)))))))) -> 46269 | L13: =IF($C$2=2,'2'!E13,IF($C$2=3,'3'!E13,IF($C$2=4,'4'!E13,IF($C$2=5,'5'!E13,IF($C$2=6,'6'!E13,IF($C$2=8,'8'!E13,IF($C$2=9,'9'!E13,IF($C$2="PERU2020",PERU2020!E13)))))))) -> 31326 | M13: =IF($C$2=2,'2'!F13,IF($C$2=3,'3'!F13,IF($C$2=4,'4'!F13,IF($C$2=5,'5'!F13,IF($C$2=6,'6'!F13,IF($C$2=8,'8'!F13,IF($C$2=9,'9'!F13,IF($C$2="PERU2020",PERU2020!F13)))))))) -> 21643 | N13: =IF($C$2=2,'2'!G13,IF($C$2=3,'3'!G13,IF($C$2=4,'4'!G13,IF($C$2=5,'5'!G13,IF($C$2=6,'6'!G13,IF($C$2=8,'8'!G13,IF($C$2=9,'9'!G13,IF($C$2="PERU2020",PERU2020!G13)))))))) -> 14687 | O13: =IF($C$2=2,'2'!H13,IF($C$2=3,'3'!H13,IF($C$2=4,'4'!H13,IF($C$2=5,'5'!H13,IF($C$2=6,'6'!H13,IF($C$2=8,'8'!H13,IF($C$2=9,'9'!H13,IF($C$2="PERU2020",PERU2020!H13)))))))) -> 11552 | Q13: 46269 | R13: 31326 | S13: 21643 | T13: 14687 | U13: 11552
A14: 45 | B14: 45-49 | D14: 51738 | E14: 35032 | F14: 24197 | G14: 16420 | H14: 12928 | K14: =IF($C$2=2,'2'!D14,IF($C$2=3,'3'!D14,IF($C$2=4,'4'!D14,IF($C$2=5,'5'!D14,IF($C$2=6,'6'!D14,IF($C$2=8,'8'!D14,IF($C$2=9,'9'!D14,IF($C$2="PERU2020",PERU2020!D14)))))))) -> 51738 | L14: =IF($C$2=2,'2'!E14,IF($C$2=3,'3'!E14,IF($C$2=4,'4'!E14,IF($C$2=5,'5'!E14,IF($C$2=6,'6'!E14,IF($C$2=8,'8'!E14,IF($C$2=9,'9'!E14,IF($C$2="PERU2020",PERU2020!E14)))))))) -> 35032 | M14: =IF($C$2=2,'2'!F14,IF($C$2=3,'3'!F14,IF($C$2=4,'4'!F14,IF($C$2=5,'5'!F14,IF($C$2=6,'6'!F14,IF($C$2=8,'8'!F14,IF($C$2=9,'9'!F14,IF($C$2="PERU2020",PERU2020!F14)))))))) -> 24197 | N14: =IF($C$2=2,'2'!G14,IF($C$2=3,'3'!G14,IF($C$2=4,'4'!G14,IF($C$2=5,'5'!G14,IF($C$2=6,'6'!G14,IF($C$2=8,'8'!G14,IF($C$2=9,'9'!G14,IF($C$2="PERU2020",PERU2020!G14)))))))) -> 16420 | O14: =IF($C$2=2,'2'!H14,IF($C$2=3,'3'!H14,IF($C$2=4,'4'!H14,IF($C$2=5,'5'!H14,IF($C$2=6,'6'!H14,IF($C$2=8,'8'!H14,IF($C$2=9,'9'!H14,IF($C$2="PERU2020",PERU2020!H14)))))))) -> 12928 | Q14: 51738 | R14: 35032 | S14: 24197 | T14: 16420 | U14: 12928
A15: 50 | B15: 50-54 | D15: 66220 | E15: 45983 | F15: 31589 | G15: 23197 | H15: 18282 | K15: =IF($C$2=2,'2'!D15,IF($C$2=3,'3'!D15,IF($C$2=4,'4'!D15,IF($C$2=5,'5'!D15,IF($C$2=6,'6'!D15,IF($C$2=8,'8'!D15,IF($C$2=9,'9'!D15,IF($C$2="PERU2020",PERU2020!D15)))))))) -> 66220 | L15: =IF($C$2=2,'2'!E15,IF($C$2=3,'3'!E15,IF($C$2=4,'4'!E15,IF($C$2=5,'5'!E15,IF($C$2=6,'6'!E15,IF($C$2=8,'8'!E15,IF($C$2=9,'9'!E15,IF($C$2="PERU2020",PERU2020!E15)))))))) -> 45983 | M15: =IF($C$2=2,'2'!F15,IF($C$2=3,'3'!F15,IF($C$2=4,'4'!F15,IF($C$2=5,'5'!F15,IF($C$2=6,'6'!F15,IF($C$2=8,'8'!F15,IF($C$2=9,'9'!F15,IF($C$2="PERU2020",PERU2020!F15)))))))) -> 31589 | N15: =IF($C$2=2,'2'!G15,IF($C$2=3,'3'!G15,IF($C$2=4,'4'!G15,IF($C$2=5,'5'!G15,IF($C$2=6,'6'!G15,IF($C$2=8,'8'!G15,IF($C$2=9,'9'!G15,IF($C$2="PERU2020",PERU2020!G15)))))))) -> 23197 | O15: =IF($C$2=2,'2'!H15,IF($C$2=3,'3'!H15,IF($C$2=4,'4'!H15,IF($C$2=5,'5'!H15,IF($C$2=6,'6'!H15,IF($C$2=8,'8'!H15,IF($C$2=9,'9'!H15,IF($C$2="PERU2020",PERU2020!H15)))))))) -> 18282 | Q15: 66220 | R15: 45983 | S15: 31589 | T15: 23197 | U15: 18282
A16: 55 | B16: 55-59 | D16: 70466 | E16: 48930 | F16: 33611 | G16: 24692 | H16: 19465 | K16: =IF($C$2=2,'2'!D16,IF($C$2=3,'3'!D16,IF($C$2=4,'4'!D16,IF($C$2=5,'5'!D16,IF($C$2=6,'6'!D16,IF($C$2=8,'8'!D16,IF($C$2=9,'9'!D16,IF($C$2="PERU2020",PERU2020!D16)))))))) -> 70466 | L16: =IF($C$2=2,'2'!E16,IF($C$2=3,'3'!E16,IF($C$2=4,'4'!E16,IF($C$2=5,'5'!E16,IF($C$2=6,'6'!E16,IF($C$2=8,'8'!E16,IF($C$2=9,'9'!E16,IF($C$2="PERU2020",PERU2020!E16)))))))) -> 48930 | M16: =IF($C$2=2,'2'!F16,IF($C$2=3,'3'!F16,IF($C$2=4,'4'!F16,IF($C$2=5,'5'!F16,IF($C$2=6,'6'!F16,IF($C$2=8,'8'!F16,IF($C$2=9,'9'!F16,IF($C$2="PERU2020",PERU2020!F16)))))))) -> 33611 | N16: =IF($C$2=2,'2'!G16,IF($C$2=3,'3'!G16,IF($C$2=4,'4'!G16,IF($C$2=5,'5'!G16,IF($C$2=6,'6'!G16,IF($C$2=8,'8'!G16,IF($C$2=9,'9'!G16,IF($C$2="PERU2020",PERU2020!G16)))))))) -> 24692 | O16: =IF($C$2=2,'2'!H16,IF($C$2=3,'3'!H16,IF($C$2=4,'4'!H16,IF($C$2=5,'5'!H16,IF($C$2=6,'6'!H16,IF($C$2=8,'8'!H16,IF($C$2=9,'9'!H16,IF($C$2="PERU2020",PERU2020!H16)))))))) -> 19465 | Q16: 70466 | R16: 48930 | S16: 33611 | T16: 24692 | U16: 19465
A17: 60 | B17: 60 | D17: 76771 | E17: 53395 | F17: 38687 | G17: 29756 | H17: 24188 | K17: =IF($C$2=2,'2'!D17,IF($C$2=3,'3'!D17,IF($C$2=4,'4'!D17,IF($C$2=5,'5'!D17,IF($C$2=6,'6'!D17,IF($C$2=8,'8'!D17,IF($C$2=9,'9'!D17,IF($C$2="PERU2020",PERU2020!D17)))))))) -> 76771 | L17: =IF($C$2=2,'2'!E17,IF($C$2=3,'3'!E17,IF($C$2=4,'4'!E17,IF($C$2=5,'5'!E17,IF($C$2=6,'6'!E17,IF($C$2=8,'8'!E17,IF($C$2=9,'9'!E17,IF($C$2="PERU2020",PERU2020!E17)))))))) -> 53395 | M17: =IF($C$2=2,'2'!F17,IF($C$2=3,'3'!F17,IF($C$2=4,'4'!F17,IF($C$2=5,'5'!F17,IF($C$2=6,'6'!F17,IF($C$2=8,'8'!F17,IF($C$2=9,'9'!F17,IF($C$2="PERU2020",PERU2020!F17)))))))) -> 38687 | N17: =IF($C$2=2,'2'!G17,IF($C$2=3,'3'!G17,IF($C$2=4,'4'!G17,IF($C$2=5,'5'!G17,IF($C$2=6,'6'!G17,IF($C$2=8,'8'!G17,IF($C$2=9,'9'!G17,IF($C$2="PERU2020",PERU2020!G17)))))))) -> 29756 | O17: =IF($C$2=2,'2'!H17,IF($C$2=3,'3'!H17,IF($C$2=4,'4'!H17,IF($C$2=5,'5'!H17,IF($C$2=6,'6'!H17,IF($C$2=8,'8'!H17,IF($C$2=9,'9'!H17,IF($C$2="PERU2020",PERU2020!H17)))))))) -> 24188 | Q17: 76771 | R17: 53395 | S17: 38687 | T17: 29756 | U17: 24188
A18: 61 | B18: 61 | D18: 82481 | E18: 57366 | F18: 41549 | G18: 31989 | H18: 25997 | K18: =IF($C$2=2,'2'!D18,IF($C$2=3,'3'!D18,IF($C$2=4,'4'!D18,IF($C$2=5,'5'!D18,IF($C$2=6,'6'!D18,IF($C$2=8,'8'!D18,IF($C$2=9,'9'!D18,IF($C$2="PERU2020",PERU2020!D18)))))))) -> 82481 | L18: =IF($C$2=2,'2'!E18,IF($C$2=3,'3'!E18,IF($C$2=4,'4'!E18,IF($C$2=5,'5'!E18,IF($C$2=6,'6'!E18,IF($C$2=8,'8'!E18,IF($C$2=9,'9'!E18,IF($C$2="PERU2020",PERU2020!E18)))))))) -> 57366 | M18: =IF($C$2=2,'2'!F18,IF($C$2=3,'3'!F18,IF($C$2=4,'4'!F18,IF($C$2=5,'5'!F18,IF($C$2=6,'6'!F18,IF($C$2=8,'8'!F18,IF($C$2=9,'9'!F18,IF($C$2="PERU2020",PERU2020!F18)))))))) -> 41549 | N18: =IF($C$2=2,'2'!G18,IF($C$2=3,'3'!G18,IF($C$2=4,'4'!G18,IF($C$2=5,'5'!G18,IF($C$2=6,'6'!G18,IF($C$2=8,'8'!G18,IF($C$2=9,'9'!G18,IF($C$2="PERU2020",PERU2020!G18)))))))) -> 31989 | O18: =IF($C$2=2,'2'!H18,IF($C$2=3,'3'!H18,IF($C$2=4,'4'!H18,IF($C$2=5,'5'!H18,IF($C$2=6,'6'!H18,IF($C$2=8,'8'!H18,IF($C$2=9,'9'!H18,IF($C$2="PERU2020",PERU2020!H18)))))))) -> 25997 | Q18: 82481 | R18: 57366 | S18: 41549 | T18: 31989 | U18: 25997
A19: 62 | B19: 62 | D19: 90305 | E19: 62837 | F19: 45505 | G19: 35011 | H19: 28471 | K19: =IF($C$2=2,'2'!D19,IF($C$2=3,'3'!D19,IF($C$2=4,'4'!D19,IF($C$2=5,'5'!D19,IF($C$2=6,'6'!D19,IF($C$2=8,'8'!D19,IF($C$2=9,'9'!D19,IF($C$2="PERU2020",PERU2020!D19)))))))) -> 90305 | L19: =IF($C$2=2,'2'!E19,IF($C$2=3,'3'!E19,IF($C$2=4,'4'!E19,IF($C$2=5,'5'!E19,IF($C$2=6,'6'!E19,IF($C$2=8,'8'!E19,IF($C$2=9,'9'!E19,IF($C$2="PERU2020",PERU2020!E19)))))))) -> 62837 | M19: =IF($C$2=2,'2'!F19,IF($C$2=3,'3'!F19,IF($C$2=4,'4'!F19,IF($C$2=5,'5'!F19,IF($C$2=6,'6'!F19,IF($C$2=8,'8'!F19,IF($C$2=9,'9'!F19,IF($C$2="PERU2020",PERU2020!F19)))))))) -> 45505 | N19: =IF($C$2=2,'2'!G19,IF($C$2=3,'3'!G19,IF($C$2=4,'4'!G19,IF($C$2=5,'5'!G19,IF($C$2=6,'6'!G19,IF($C$2=8,'8'!G19,IF($C$2=9,'9'!G19,IF($C$2="PERU2020",PERU2020!G19)))))))) -> 35011 | O19: =IF($C$2=2,'2'!H19,IF($C$2=3,'3'!H19,IF($C$2=4,'4'!H19,IF($C$2=5,'5'!H19,IF($C$2=6,'6'!H19,IF($C$2=8,'8'!H19,IF($C$2=9,'9'!H19,IF($C$2="PERU2020",PERU2020!H19)))))))) -> 28471 | Q19: 90305 | R19: 62837 | S19: 45505 | T19: 35011 | U19: 28471
A20: 63 | B20: 63 | D20: 96023 | E20: 66806 | F20: 48379 | G20: 37241 | H20: 30272 | K20: =IF($C$2=2,'2'!D20,IF($C$2=3,'3'!D20,IF($C$2=4,'4'!D20,IF($C$2=5,'5'!D20,IF($C$2=6,'6'!D20,IF($C$2=8,'8'!D20,IF($C$2=9,'9'!D20,IF($C$2="PERU2020",PERU2020!D20)))))))) -> 96023 | L20: =IF($C$2=2,'2'!E20,IF($C$2=3,'3'!E20,IF($C$2=4,'4'!E20,IF($C$2=5,'5'!E20,IF($C$2=6,'6'!E20,IF($C$2=8,'8'!E20,IF($C$2=9,'9'!E20,IF($C$2="PERU2020",PERU2020!E20)))))))) -> 66806 | M20: =IF($C$2=2,'2'!F20,IF($C$2=3,'3'!F20,IF($C$2=4,'4'!F20,IF($C$2=5,'5'!F20,IF($C$2=6,'6'!F20,IF($C$2=8,'8'!F20,IF($C$2=9,'9'!F20,IF($C$2="PERU2020",PERU2020!F20)))))))) -> 48379 | N20: =IF($C$2=2,'2'!G20,IF($C$2=3,'3'!G20,IF($C$2=4,'4'!G20,IF($C$2=5,'5'!G20,IF($C$2=6,'6'!G20,IF($C$2=8,'8'!G20,IF($C$2=9,'9'!G20,IF($C$2="PERU2020",PERU2020!G20)))))))) -> 37241 | O20: =IF($C$2=2,'2'!H20,IF($C$2=3,'3'!H20,IF($C$2=4,'4'!H20,IF($C$2=5,'5'!H20,IF($C$2=6,'6'!H20,IF($C$2=8,'8'!H20,IF($C$2=9,'9'!H20,IF($C$2="PERU2020",PERU2020!H20)))))))) -> 30272 | Q20: 96023 | R20: 66806 | S20: 48379 | T20: 37241 | U20: 30272
A21: 64 | B21: 64 | D21: 103884 | E21: 72298 | F21: 52353 | G21: 40290 | H21: 32769 | K21: =IF($C$2=2,'2'!D21,IF($C$2=3,'3'!D21,IF($C$2=4,'4'!D21,IF($C$2=5,'5'!D21,IF($C$2=6,'6'!D21,IF($C$2=8,'8'!D21,IF($C$2=9,'9'!D21,IF($C$2="PERU2020",PERU2020!D21)))))))) -> 103884 | L21: =IF($C$2=2,'2'!E21,IF($C$2=3,'3'!E21,IF($C$2=4,'4'!E21,IF($C$2=5,'5'!E21,IF($C$2=6,'6'!E21,IF($C$2=8,'8'!E21,IF($C$2=9,'9'!E21,IF($C$2="PERU2020",PERU2020!E21)))))))) -> 72298 | M21: =IF($C$2=2,'2'!F21,IF($C$2=3,'3'!F21,IF($C$2=4,'4'!F21,IF($C$2=5,'5'!F21,IF($C$2=6,'6'!F21,IF($C$2=8,'8'!F21,IF($C$2=9,'9'!F21,IF($C$2="PERU2020",PERU2020!F21)))))))) -> 52353 | N21: =IF($C$2=2,'2'!G21,IF($C$2=3,'3'!G21,IF($C$2=4,'4'!G21,IF($C$2=5,'5'!G21,IF($C$2=6,'6'!G21,IF($C$2=8,'8'!G21,IF($C$2=9,'9'!G21,IF($C$2="PERU2020",PERU2020!G21)))))))) -> 40290 | O21: =IF($C$2=2,'2'!H21,IF($C$2=3,'3'!H21,IF($C$2=4,'4'!H21,IF($C$2=5,'5'!H21,IF($C$2=6,'6'!H21,IF($C$2=8,'8'!H21,IF($C$2=9,'9'!H21,IF($C$2="PERU2020",PERU2020!H21)))))))) -> 32769 | Q21: 103884 | R21: 72298 | S21: 52353 | T21: 40290 | U21: 32769
A22: 65 | B22: 65 | D22: 135812 | E22: 94304 | F22: 66211 | G22: 53747 | H22: 46222 | K22: =IF($C$2=2,'2'!D22,IF($C$2=3,'3'!D22,IF($C$2=4,'4'!D22,IF($C$2=5,'5'!D22,IF($C$2=6,'6'!D22,IF($C$2=8,'8'!D22,IF($C$2=9,'9'!D22,IF($C$2="PERU2020",PERU2020!D22)))))))) -> 135812 | L22: =IF($C$2=2,'2'!E22,IF($C$2=3,'3'!E22,IF($C$2=4,'4'!E22,IF($C$2=5,'5'!E22,IF($C$2=6,'6'!E22,IF($C$2=8,'8'!E22,IF($C$2=9,'9'!E22,IF($C$2="PERU2020",PERU2020!E22)))))))) -> 94304 | M22: =IF($C$2=2,'2'!F22,IF($C$2=3,'3'!F22,IF($C$2=4,'4'!F22,IF($C$2=5,'5'!F22,IF($C$2=6,'6'!F22,IF($C$2=8,'8'!F22,IF($C$2=9,'9'!F22,IF($C$2="PERU2020",PERU2020!F22)))))))) -> 66211 | N22: =IF($C$2=2,'2'!G22,IF($C$2=3,'3'!G22,IF($C$2=4,'4'!G22,IF($C$2=5,'5'!G22,IF($C$2=6,'6'!G22,IF($C$2=8,'8'!G22,IF($C$2=9,'9'!G22,IF($C$2="PERU2020",PERU2020!G22)))))))) -> 53747 | O22: =IF($C$2=2,'2'!H22,IF($C$2=3,'3'!H22,IF($C$2=4,'4'!H22,IF($C$2=5,'5'!H22,IF($C$2=6,'6'!H22,IF($C$2=8,'8'!H22,IF($C$2=9,'9'!H22,IF($C$2="PERU2020",PERU2020!H22)))))))) -> 46222 | Q22: 135812 | R22: 94304 | S22: 66211 | T22: 53747 | U22: 46222
A23: 66 | B23: 66 | D23: 157783 | E23: 109603 | F23: 76946 | G23: 62479 | H23: 53711 | K23: =IF($C$2=2,'2'!D23,IF($C$2=3,'3'!D23,IF($C$2=4,'4'!D23,IF($C$2=5,'5'!D23,IF($C$2=6,'6'!D23,IF($C$2=8,'8'!D23,IF($C$2=9,'9'!D23,IF($C$2="PERU2020",PERU2020!D23)))))))) -> 157783 | L23: =IF($C$2=2,'2'!E23,IF($C$2=3,'3'!E23,IF($C$2=4,'4'!E23,IF($C$2=5,'5'!E23,IF($C$2=6,'6'!E23,IF($C$2=8,'8'!E23,IF($C$2=9,'9'!E23,IF($C$2="PERU2020",PERU2020!E23)))))))) -> 109603 | M23: =IF($C$2=2,'2'!F23,IF($C$2=3,'3'!F23,IF($C$2=4,'4'!F23,IF($C$2=5,'5'!F23,IF($C$2=6,'6'!F23,IF($C$2=8,'8'!F23,IF($C$2=9,'9'!F23,IF($C$2="PERU2020",PERU2020!F23)))))))) -> 76946 | N23: =IF($C$2=2,'2'!G23,IF($C$2=3,'3'!G23,IF($C$2=4,'4'!G23,IF($C$2=5,'5'!G23,IF($C$2=6,'6'!G23,IF($C$2=8,'8'!G23,IF($C$2=9,'9'!G23,IF($C$2="PERU2020",PERU2020!G23)))))))) -> 62479 | O23: =IF($C$2=2,'2'!H23,IF($C$2=3,'3'!H23,IF($C$2=4,'4'!H23,IF($C$2=5,'5'!H23,IF($C$2=6,'6'!H23,IF($C$2=8,'8'!H23,IF($C$2=9,'9'!H23,IF($C$2="PERU2020",PERU2020!H23)))))))) -> 53711 | Q23: 157783 | R23: 109603 | S23: 76946 | T23: 62479 | U23: 53711
A24: 67 | B24: 67 | D24: 172345 | E24: 119704 | F24: 84053 | G24: 68224 | H24: 58675 | K24: =IF($C$2=2,'2'!D24,IF($C$2=3,'3'!D24,IF($C$2=4,'4'!D24,IF($C$2=5,'5'!D24,IF($C$2=6,'6'!D24,IF($C$2=8,'8'!D24,IF($C$2=9,'9'!D24,IF($C$2="PERU2020",PERU2020!D24)))))))) -> 172345 | L24: =IF($C$2=2,'2'!E24,IF($C$2=3,'3'!E24,IF($C$2=4,'4'!E24,IF($C$2=5,'5'!E24,IF($C$2=6,'6'!E24,IF($C$2=8,'8'!E24,IF($C$2=9,'9'!E24,IF($C$2="PERU2020",PERU2020!E24)))))))) -> 119704 | M24: =IF($C$2=2,'2'!F24,IF($C$2=3,'3'!F24,IF($C$2=4,'4'!F24,IF($C$2=5,'5'!F24,IF($C$2=6,'6'!F24,IF($C$2=8,'8'!F24,IF($C$2=9,'9'!F24,IF($C$2="PERU2020",PERU2020!F24)))))))) -> 84053 | N24: =IF($C$2=2,'2'!G24,IF($C$2=3,'3'!G24,IF($C$2=4,'4'!G24,IF($C$2=5,'5'!G24,IF($C$2=6,'6'!G24,IF($C$2=8,'8'!G24,IF($C$2=9,'9'!G24,IF($C$2="PERU2020",PERU2020!G24)))))))) -> 68224 | O24: =IF($C$2=2,'2'!H24,IF($C$2=3,'3'!H24,IF($C$2=4,'4'!H24,IF($C$2=5,'5'!H24,IF($C$2=6,'6'!H24,IF($C$2=8,'8'!H24,IF($C$2=9,'9'!H24,IF($C$2="PERU2020",PERU2020!H24)))))))) -> 58675 | Q24: 172345 | R24: 119704 | S24: 84053 | T24: 68224 | U24: 58675
A25: 68 | B25: 68 | D25: 190842 | E25: 132550 | F25: 93063 | G25: 75567 | H25: 64979 | K25: =IF($C$2=2,'2'!D25,IF($C$2=3,'3'!D25,IF($C$2=4,'4'!D25,IF($C$2=5,'5'!D25,IF($C$2=6,'6'!D25,IF($C$2=8,'8'!D25,IF($C$2=9,'9'!D25,IF($C$2="PERU2020",PERU2020!D25)))))))) -> 190842 | L25: =IF($C$2=2,'2'!E25,IF($C$2=3,'3'!E25,IF($C$2=4,'4'!E25,IF($C$2=5,'5'!E25,IF($C$2=6,'6'!E25,IF($C$2=8,'8'!E25,IF($C$2=9,'9'!E25,IF($C$2="PERU2020",PERU2020!E25)))))))) -> 132550 | M25: =IF($C$2=2,'2'!F25,IF($C$2=3,'3'!F25,IF($C$2=4,'4'!F25,IF($C$2=5,'5'!F25,IF($C$2=6,'6'!F25,IF($C$2=8,'8'!F25,IF($C$2=9,'9'!F25,IF($C$2="PERU2020",PERU2020!F25)))))))) -> 93063 | N25: =IF($C$2=2,'2'!G25,IF($C$2=3,'3'!G25,IF($C$2=4,'4'!G25,IF($C$2=5,'5'!G25,IF($C$2=6,'6'!G25,IF($C$2=8,'8'!G25,IF($C$2=9,'9'!G25,IF($C$2="PERU2020",PERU2020!G25)))))))) -> 75567 | O25: =IF($C$2=2,'2'!H25,IF($C$2=3,'3'!H25,IF($C$2=4,'4'!H25,IF($C$2=5,'5'!H25,IF($C$2=6,'6'!H25,IF($C$2=8,'8'!H25,IF($C$2=9,'9'!H25,IF($C$2="PERU2020",PERU2020!H25)))))))) -> 64979 | Q25: 190842 | R25: 132550 | S25: 93063 | T25: 75567 | U25: 64979
A26: 69 | B26: 69 | D26: 209982 | E26: 145831 | F26: 102405 | G26: 83139 | H26: 71509 | K26: =IF($C$2=2,'2'!D26,IF($C$2=3,'3'!D26,IF($C$2=4,'4'!D26,IF($C$2=5,'5'!D26,IF($C$2=6,'6'!D26,IF($C$2=8,'8'!D26,IF($C$2=9,'9'!D26,IF($C$2="PERU2020",PERU2020!D26)))))))) -> 209982 | L26: =IF($C$2=2,'2'!E26,IF($C$2=3,'3'!E26,IF($C$2=4,'4'!E26,IF($C$2=5,'5'!E26,IF($C$2=6,'6'!E26,IF($C$2=8,'8'!E26,IF($C$2=9,'9'!E26,IF($C$2="PERU2020",PERU2020!E26)))))))) -> 145831 | M26: =IF($C$2=2,'2'!F26,IF($C$2=3,'3'!F26,IF($C$2=4,'4'!F26,IF($C$2=5,'5'!F26,IF($C$2=6,'6'!F26,IF($C$2=8,'8'!F26,IF($C$2=9,'9'!F26,IF($C$2="PERU2020",PERU2020!F26)))))))) -> 102405 | N26: =IF($C$2=2,'2'!G26,IF($C$2=3,'3'!G26,IF($C$2=4,'4'!G26,IF($C$2=5,'5'!G26,IF($C$2=6,'6'!G26,IF($C$2=8,'8'!G26,IF($C$2=9,'9'!G26,IF($C$2="PERU2020",PERU2020!G26)))))))) -> 83139 | O26: =IF($C$2=2,'2'!H26,IF($C$2=3,'3'!H26,IF($C$2=4,'4'!H26,IF($C$2=5,'5'!H26,IF($C$2=6,'6'!H26,IF($C$2=8,'8'!H26,IF($C$2=9,'9'!H26,IF($C$2="PERU2020",PERU2020!H26)))))))) -> 71509 | Q26: 209982 | R26: 145831 | S26: 102405 | T26: 83139 | U26: 71509
A27: 70 | B27: 70 | D27: 258452 | E27: 177594 | F27: 120568 | G27: 96904 | H27: 84114 | K27: =IF($C$2=2,'2'!D27,IF($C$2=3,'3'!D27,IF($C$2=4,'4'!D27,IF($C$2=5,'5'!D27,IF($C$2=6,'6'!D27,IF($C$2=8,'8'!D27,IF($C$2=9,'9'!D27,IF($C$2="PERU2020",PERU2020!D27)))))))) -> 258452 | L27: =IF($C$2=2,'2'!E27,IF($C$2=3,'3'!E27,IF($C$2=4,'4'!E27,IF($C$2=5,'5'!E27,IF($C$2=6,'6'!E27,IF($C$2=8,'8'!E27,IF($C$2=9,'9'!E27,IF($C$2="PERU2020",PERU2020!E27)))))))) -> 177594 | M27: =IF($C$2=2,'2'!F27,IF($C$2=3,'3'!F27,IF($C$2=4,'4'!F27,IF($C$2=5,'5'!F27,IF($C$2=6,'6'!F27,IF($C$2=8,'8'!F27,IF($C$2=9,'9'!F27,IF($C$2="PERU2020",PERU2020!F27)))))))) -> 120568 | N27: =IF($C$2=2,'2'!G27,IF($C$2=3,'3'!G27,IF($C$2=4,'4'!G27,IF($C$2=5,'5'!G27,IF($C$2=6,'6'!G27,IF($C$2=8,'8'!G27,IF($C$2=9,'9'!G27,IF($C$2="PERU2020",PERU2020!G27)))))))) -> 96904 | O27: =IF($C$2=2,'2'!H27,IF($C$2=3,'3'!H27,IF($C$2=4,'4'!H27,IF($C$2=5,'5'!H27,IF($C$2=6,'6'!H27,IF($C$2=8,'8'!H27,IF($C$2=9,'9'!H27,IF($C$2="PERU2020",PERU2020!H27)))))))) -> 84114 | Q27: 258452 | R27: 177594 | S27: 120568 | T27: 96904 | U27: 84114
A28: 71 | B28: 71 | D28: 268594 | E28: 184561 | F28: 125300 | G28: 100708 | H28: 87422 | K28: =IF($C$2=2,'2'!D28,IF($C$2=3,'3'!D28,IF($C$2=4,'4'!D28,IF($C$2=5,'5'!D28,IF($C$2=6,'6'!D28,IF($C$2=8,'8'!D28,IF($C$2=9,'9'!D28,IF($C$2="PERU2020",PERU2020!D28)))))))) -> 268594 | L28: =IF($C$2=2,'2'!E28,IF($C$2=3,'3'!E28,IF($C$2=4,'4'!E28,IF($C$2=5,'5'!E28,IF($C$2=6,'6'!E28,IF($C$2=8,'8'!E28,IF($C$2=9,'9'!E28,IF($C$2="PERU2020",PERU2020!E28)))))))) -> 184561 | M28: =IF($C$2=2,'2'!F28,IF($C$2=3,'3'!F28,IF($C$2=4,'4'!F28,IF($C$2=5,'5'!F28,IF($C$2=6,'6'!F28,IF($C$2=8,'8'!F28,IF($C$2=9,'9'!F28,IF($C$2="PERU2020",PERU2020!F28)))))))) -> 125300 | N28: =IF($C$2=2,'2'!G28,IF($C$2=3,'3'!G28,IF($C$2=4,'4'!G28,IF($C$2=5,'5'!G28,IF($C$2=6,'6'!G28,IF($C$2=8,'8'!G28,IF($C$2=9,'9'!G28,IF($C$2="PERU2020",PERU2020!G28)))))))) -> 100708 | O28: =IF($C$2=2,'2'!H28,IF($C$2=3,'3'!H28,IF($C$2=4,'4'!H28,IF($C$2=5,'5'!H28,IF($C$2=6,'6'!H28,IF($C$2=8,'8'!H28,IF($C$2=9,'9'!H28,IF($C$2="PERU2020",PERU2020!H28)))))))) -> 87422 | Q28: 268594 | R28: 184561 | S28: 125300 | T28: 100708 | U28: 87422
A29: 72 | B29: 72 | D29: 276209 | E29: 189786 | F29: 128835 | G29: 103550 | H29: 89901 | K29: =IF($C$2=2,'2'!D29,IF($C$2=3,'3'!D29,IF($C$2=4,'4'!D29,IF($C$2=5,'5'!D29,IF($C$2=6,'6'!D29,IF($C$2=8,'8'!D29,IF($C$2=9,'9'!D29,IF($C$2="PERU2020",PERU2020!D29)))))))) -> 276209 | L29: =IF($C$2=2,'2'!E29,IF($C$2=3,'3'!E29,IF($C$2=4,'4'!E29,IF($C$2=5,'5'!E29,IF($C$2=6,'6'!E29,IF($C$2=8,'8'!E29,IF($C$2=9,'9'!E29,IF($C$2="PERU2020",PERU2020!E29)))))))) -> 189786 | M29: =IF($C$2=2,'2'!F29,IF($C$2=3,'3'!F29,IF($C$2=4,'4'!F29,IF($C$2=5,'5'!F29,IF($C$2=6,'6'!F29,IF($C$2=8,'8'!F29,IF($C$2=9,'9'!F29,IF($C$2="PERU2020",PERU2020!F29)))))))) -> 128835 | N29: =IF($C$2=2,'2'!G29,IF($C$2=3,'3'!G29,IF($C$2=4,'4'!G29,IF($C$2=5,'5'!G29,IF($C$2=6,'6'!G29,IF($C$2=8,'8'!G29,IF($C$2=9,'9'!G29,IF($C$2="PERU2020",PERU2020!G29)))))))) -> 103550 | O29: =IF($C$2=2,'2'!H29,IF($C$2=3,'3'!H29,IF($C$2=4,'4'!H29,IF($C$2=5,'5'!H29,IF($C$2=6,'6'!H29,IF($C$2=8,'8'!H29,IF($C$2=9,'9'!H29,IF($C$2="PERU2020",PERU2020!H29)))))))) -> 89901 | Q29: 276209 | R29: 189786 | S29: 128835 | T29: 103550 | U29: 89901
A30: 73 | B30: 73 | D30: 286350 | E30: 196773 | F30: 133565 | G30: 107377 | H30: 93210 | K30: =IF($C$2=2,'2'!D30,IF($C$2=3,'3'!D30,IF($C$2=4,'4'!D30,IF($C$2=5,'5'!D30,IF($C$2=6,'6'!D30,IF($C$2=8,'8'!D30,IF($C$2=9,'9'!D30,IF($C$2="PERU2020",PERU2020!D30)))))))) -> 286350 | L30: =IF($C$2=2,'2'!E30,IF($C$2=3,'3'!E30,IF($C$2=4,'4'!E30,IF($C$2=5,'5'!E30,IF($C$2=6,'6'!E30,IF($C$2=8,'8'!E30,IF($C$2=9,'9'!E30,IF($C$2="PERU2020",PERU2020!E30)))))))) -> 196773 | M30: =IF($C$2=2,'2'!F30,IF($C$2=3,'3'!F30,IF($C$2=4,'4'!F30,IF($C$2=5,'5'!F30,IF($C$2=6,'6'!F30,IF($C$2=8,'8'!F30,IF($C$2=9,'9'!F30,IF($C$2="PERU2020",PERU2020!F30)))))))) -> 133565 | N30: =IF($C$2=2,'2'!G30,IF($C$2=3,'3'!G30,IF($C$2=4,'4'!G30,IF($C$2=5,'5'!G30,IF($C$2=6,'6'!G30,IF($C$2=8,'8'!G30,IF($C$2=9,'9'!G30,IF($C$2="PERU2020",PERU2020!G30)))))))) -> 107377 | O30: =IF($C$2=2,'2'!H30,IF($C$2=3,'3'!H30,IF($C$2=4,'4'!H30,IF($C$2=5,'5'!H30,IF($C$2=6,'6'!H30,IF($C$2=8,'8'!H30,IF($C$2=9,'9'!H30,IF($C$2="PERU2020",PERU2020!H30)))))))) -> 93210 | Q30: 286350 | R30: 196773 | S30: 133565 | T30: 107377 | U30: 93210
A31: 74 | B31: 74 | D31: 291424 | E31: 200242 | F31: 135952 | G31: 109271 | H31: 94851 | K31: =IF($C$2=2,'2'!D31,IF($C$2=3,'3'!D31,IF($C$2=4,'4'!D31,IF($C$2=5,'5'!D31,IF($C$2=6,'6'!D31,IF($C$2=8,'8'!D31,IF($C$2=9,'9'!D31,IF($C$2="PERU2020",PERU2020!D31)))))))) -> 291424 | L31: =IF($C$2=2,'2'!E31,IF($C$2=3,'3'!E31,IF($C$2=4,'4'!E31,IF($C$2=5,'5'!E31,IF($C$2=6,'6'!E31,IF($C$2=8,'8'!E31,IF($C$2=9,'9'!E31,IF($C$2="PERU2020",PERU2020!E31)))))))) -> 200242 | M31: =IF($C$2=2,'2'!F31,IF($C$2=3,'3'!F31,IF($C$2=4,'4'!F31,IF($C$2=5,'5'!F31,IF($C$2=6,'6'!F31,IF($C$2=8,'8'!F31,IF($C$2=9,'9'!F31,IF($C$2="PERU2020",PERU2020!F31)))))))) -> 135952 | N31: =IF($C$2=2,'2'!G31,IF($C$2=3,'3'!G31,IF($C$2=4,'4'!G31,IF($C$2=5,'5'!G31,IF($C$2=6,'6'!G31,IF($C$2=8,'8'!G31,IF($C$2=9,'9'!G31,IF($C$2="PERU2020",PERU2020!G31)))))))) -> 109271 | O31: =IF($C$2=2,'2'!H31,IF($C$2=3,'3'!H31,IF($C$2=4,'4'!H31,IF($C$2=5,'5'!H31,IF($C$2=6,'6'!H31,IF($C$2=8,'8'!H31,IF($C$2=9,'9'!H31,IF($C$2="PERU2020",PERU2020!H31)))))))) -> 94851 | Q31: 291424 | R31: 200242 | S31: 135952 | T31: 109271 | U31: 94851
A32: 75 | B32: 75+ | D32: 304120 | E32: 208960 | F32: 141853 | G32: 114034 | H32: 98986 | K32: =IF($C$2=2,'2'!D32,IF($C$2=3,'3'!D32,IF($C$2=4,'4'!D32,IF($C$2=5,'5'!D32,IF($C$2=6,'6'!D32,IF($C$2=8,'8'!D32,IF($C$2=9,'9'!D32,IF($C$2="PERU2020",PERU2020!D32)))))))) -> 304120 | L32: =IF($C$2=2,'2'!E32,IF($C$2=3,'3'!E32,IF($C$2=4,'4'!E32,IF($C$2=5,'5'!E32,IF($C$2=6,'6'!E32,IF($C$2=8,'8'!E32,IF($C$2=9,'9'!E32,IF($C$2="PERU2020",PERU2020!E32)))))))) -> 208960 | M32: =IF($C$2=2,'2'!F32,IF($C$2=3,'3'!F32,IF($C$2=4,'4'!F32,IF($C$2=5,'5'!F32,IF($C$2=6,'6'!F32,IF($C$2=8,'8'!F32,IF($C$2=9,'9'!F32,IF($C$2="PERU2020",PERU2020!F32)))))))) -> 141853 | N32: =IF($C$2=2,'2'!G32,IF($C$2=3,'3'!G32,IF($C$2=4,'4'!G32,IF($C$2=5,'5'!G32,IF($C$2=6,'6'!G32,IF($C$2=8,'8'!G32,IF($C$2=9,'9'!G32,IF($C$2="PERU2020",PERU2020!G32)))))))) -> 114034 | O32: =IF($C$2=2,'2'!H32,IF($C$2=3,'3'!H32,IF($C$2=4,'4'!H32,IF($C$2=5,'5'!H32,IF($C$2=6,'6'!H32,IF($C$2=8,'8'!H32,IF($C$2=9,'9'!H32,IF($C$2="PERU2020",PERU2020!H32)))))))) -> 98986 | Q32: 304120 | R32: 208960 | S32: 141853 | T32: 114034 | U32: 98986
A33: 1 | B33: 1 Child | D33: 11361 | E33: 8367 | F33: 6281 | G33: 4775 | H33: 3723 | K33: =IF($C$2=2,'2'!D33,IF($C$2=3,'3'!D33,IF($C$2=4,'4'!D33,IF($C$2=5,'5'!D33,IF($C$2=6,'6'!D33,IF($C$2=8,'8'!D33,IF($C$2=9,'9'!D33,IF($C$2="PERU2020",PERU2020!D33)))))))) -> 11361 | L33: =IF($C$2=2,'2'!E33,IF($C$2=3,'3'!E33,IF($C$2=4,'4'!E33,IF($C$2=5,'5'!E33,IF($C$2=6,'6'!E33,IF($C$2=8,'8'!E33,IF($C$2=9,'9'!E33,IF($C$2="PERU2020",PERU2020!E33)))))))) -> 8367 | M33: =IF($C$2=2,'2'!F33,IF($C$2=3,'3'!F33,IF($C$2=4,'4'!F33,IF($C$2=5,'5'!F33,IF($C$2=6,'6'!F33,IF($C$2=8,'8'!F33,IF($C$2=9,'9'!F33,IF($C$2="PERU2020",PERU2020!F33)))))))) -> 6281 | N33: =IF($C$2=2,'2'!G33,IF($C$2=3,'3'!G33,IF($C$2=4,'4'!G33,IF($C$2=5,'5'!G33,IF($C$2=6,'6'!G33,IF($C$2=8,'8'!G33,IF($C$2=9,'9'!G33,IF($C$2="PERU2020",PERU2020!G33)))))))) -> 4775 | O33: =IF($C$2=2,'2'!H33,IF($C$2=3,'3'!H33,IF($C$2=4,'4'!H33,IF($C$2=5,'5'!H33,IF($C$2=6,'6'!H33,IF($C$2=8,'8'!H33,IF($C$2=9,'9'!H33,IF($C$2="PERU2020",PERU2020!H33)))))))) -> 3723 | Q33: =(K33)*$L$2 -> 11361 | R33: =(L33)*$L$2 -> 8367 | S33: 6281 | T33: 4775 | U33: 3723
A34: 2 | B34: 2 Children | D34: 18066 | E34: 13326 | F34: 9993 | G34: 7581 | H34: 5894 | K34: =IF($C$2=2,'2'!D34,IF($C$2=3,'3'!D34,IF($C$2=4,'4'!D34,IF($C$2=5,'5'!D34,IF($C$2=6,'6'!D34,IF($C$2=8,'8'!D34,IF($C$2=9,'9'!D34,IF($C$2="PERU2020",PERU2020!D34)))))))) -> 18066 | L34: =IF($C$2=2,'2'!E34,IF($C$2=3,'3'!E34,IF($C$2=4,'4'!E34,IF($C$2=5,'5'!E34,IF($C$2=6,'6'!E34,IF($C$2=8,'8'!E34,IF($C$2=9,'9'!E34,IF($C$2="PERU2020",PERU2020!E34)))))))) -> 13326 | M34: =IF($C$2=2,'2'!F34,IF($C$2=3,'3'!F34,IF($C$2=4,'4'!F34,IF($C$2=5,'5'!F34,IF($C$2=6,'6'!F34,IF($C$2=8,'8'!F34,IF($C$2=9,'9'!F34,IF($C$2="PERU2020",PERU2020!F34)))))))) -> 9993 | N34: =IF($C$2=2,'2'!G34,IF($C$2=3,'3'!G34,IF($C$2=4,'4'!G34,IF($C$2=5,'5'!G34,IF($C$2=6,'6'!G34,IF($C$2=8,'8'!G34,IF($C$2=9,'9'!G34,IF($C$2="PERU2020",PERU2020!G34)))))))) -> 7581 | O34: =IF($C$2=2,'2'!H34,IF($C$2=3,'3'!H34,IF($C$2=4,'4'!H34,IF($C$2=5,'5'!H34,IF($C$2=6,'6'!H34,IF($C$2=8,'8'!H34,IF($C$2=9,'9'!H34,IF($C$2="PERU2020",PERU2020!H34)))))))) -> 5894 | Q34: =(K34)*$L$2 -> 18066 | R34: =(L34)*$L$2 -> 13326 | S34: =(M34)*$L$2 -> 9993 | T34: =(N34)*$L$2 -> 7581 | U34: =(O34)*$L$2 -> 5894
A35: 3 | B35: 3+ Children | D35: 26486 | E35: 19539 | F35: 14629 | G35: 11106 | H35: 8642 | K35: =IF($C$2=2,'2'!D35,IF($C$2=3,'3'!D35,IF($C$2=4,'4'!D35,IF($C$2=5,'5'!D35,IF($C$2=6,'6'!D35,IF($C$2=8,'8'!D35,IF($C$2=9,'9'!D35,IF($C$2="PERU2020",PERU2020!D35)))))))) -> 26486 | L35: =IF($C$2=2,'2'!E35,IF($C$2=3,'3'!E35,IF($C$2=4,'4'!E35,IF($C$2=5,'5'!E35,IF($C$2=6,'6'!E35,IF($C$2=8,'8'!E35,IF($C$2=9,'9'!E35,IF($C$2="PERU2020",PERU2020!E35)))))))) -> 19539 | M35: =IF($C$2=2,'2'!F35,IF($C$2=3,'3'!F35,IF($C$2=4,'4'!F35,IF($C$2=5,'5'!F35,IF($C$2=6,'6'!F35,IF($C$2=8,'8'!F35,IF($C$2=9,'9'!F35,IF($C$2="PERU2020",PERU2020!F35)))))))) -> 14629 | N35: =IF($C$2=2,'2'!G35,IF($C$2=3,'3'!G35,IF($C$2=4,'4'!G35,IF($C$2=5,'5'!G35,IF($C$2=6,'6'!G35,IF($C$2=8,'8'!G35,IF($C$2=9,'9'!G35,IF($C$2="PERU2020",PERU2020!G35)))))))) -> 11106 | O35: =IF($C$2=2,'2'!H35,IF($C$2=3,'3'!H35,IF($C$2=4,'4'!H35,IF($C$2=5,'5'!H35,IF($C$2=6,'6'!H35,IF($C$2=8,'8'!H35,IF($C$2=9,'9'!H35,IF($C$2="PERU2020",PERU2020!H35)))))))) -> 8642 | Q35: 26486 | R35: 19539 | S35: 14629 | T35: 11106 | U35: 8642
A36: 1 | B36: Rider Comp. Maternidad | D36: 0 | E36: 0 | F36: 225 | G36: 225 | H36: 225
A37: 1 | B37: Transplante de organos | D37: 0 | E37: 0 | F37: 0 | G37: 0 | H37: 0
A41: TARIFAS SEMESTRALES
A42: EDAD
D43: DW2 | E43: DW3 | F43: DW4 | G43: DW5 | H43: DW6
A44: 18 | B44: 18-24 | D44: =$G$2*D9 -> 17307.68 | E44: 11430.51 | F44: 7427.42 | G44: 4746.68 | H44: 3730.14
A45: 25 | B45: 25-29 | D45: 18153.03 | E45: 12632.55 | F45: 8225.6 | G45: 5263.43 | H45: 4133.47
A46: 30 | B46: 30-34 | D46: 18889.73 | E46: 13555.28 | F46: 9217.23 | G46: 6308.06 | H46: 4970.87
A47: 35 | B47: 35-39 | D47: 21150.71 | E47: 15172.31 | F47: 10338.71 | G47: 7075.5 | H47: 5568.71
A48: 40 | B48: 40-44 | D48: 24522.57 | E48: 16602.78 | F48: 11470.79 | G48: 7784.11 | H48: 6122.56
A49: 45 | B49: 45-49 | D49: 27421.14 | E49: 18566.96 | F49: 12824.41 | G49: 8702.6 | H49: 6851.84
A50: 50 | B50: 50-54 | D50: 35096.6 | E50: 24370.99 | F50: 16742.17 | G50: 12294.41 | H50: 9689.46
A51: 55 | B51: 55-59 | D51: 37346.98 | E51: 25932.9 | F51: 17813.83 | G51: 13086.76 | H51: 10316.45
A52: 60 | B52: 60 | D52: 40688.63 | E52: 28299.35 | F52: 20504.11 | G52: 15770.68 | H52: 12819.64
A53: 61 | B53: 61 | D53: 43714.93 | E53: 30403.98 | F53: 22020.97 | G53: 16954.17 | H53: 13778.41
A54: 62 | B54: 62 | D54: =$G$2*D19 -> 47861.65 | E54: 33303.61 | F54: 24117.65 | G54: 18555.83 | H54: 15089.63
A55: 63 | B55: 63 | D55: 50892.19 | E55: 35407.18 | F55: 25640.87 | G55: 19737.73 | H55: 16044.16
A56: 64 | B56: 64 | D56: 55058.52 | E56: 38317.94 | F56: 27747.09 | G56: 21353.7 | H56: 17367.57
A57: 65 | B57: 65 | D57: 71980.36 | E57: 49981.12 | F57: 35091.83 | G57: 28485.91 | H57: 24497.66
A58: 66 | B58: 66 | D58: 83624.99 | E58: 58089.59 | F58: 40781.38 | G58: 33113.87 | H58: 28466.83
A59: 67 | B59: 67 | D59: 91342.85 | E59: 63443.12 | F59: 44548.09 | G59: 36158.72 | H59: 31097.75
A60: 68 | B60: 68 | D60: 101146.26 | E60: 70251.5 | F60: 49323.39 | G60: 40050.51 | H60: 34438.87
A61: 69 | B61: 69 | D61: 111290.46 | E61: 77290.43 | F61: 54274.65 | G61: 44063.67 | H61: 37899.77
A62: 70 | B62: 70 | D62: 136979.56 | E62: 94124.82 | F62: 63901.04 | G62: 51359.12 | H62: 44580.42
A63: 71 | B63: 71 | D63: 142354.82 | E63: 97817.33 | F63: 66409 | G63: 53375.24 | H63: 46333.66
A64: 72 | B64: 72 | D64: =$G$2*D29 -> 146390.77 | E64: 100586.58 | F64: 68282.55 | G64: 54881.5 | H64: 47647.53
A65: 73 | B65: 73 | D65: 151765.5 | E65: 104289.69 | F65: 70789.45 | G65: 56909.81 | H65: 49401.3
A66: 74 | B66: 74 | D66: 154454.72 | E66: 106128.26 | F66: 72054.56 | G66: 57913.63 | H66: 50271.03
A67: 75 | B67: 75+ | D67: 161183.6 | E67: 110748.8 | F67: 75182.09 | G67: 60438.02 | H67: 52462.58
A68: 1 | B68: 1 Child | D68: 6021.33 | E68: 4434.51 | F68: 3328.93 | G68: 2530.75 | H68: 1973.19
A69: 2 | B69: 2 Children | D69: 9574.98 | E69: 7062.78 | F69: 5296.29 | G69: 4017.93 | H69: 3123.82
A70: 3 | B70: 3+ Children | D70: 14037.58 | E70: 10355.67 | F70: 7753.37 | G70: 5886.18 | H70: 4580.26
A71: 1 | B71: Rider Comp. Maternidad | D71: =+D36*$G$2 -> 0 | E71: 0 | F71: 119.25 | G71: 119.25 | H71: 119.25
A72: 1 | B72: Transplante de organos | D72: 0 | E72: 0 | F72: 0 | G72: 0 | H72: 0
A78: DIAMOND (LATINAMERICA ONLY)
A79: TARIFAS ANUALES
A80: EDAD
C81: DL1 | D81: DL2 | E81: DL3 | F81: DL4 | G81: DL5 | H81: DL6
A82: 18 | B82: - 24
A83: 25 | B83: - 29
A84: 30 | B84: - 34
A85: 35 | B85: - 39
A86: 40 | B86: - 44
A87: 45 | B87: - 49
A88: 50 | B88: - 54
A89: 55 | B89: - 59
A90: 60
A91: 61
A92: 62
A93: 63
A94: 64
A95: 65
A96: 66
A97: 67
A98: 68
A99: 69
A100: 70
A101: 71
A102: 72
A103: 73
A104: 74
A105: 75 | B105: o más
A106: 1 | B106: Hijo
A107: 2 | B107: Hijos
A108: 3 | B108: Hijos o más
A109: 1 | B109: Rider Comp. Maternidad
A110: 1 | B110: Transplante de organos | C110: 0 | D110: 0 | E110: 0 | F110: 0 | G110: 0 | H110: 0
A112: TARIFAS SEMESTRALES
A113: EDAD
C114: DL1 | D114: DL2 | E114: DL3 | F114: DL4 | G114: DL5 | H114: DL6
A115: 18 | B115: - 24 | C115: =+C82*$G$2 -> 0 | D115: 0 | E115: 0 | F115: 0 | G115: 0 | H115: 0
A116: 25 | B116: - 29 | C116: 0 | D116: 0 | E116: 0 | F116: 0 | G116: 0 | H116: 0
A117: 30 | B117: - 34 | C117: 0 | D117: 0 | E117: 0 | F117: 0 | G117: 0 | H117: 0
A118: 35 | B118: - 39 | C118: 0 | D118: 0 | E118: 0 | F118: 0 | G118: 0 | H118: 0
A119: 40 | B119: - 44 | C119: 0 | D119: 0 | E119: 0 | F119: 0 | G119: 0 | H119: 0
A120: 45 | B120: - 49 | C120: 0 | D120: 0 | E120: 0 | F120: 0 | G120: 0 | H120: 0
A121: 50 | B121: - 54 | C121: 0 | D121: 0 | E121: 0 | F121: 0 | G121: 0 | H121: 0
A122: 55 | B122: - 59 | C122: 0 | D122: 0 | E122: 0 | F122: 0 | G122: 0 | H122: 0
A123: 60 | C123: 0 | D123: 0 | E123: 0 | F123: 0 | G123: 0 | H123: 0
A124: 61 | C124: 0 | D124: 0 | E124: 0 | F124: 0 | G124: 0 | H124: 0
A125: 62 | C125: =+C92*$G$2 -> 0 | D125: 0 | E125: 0 | F125: 0 | G125: 0 | H125: 0
A126: 63 | C126: 0 | D126: 0 | E126: 0 | F126: 0 | G126: 0 | H126: 0
A127: 64 | C127: 0 | D127: 0 | E127: 0 | F127: 0 | G127: 0 | H127: 0
A128: 65 | C128: 0 | D128: 0 | E128: 0 | F128: 0 | G128: 0 | H128: 0
A129: 66 | C129: 0 | D129: 0 | E129: 0 | F129: 0 | G129: 0 | H129: 0
A130: 67 | C130: 0 | D130: 0 | E130: 0 | F130: 0 | G130: 0 | H130: 0
A131: 68 | C131: 0 | D131: 0 | E131: 0 | F131: 0 | G131: 0 | H131: 0
A132: 69 | C132: 0 | D132: 0 | E132: 0 | F132: 0 | G132: 0 | H132: 0
A133: 70 | C133: 0 | D133: 0 | E133: 0 | F133: 0 | G133: 0 | H133: 0
A134: 71 | C134: 0 | D134: 0 | E134: 0 | F134: 0 | G134: 0 | H134: 0
A135: 72 | C135: =+C102*$G$2 -> 0 | D135: 0 | E135: 0 | F135: 0 | G135: 0 | H135: 0
A136: 73 | C136: 0 | D136: 0 | E136: 0 | F136: 0 | G136: 0 | H136: 0
A137: 74 | C137: 0 | D137: 0 | E137: 0 | F137: 0 | G137: 0 | H137: 0
A138: 75 | B138: o más | C138: 0 | D138: 0 | E138: 0 | F138: 0 | G138: 0 | H138: 0
A139: 1 | B139: Hijo | C139: 0 | D139: 0 | E139: 0 | F139: 0 | G139: 0 | H139: 0
A140: 2 | B140: Hijos | C140: 0 | D140: 0 | E140: 0 | F140: 0 | G140: 0 | H140: 0
A141: 3 | B141: Hijos o más | C141: 0 | D141: 0 | E141: 0 | F141: 0 | G141: 0 | H141: 0
A142: 1 | B142: Rider Comp. Maternidad | C142: 0 | D142: 0 | E142: 0 | F142: 0 | G142: 0 | H142: 0
A143: 1 | B143: Transplante de organos | C143: 0 | D143: 0 | E143: 0 | F143: 0 | G143: 0 | H143: 0
A148: BUPA PRIVILEGE CARE
A149: TARIFAS ANUALES
A150: EDAD
C151: CW1 | D151: CW2 | E151: CW3 | F151: CW4 | G151: CW5 | H151: CW6
A152: 18 | B152: 18-24 | D152: =Q152 -> 27473 | E152: =R152 -> 18888 | F152: 12197 | G152: 7795 | H152: 5928 | K152: =IF($C$2=2,'2'!D152,IF($C$2=3,'3'!D152,IF($C$2=4,'4'!D152,IF($C$2=5,'5'!D152,IF($C$2=6,'6'!D152,IF($C$2=8,'8'!D152,IF($C$2=9,'9'!D152,IF($C$2="PERU2020",PERU2020!D152)))))))) -> 27473 | L152: =IF($C$2=2,'2'!E152,IF($C$2=3,'3'!E152,IF($C$2=4,'4'!E152,IF($C$2=5,'5'!E152,IF($C$2=6,'6'!E152,IF($C$2=8,'8'!E152,IF($C$2=9,'9'!E152,IF($C$2="PERU2020",PERU2020!E152)))))))) -> 18888 | M152: =IF($C$2=2,'2'!F152,IF($C$2=3,'3'!F152,IF($C$2=4,'4'!F152,IF($C$2=5,'5'!F152,IF($C$2=6,'6'!F152,IF($C$2=8,'8'!F152,IF($C$2=9,'9'!F152,IF($C$2="PERU2020",PERU2020!F152)))))))) -> 12197 | N152: =IF($C$2=2,'2'!G152,IF($C$2=3,'3'!G152,IF($C$2=4,'4'!G152,IF($C$2=5,'5'!G152,IF($C$2=6,'6'!G152,IF($C$2=8,'8'!G152,IF($C$2=9,'9'!G152,IF($C$2="PERU2020",PERU2020!G152)))))))) -> 7795 | O152: =IF($C$2=2,'2'!H152,IF($C$2=3,'3'!H152,IF($C$2=4,'4'!H152,IF($C$2=5,'5'!H152,IF($C$2=6,'6'!H152,IF($C$2=8,'8'!H152,IF($C$2=9,'9'!H152,IF($C$2="PERU2020",PERU2020!H152)))))))) -> 5928 | Q152: =(K152-50)*$M$2+50 -> 27473 | R152: =(L152-50)*$M$2+50 -> 18888 | S152: 12197 | T152: 7795 | U152: 5928
A153: 25 | B153: 25-29 | D153: =Q153 -> 28821 | E153: =R153 -> 20900 | F153: =S153 -> 13507 | G153: =T153 -> 8636 | H153: =U153 -> 6578 | K153: =IF($C$2=2,'2'!D153,IF($C$2=3,'3'!D153,IF($C$2=4,'4'!D153,IF($C$2=5,'5'!D153,IF($C$2=6,'6'!D153,IF($C$2=8,'8'!D153,IF($C$2=9,'9'!D153,IF($C$2="PERU2020",PERU2020!D153)))))))) -> 28821 | L153: =IF($C$2=2,'2'!E153,IF($C$2=3,'3'!E153,IF($C$2=4,'4'!E153,IF($C$2=5,'5'!E153,IF($C$2=6,'6'!E153,IF($C$2=8,'8'!E153,IF($C$2=9,'9'!E153,IF($C$2="PERU2020",PERU2020!E153)))))))) -> 20900 | M153: =IF($C$2=2,'2'!F153,IF($C$2=3,'3'!F153,IF($C$2=4,'4'!F153,IF($C$2=5,'5'!F153,IF($C$2=6,'6'!F153,IF($C$2=8,'8'!F153,IF($C$2=9,'9'!F153,IF($C$2="PERU2020",PERU2020!F153)))))))) -> 13507 | N153: =IF($C$2=2,'2'!G153,IF($C$2=3,'3'!G153,IF($C$2=4,'4'!G153,IF($C$2=5,'5'!G153,IF($C$2=6,'6'!G153,IF($C$2=8,'8'!G153,IF($C$2=9,'9'!G153,IF($C$2="PERU2020",PERU2020!G153)))))))) -> 8636 | O153: =IF($C$2=2,'2'!H153,IF($C$2=3,'3'!H153,IF($C$2=4,'4'!H153,IF($C$2=5,'5'!H153,IF($C$2=6,'6'!H153,IF($C$2=8,'8'!H153,IF($C$2=9,'9'!H153,IF($C$2="PERU2020",PERU2020!H153)))))))) -> 6578 | Q153: =(K153-50)*$M$2+50 -> 28821 | R153: =(L153-50)*$M$2+50 -> 20900 | S153: =(M153-50)*$M$2+50 -> 13507 | T153: =(N153-50)*$M$2+50 -> 8636 | U153: =(O153-50)*$M$2+50 -> 6578
A154: 30 | B154: 30-34 | D154: 30078 | E154: 22355 | F154: 15156 | G154: 10446 | H154: 7967 | K154: =IF($C$2=2,'2'!D154,IF($C$2=3,'3'!D154,IF($C$2=4,'4'!D154,IF($C$2=5,'5'!D154,IF($C$2=6,'6'!D154,IF($C$2=8,'8'!D154,IF($C$2=9,'9'!D154,IF($C$2="PERU2020",PERU2020!D154)))))))) -> 30078 | L154: =IF($C$2=2,'2'!E154,IF($C$2=3,'3'!E154,IF($C$2=4,'4'!E154,IF($C$2=5,'5'!E154,IF($C$2=6,'6'!E154,IF($C$2=8,'8'!E154,IF($C$2=9,'9'!E154,IF($C$2="PERU2020",PERU2020!E154)))))))) -> 22355 | M154: =IF($C$2=2,'2'!F154,IF($C$2=3,'3'!F154,IF($C$2=4,'4'!F154,IF($C$2=5,'5'!F154,IF($C$2=6,'6'!F154,IF($C$2=8,'8'!F154,IF($C$2=9,'9'!F154,IF($C$2="PERU2020",PERU2020!F154)))))))) -> 15156 | N154: =IF($C$2=2,'2'!G154,IF($C$2=3,'3'!G154,IF($C$2=4,'4'!G154,IF($C$2=5,'5'!G154,IF($C$2=6,'6'!G154,IF($C$2=8,'8'!G154,IF($C$2=9,'9'!G154,IF($C$2="PERU2020",PERU2020!G154)))))))) -> 10446 | O154: =IF($C$2=2,'2'!H154,IF($C$2=3,'3'!H154,IF($C$2=4,'4'!H154,IF($C$2=5,'5'!H154,IF($C$2=6,'6'!H154,IF($C$2=8,'8'!H154,IF($C$2=9,'9'!H154,IF($C$2="PERU2020",PERU2020!H154)))))))) -> 7967 | Q154: 30078 | R154: 22355 | S154: 15156 | T154: 10446 | U154: 7967
A155: 35 | B155: 35-39 | D155: 33699 | E155: 25025 | F155: 16983 | G155: 11702 | H155: 8941 | K155: =IF($C$2=2,'2'!D155,IF($C$2=3,'3'!D155,IF($C$2=4,'4'!D155,IF($C$2=5,'5'!D155,IF($C$2=6,'6'!D155,IF($C$2=8,'8'!D155,IF($C$2=9,'9'!D155,IF($C$2="PERU2020",PERU2020!D155)))))))) -> 33699 | L155: =IF($C$2=2,'2'!E155,IF($C$2=3,'3'!E155,IF($C$2=4,'4'!E155,IF($C$2=5,'5'!E155,IF($C$2=6,'6'!E155,IF($C$2=8,'8'!E155,IF($C$2=9,'9'!E155,IF($C$2="PERU2020",PERU2020!E155)))))))) -> 25025 | M155: =IF($C$2=2,'2'!F155,IF($C$2=3,'3'!F155,IF($C$2=4,'4'!F155,IF($C$2=5,'5'!F155,IF($C$2=6,'6'!F155,IF($C$2=8,'8'!F155,IF($C$2=9,'9'!F155,IF($C$2="PERU2020",PERU2020!F155)))))))) -> 16983 | N155: =IF($C$2=2,'2'!G155,IF($C$2=3,'3'!G155,IF($C$2=4,'4'!G155,IF($C$2=5,'5'!G155,IF($C$2=6,'6'!G155,IF($C$2=8,'8'!G155,IF($C$2=9,'9'!G155,IF($C$2="PERU2020",PERU2020!G155)))))))) -> 11702 | O155: =IF($C$2=2,'2'!H155,IF($C$2=3,'3'!H155,IF($C$2=4,'4'!H155,IF($C$2=5,'5'!H155,IF($C$2=6,'6'!H155,IF($C$2=8,'8'!H155,IF($C$2=9,'9'!H155,IF($C$2="PERU2020",PERU2020!H155)))))))) -> 8941 | Q155: 33699 | R155: 25025 | S155: 16983 | T155: 11702 | U155: 8941
A156: 40 | B156: 40-44 | D156: 39008 | E156: 27440 | F156: 18879 | G156: 12898 | H156: 9846 | K156: =IF($C$2=2,'2'!D156,IF($C$2=3,'3'!D156,IF($C$2=4,'4'!D156,IF($C$2=5,'5'!D156,IF($C$2=6,'6'!D156,IF($C$2=8,'8'!D156,IF($C$2=9,'9'!D156,IF($C$2="PERU2020",PERU2020!D156)))))))) -> 39008 | L156: =IF($C$2=2,'2'!E156,IF($C$2=3,'3'!E156,IF($C$2=4,'4'!E156,IF($C$2=5,'5'!E156,IF($C$2=6,'6'!E156,IF($C$2=8,'8'!E156,IF($C$2=9,'9'!E156,IF($C$2="PERU2020",PERU2020!E156)))))))) -> 27440 | M156: =IF($C$2=2,'2'!F156,IF($C$2=3,'3'!F156,IF($C$2=4,'4'!F156,IF($C$2=5,'5'!F156,IF($C$2=6,'6'!F156,IF($C$2=8,'8'!F156,IF($C$2=9,'9'!F156,IF($C$2="PERU2020",PERU2020!F156)))))))) -> 18879 | N156: =IF($C$2=2,'2'!G156,IF($C$2=3,'3'!G156,IF($C$2=4,'4'!G156,IF($C$2=5,'5'!G156,IF($C$2=6,'6'!G156,IF($C$2=8,'8'!G156,IF($C$2=9,'9'!G156,IF($C$2="PERU2020",PERU2020!G156)))))))) -> 12898 | O156: =IF($C$2=2,'2'!H156,IF($C$2=3,'3'!H156,IF($C$2=4,'4'!H156,IF($C$2=5,'5'!H156,IF($C$2=6,'6'!H156,IF($C$2=8,'8'!H156,IF($C$2=9,'9'!H156,IF($C$2="PERU2020",PERU2020!H156)))))))) -> 9846 | Q156: 39008 | R156: 27440 | S156: 18879 | T156: 12898 | U156: 9846
A157: 45 | B157: 45-49 | D157: 43582 | E157: 30666 | F157: 21117 | G157: 14418 | H157: 11015 | K157: =IF($C$2=2,'2'!D157,IF($C$2=3,'3'!D157,IF($C$2=4,'4'!D157,IF($C$2=5,'5'!D157,IF($C$2=6,'6'!D157,IF($C$2=8,'8'!D157,IF($C$2=9,'9'!D157,IF($C$2="PERU2020",PERU2020!D157)))))))) -> 43582 | L157: =IF($C$2=2,'2'!E157,IF($C$2=3,'3'!E157,IF($C$2=4,'4'!E157,IF($C$2=5,'5'!E157,IF($C$2=6,'6'!E157,IF($C$2=8,'8'!E157,IF($C$2=9,'9'!E157,IF($C$2="PERU2020",PERU2020!E157)))))))) -> 30666 | M157: =IF($C$2=2,'2'!F157,IF($C$2=3,'3'!F157,IF($C$2=4,'4'!F157,IF($C$2=5,'5'!F157,IF($C$2=6,'6'!F157,IF($C$2=8,'8'!F157,IF($C$2=9,'9'!F157,IF($C$2="PERU2020",PERU2020!F157)))))))) -> 21117 | N157: =IF($C$2=2,'2'!G157,IF($C$2=3,'3'!G157,IF($C$2=4,'4'!G157,IF($C$2=5,'5'!G157,IF($C$2=6,'6'!G157,IF($C$2=8,'8'!G157,IF($C$2=9,'9'!G157,IF($C$2="PERU2020",PERU2020!G157)))))))) -> 14418 | O157: =IF($C$2=2,'2'!H157,IF($C$2=3,'3'!H157,IF($C$2=4,'4'!H157,IF($C$2=5,'5'!H157,IF($C$2=6,'6'!H157,IF($C$2=8,'8'!H157,IF($C$2=9,'9'!H157,IF($C$2="PERU2020",PERU2020!H157)))))))) -> 11015 | Q157: 43582 | R157: 30666 | S157: 21117 | T157: 14418 | U157: 11015
A158: 50 | B158: 50-54 | D158: 56975 | E158: 40446 | F158: 27723 | G158: 20591 | H158: 15737 | K158: =IF($C$2=2,'2'!D158,IF($C$2=3,'3'!D158,IF($C$2=4,'4'!D158,IF($C$2=5,'5'!D158,IF($C$2=6,'6'!D158,IF($C$2=8,'8'!D158,IF($C$2=9,'9'!D158,IF($C$2="PERU2020",PERU2020!D158)))))))) -> 56975 | L158: =IF($C$2=2,'2'!E158,IF($C$2=3,'3'!E158,IF($C$2=4,'4'!E158,IF($C$2=5,'5'!E158,IF($C$2=6,'6'!E158,IF($C$2=8,'8'!E158,IF($C$2=9,'9'!E158,IF($C$2="PERU2020",PERU2020!E158)))))))) -> 40446 | M158: =IF($C$2=2,'2'!F158,IF($C$2=3,'3'!F158,IF($C$2=4,'4'!F158,IF($C$2=5,'5'!F158,IF($C$2=6,'6'!F158,IF($C$2=8,'8'!F158,IF($C$2=9,'9'!F158,IF($C$2="PERU2020",PERU2020!F158)))))))) -> 27723 | N158: =IF($C$2=2,'2'!G158,IF($C$2=3,'3'!G158,IF($C$2=4,'4'!G158,IF($C$2=5,'5'!G158,IF($C$2=6,'6'!G158,IF($C$2=8,'8'!G158,IF($C$2=9,'9'!G158,IF($C$2="PERU2020",PERU2020!G158)))))))) -> 20591 | O158: =IF($C$2=2,'2'!H158,IF($C$2=3,'3'!H158,IF($C$2=4,'4'!H158,IF($C$2=5,'5'!H158,IF($C$2=6,'6'!H158,IF($C$2=8,'8'!H158,IF($C$2=9,'9'!H158,IF($C$2="PERU2020",PERU2020!H158)))))))) -> 15737 | Q158: 56975 | R158: 40446 | S158: 27723 | T158: 20591 | U158: 15737
A159: 55 | B159: 55-59 | D159: 60629 | E159: 43040 | F159: 29491 | G159: 21911 | H159: 16756 | K159: =IF($C$2=2,'2'!D159,IF($C$2=3,'3'!D159,IF($C$2=4,'4'!D159,IF($C$2=5,'5'!D159,IF($C$2=6,'6'!D159,IF($C$2=8,'8'!D159,IF($C$2=9,'9'!D159,IF($C$2="PERU2020",PERU2020!D159)))))))) -> 60629 | L159: =IF($C$2=2,'2'!E159,IF($C$2=3,'3'!E159,IF($C$2=4,'4'!E159,IF($C$2=5,'5'!E159,IF($C$2=6,'6'!E159,IF($C$2=8,'8'!E159,IF($C$2=9,'9'!E159,IF($C$2="PERU2020",PERU2020!E159)))))))) -> 43040 | M159: =IF($C$2=2,'2'!F159,IF($C$2=3,'3'!F159,IF($C$2=4,'4'!F159,IF($C$2=5,'5'!F159,IF($C$2=6,'6'!F159,IF($C$2=8,'8'!F159,IF($C$2=9,'9'!F159,IF($C$2="PERU2020",PERU2020!F159)))))))) -> 29491 | N159: =IF($C$2=2,'2'!G159,IF($C$2=3,'3'!G159,IF($C$2=4,'4'!G159,IF($C$2=5,'5'!G159,IF($C$2=6,'6'!G159,IF($C$2=8,'8'!G159,IF($C$2=9,'9'!G159,IF($C$2="PERU2020",PERU2020!G159)))))))) -> 21911 | O159: =IF($C$2=2,'2'!H159,IF($C$2=3,'3'!H159,IF($C$2=4,'4'!H159,IF($C$2=5,'5'!H159,IF($C$2=6,'6'!H159,IF($C$2=8,'8'!H159,IF($C$2=9,'9'!H159,IF($C$2="PERU2020",PERU2020!H159)))))))) -> 16756 | Q159: 60629 | R159: 43040 | S159: 29491 | T159: 21911 | U159: 16756
A160: 60 | B160: 60 | D160: 66028 | E160: 46737 | F160: 33581 | G160: 26069 | H160: 20917 | K160: =IF($C$2=2,'2'!D160,IF($C$2=3,'3'!D160,IF($C$2=4,'4'!D160,IF($C$2=5,'5'!D160,IF($C$2=6,'6'!D160,IF($C$2=8,'8'!D160,IF($C$2=9,'9'!D160,IF($C$2="PERU2020",PERU2020!D160)))))))) -> 66028 | L160: =IF($C$2=2,'2'!E160,IF($C$2=3,'3'!E160,IF($C$2=4,'4'!E160,IF($C$2=5,'5'!E160,IF($C$2=6,'6'!E160,IF($C$2=8,'8'!E160,IF($C$2=9,'9'!E160,IF($C$2="PERU2020",PERU2020!E160)))))))) -> 46737 | M160: =IF($C$2=2,'2'!F160,IF($C$2=3,'3'!F160,IF($C$2=4,'4'!F160,IF($C$2=5,'5'!F160,IF($C$2=6,'6'!F160,IF($C$2=8,'8'!F160,IF($C$2=9,'9'!F160,IF($C$2="PERU2020",PERU2020!F160)))))))) -> 33581 | N160: =IF($C$2=2,'2'!G160,IF($C$2=3,'3'!G160,IF($C$2=4,'4'!G160,IF($C$2=5,'5'!G160,IF($C$2=6,'6'!G160,IF($C$2=8,'8'!G160,IF($C$2=9,'9'!G160,IF($C$2="PERU2020",PERU2020!G160)))))))) -> 26069 | O160: =IF($C$2=2,'2'!H160,IF($C$2=3,'3'!H160,IF($C$2=4,'4'!H160,IF($C$2=5,'5'!H160,IF($C$2=6,'6'!H160,IF($C$2=8,'8'!H160,IF($C$2=9,'9'!H160,IF($C$2="PERU2020",PERU2020!H160)))))))) -> 20917 | Q160: 66028 | R160: 46737 | S160: 33581 | T160: 26069 | U160: 20917
A161: 61 | B161: 61 | D161: 70929 | E161: 50195 | F161: 36063 | G161: 27996 | H161: 22476 | K161: =IF($C$2=2,'2'!D161,IF($C$2=3,'3'!D161,IF($C$2=4,'4'!D161,IF($C$2=5,'5'!D161,IF($C$2=6,'6'!D161,IF($C$2=8,'8'!D161,IF($C$2=9,'9'!D161,IF($C$2="PERU2020",PERU2020!D161)))))))) -> 70929 | L161: =IF($C$2=2,'2'!E161,IF($C$2=3,'3'!E161,IF($C$2=4,'4'!E161,IF($C$2=5,'5'!E161,IF($C$2=6,'6'!E161,IF($C$2=8,'8'!E161,IF($C$2=9,'9'!E161,IF($C$2="PERU2020",PERU2020!E161)))))))) -> 50195 | M161: =IF($C$2=2,'2'!F161,IF($C$2=3,'3'!F161,IF($C$2=4,'4'!F161,IF($C$2=5,'5'!F161,IF($C$2=6,'6'!F161,IF($C$2=8,'8'!F161,IF($C$2=9,'9'!F161,IF($C$2="PERU2020",PERU2020!F161)))))))) -> 36063 | N161: =IF($C$2=2,'2'!G161,IF($C$2=3,'3'!G161,IF($C$2=4,'4'!G161,IF($C$2=5,'5'!G161,IF($C$2=6,'6'!G161,IF($C$2=8,'8'!G161,IF($C$2=9,'9'!G161,IF($C$2="PERU2020",PERU2020!G161)))))))) -> 27996 | O161: =IF($C$2=2,'2'!H161,IF($C$2=3,'3'!H161,IF($C$2=4,'4'!H161,IF($C$2=5,'5'!H161,IF($C$2=6,'6'!H161,IF($C$2=8,'8'!H161,IF($C$2=9,'9'!H161,IF($C$2="PERU2020",PERU2020!H161)))))))) -> 22476 | Q161: 70929 | R161: 50195 | S161: 36063 | T161: 27996 | U161: 22476
A162: 62 | B162: 62 | D162: 77636 | E162: 54967 | F162: 39487 | G162: 30657 | H162: 24614 | K162: =IF($C$2=2,'2'!D162,IF($C$2=3,'3'!D162,IF($C$2=4,'4'!D162,IF($C$2=5,'5'!D162,IF($C$2=6,'6'!D162,IF($C$2=8,'8'!D162,IF($C$2=9,'9'!D162,IF($C$2="PERU2020",PERU2020!D162)))))))) -> 77636 | L162: =IF($C$2=2,'2'!E162,IF($C$2=3,'3'!E162,IF($C$2=4,'4'!E162,IF($C$2=5,'5'!E162,IF($C$2=6,'6'!E162,IF($C$2=8,'8'!E162,IF($C$2=9,'9'!E162,IF($C$2="PERU2020",PERU2020!E162)))))))) -> 54967 | M162: =IF($C$2=2,'2'!F162,IF($C$2=3,'3'!F162,IF($C$2=4,'4'!F162,IF($C$2=5,'5'!F162,IF($C$2=6,'6'!F162,IF($C$2=8,'8'!F162,IF($C$2=9,'9'!F162,IF($C$2="PERU2020",PERU2020!F162)))))))) -> 39487 | N162: =IF($C$2=2,'2'!G162,IF($C$2=3,'3'!G162,IF($C$2=4,'4'!G162,IF($C$2=5,'5'!G162,IF($C$2=6,'6'!G162,IF($C$2=8,'8'!G162,IF($C$2=9,'9'!G162,IF($C$2="PERU2020",PERU2020!G162)))))))) -> 30657 | O162: =IF($C$2=2,'2'!H162,IF($C$2=3,'3'!H162,IF($C$2=4,'4'!H162,IF($C$2=5,'5'!H162,IF($C$2=6,'6'!H162,IF($C$2=8,'8'!H162,IF($C$2=9,'9'!H162,IF($C$2="PERU2020",PERU2020!H162)))))))) -> 24614 | Q162: 77636 | R162: 54967 | S162: 39487 | T162: 30657 | U162: 24614
A163: 63 | B163: 63 | D163: 82554 | E163: 58446 | F163: 41980 | G163: 32603 | H163: 26180 | K163: =IF($C$2=2,'2'!D163,IF($C$2=3,'3'!D163,IF($C$2=4,'4'!D163,IF($C$2=5,'5'!D163,IF($C$2=6,'6'!D163,IF($C$2=8,'8'!D163,IF($C$2=9,'9'!D163,IF($C$2="PERU2020",PERU2020!D163)))))))) -> 82554 | L163: =IF($C$2=2,'2'!E163,IF($C$2=3,'3'!E163,IF($C$2=4,'4'!E163,IF($C$2=5,'5'!E163,IF($C$2=6,'6'!E163,IF($C$2=8,'8'!E163,IF($C$2=9,'9'!E163,IF($C$2="PERU2020",PERU2020!E163)))))))) -> 58446 | M163: =IF($C$2=2,'2'!F163,IF($C$2=3,'3'!F163,IF($C$2=4,'4'!F163,IF($C$2=5,'5'!F163,IF($C$2=6,'6'!F163,IF($C$2=8,'8'!F163,IF($C$2=9,'9'!F163,IF($C$2="PERU2020",PERU2020!F163)))))))) -> 41980 | N163: =IF($C$2=2,'2'!G163,IF($C$2=3,'3'!G163,IF($C$2=4,'4'!G163,IF($C$2=5,'5'!G163,IF($C$2=6,'6'!G163,IF($C$2=8,'8'!G163,IF($C$2=9,'9'!G163,IF($C$2="PERU2020",PERU2020!G163)))))))) -> 32603 | O163: =IF($C$2=2,'2'!H163,IF($C$2=3,'3'!H163,IF($C$2=4,'4'!H163,IF($C$2=5,'5'!H163,IF($C$2=6,'6'!H163,IF($C$2=8,'8'!H163,IF($C$2=9,'9'!H163,IF($C$2="PERU2020",PERU2020!H163)))))))) -> 26180 | Q163: 82554 | R163: 58446 | S163: 41980 | T163: 32603 | U163: 26180
A164: 64 | B164: 64 | D164: 89302 | E164: 63230 | F164: 45424 | G164: 35258 | H164: 28332 | K164: =IF($C$2=2,'2'!D164,IF($C$2=3,'3'!D164,IF($C$2=4,'4'!D164,IF($C$2=5,'5'!D164,IF($C$2=6,'6'!D164,IF($C$2=8,'8'!D164,IF($C$2=9,'9'!D164,IF($C$2="PERU2020",PERU2020!D164)))))))) -> 89302 | L164: =IF($C$2=2,'2'!E164,IF($C$2=3,'3'!E164,IF($C$2=4,'4'!E164,IF($C$2=5,'5'!E164,IF($C$2=6,'6'!E164,IF($C$2=8,'8'!E164,IF($C$2=9,'9'!E164,IF($C$2="PERU2020",PERU2020!E164)))))))) -> 63230 | M164: =IF($C$2=2,'2'!F164,IF($C$2=3,'3'!F164,IF($C$2=4,'4'!F164,IF($C$2=5,'5'!F164,IF($C$2=6,'6'!F164,IF($C$2=8,'8'!F164,IF($C$2=9,'9'!F164,IF($C$2="PERU2020",PERU2020!F164)))))))) -> 45424 | N164: =IF($C$2=2,'2'!G164,IF($C$2=3,'3'!G164,IF($C$2=4,'4'!G164,IF($C$2=5,'5'!G164,IF($C$2=6,'6'!G164,IF($C$2=8,'8'!G164,IF($C$2=9,'9'!G164,IF($C$2="PERU2020",PERU2020!G164)))))))) -> 35258 | O164: =IF($C$2=2,'2'!H164,IF($C$2=3,'3'!H164,IF($C$2=4,'4'!H164,IF($C$2=5,'5'!H164,IF($C$2=6,'6'!H164,IF($C$2=8,'8'!H164,IF($C$2=9,'9'!H164,IF($C$2="PERU2020",PERU2020!H164)))))))) -> 28332 | Q164: 89302 | R164: 63230 | S164: 45424 | T164: 35258 | U164: 28332
A165: 65 | B165: 65 | D165: 116738 | E165: 82491 | F165: 57431 | G165: 47022 | H165: 39928 | K165: =IF($C$2=2,'2'!D165,IF($C$2=3,'3'!D165,IF($C$2=4,'4'!D165,IF($C$2=5,'5'!D165,IF($C$2=6,'6'!D165,IF($C$2=8,'8'!D165,IF($C$2=9,'9'!D165,IF($C$2="PERU2020",PERU2020!D165)))))))) -> 116738 | L165: =IF($C$2=2,'2'!E165,IF($C$2=3,'3'!E165,IF($C$2=4,'4'!E165,IF($C$2=5,'5'!E165,IF($C$2=6,'6'!E165,IF($C$2=8,'8'!E165,IF($C$2=9,'9'!E165,IF($C$2="PERU2020",PERU2020!E165)))))))) -> 82491 | M165: =IF($C$2=2,'2'!F165,IF($C$2=3,'3'!F165,IF($C$2=4,'4'!F165,IF($C$2=5,'5'!F165,IF($C$2=6,'6'!F165,IF($C$2=8,'8'!F165,IF($C$2=9,'9'!F165,IF($C$2="PERU2020",PERU2020!F165)))))))) -> 57431 | N165: =IF($C$2=2,'2'!G165,IF($C$2=3,'3'!G165,IF($C$2=4,'4'!G165,IF($C$2=5,'5'!G165,IF($C$2=6,'6'!G165,IF($C$2=8,'8'!G165,IF($C$2=9,'9'!G165,IF($C$2="PERU2020",PERU2020!G165)))))))) -> 47022 | O165: =IF($C$2=2,'2'!H165,IF($C$2=3,'3'!H165,IF($C$2=4,'4'!H165,IF($C$2=5,'5'!H165,IF($C$2=6,'6'!H165,IF($C$2=8,'8'!H165,IF($C$2=9,'9'!H165,IF($C$2="PERU2020",PERU2020!H165)))))))) -> 39928 | Q165: 116738 | R165: 82491 | S165: 57431 | T165: 47022 | U165: 39928
A166: 66 | B166: 66 | D166: 135614 | E166: 95842 | F166: 66725 | G166: 54658 | H166: 46405 | K166: =IF($C$2=2,'2'!D166,IF($C$2=3,'3'!D166,IF($C$2=4,'4'!D166,IF($C$2=5,'5'!D166,IF($C$2=6,'6'!D166,IF($C$2=8,'8'!D166,IF($C$2=9,'9'!D166,IF($C$2="PERU2020",PERU2020!D166)))))))) -> 135614 | L166: =IF($C$2=2,'2'!E166,IF($C$2=3,'3'!E166,IF($C$2=4,'4'!E166,IF($C$2=5,'5'!E166,IF($C$2=6,'6'!E166,IF($C$2=8,'8'!E166,IF($C$2=9,'9'!E166,IF($C$2="PERU2020",PERU2020!E166)))))))) -> 95842 | M166: =IF($C$2=2,'2'!F166,IF($C$2=3,'3'!F166,IF($C$2=4,'4'!F166,IF($C$2=5,'5'!F166,IF($C$2=6,'6'!F166,IF($C$2=8,'8'!F166,IF($C$2=9,'9'!F166,IF($C$2="PERU2020",PERU2020!F166)))))))) -> 66725 | N166: =IF($C$2=2,'2'!G166,IF($C$2=3,'3'!G166,IF($C$2=4,'4'!G166,IF($C$2=5,'5'!G166,IF($C$2=6,'6'!G166,IF($C$2=8,'8'!G166,IF($C$2=9,'9'!G166,IF($C$2="PERU2020",PERU2020!G166)))))))) -> 54658 | O166: =IF($C$2=2,'2'!H166,IF($C$2=3,'3'!H166,IF($C$2=4,'4'!H166,IF($C$2=5,'5'!H166,IF($C$2=6,'6'!H166,IF($C$2=8,'8'!H166,IF($C$2=9,'9'!H166,IF($C$2="PERU2020",PERU2020!H166)))))))) -> 46405 | Q166: 135614 | R166: 95842 | S166: 66725 | T166: 54658 | U166: 46405
A167: 67 | B167: 67 | D167: 148121 | E167: 104684 | F167: 72882 | G167: 59695 | H167: 50679 | K167: =IF($C$2=2,'2'!D167,IF($C$2=3,'3'!D167,IF($C$2=4,'4'!D167,IF($C$2=5,'5'!D167,IF($C$2=6,'6'!D167,IF($C$2=8,'8'!D167,IF($C$2=9,'9'!D167,IF($C$2="PERU2020",PERU2020!D167)))))))) -> 148121 | L167: =IF($C$2=2,'2'!E167,IF($C$2=3,'3'!E167,IF($C$2=4,'4'!E167,IF($C$2=5,'5'!E167,IF($C$2=6,'6'!E167,IF($C$2=8,'8'!E167,IF($C$2=9,'9'!E167,IF($C$2="PERU2020",PERU2020!E167)))))))) -> 104684 | M167: =IF($C$2=2,'2'!F167,IF($C$2=3,'3'!F167,IF($C$2=4,'4'!F167,IF($C$2=5,'5'!F167,IF($C$2=6,'6'!F167,IF($C$2=8,'8'!F167,IF($C$2=9,'9'!F167,IF($C$2="PERU2020",PERU2020!F167)))))))) -> 72882 | N167: =IF($C$2=2,'2'!G167,IF($C$2=3,'3'!G167,IF($C$2=4,'4'!G167,IF($C$2=5,'5'!G167,IF($C$2=6,'6'!G167,IF($C$2=8,'8'!G167,IF($C$2=9,'9'!G167,IF($C$2="PERU2020",PERU2020!G167)))))))) -> 59695 | O167: =IF($C$2=2,'2'!H167,IF($C$2=3,'3'!H167,IF($C$2=4,'4'!H167,IF($C$2=5,'5'!H167,IF($C$2=6,'6'!H167,IF($C$2=8,'8'!H167,IF($C$2=9,'9'!H167,IF($C$2="PERU2020",PERU2020!H167)))))))) -> 50679 | Q167: 148121 | R167: 104684 | S167: 72882 | T167: 59695 | U167: 50679
A168: 68 | B168: 68 | D168: 164003 | E168: 115887 | F168: 80703 | G168: 66098 | H168: 56104 | K168: =IF($C$2=2,'2'!D168,IF($C$2=3,'3'!D168,IF($C$2=4,'4'!D168,IF($C$2=5,'5'!D168,IF($C$2=6,'6'!D168,IF($C$2=8,'8'!D168,IF($C$2=9,'9'!D168,IF($C$2="PERU2020",PERU2020!D168)))))))) -> 164003 | L168: =IF($C$2=2,'2'!E168,IF($C$2=3,'3'!E168,IF($C$2=4,'4'!E168,IF($C$2=5,'5'!E168,IF($C$2=6,'6'!E168,IF($C$2=8,'8'!E168,IF($C$2=9,'9'!E168,IF($C$2="PERU2020",PERU2020!E168)))))))) -> 115887 | M168: =IF($C$2=2,'2'!F168,IF($C$2=3,'3'!F168,IF($C$2=4,'4'!F168,IF($C$2=5,'5'!F168,IF($C$2=6,'6'!F168,IF($C$2=8,'8'!F168,IF($C$2=9,'9'!F168,IF($C$2="PERU2020",PERU2020!F168)))))))) -> 80703 | N168: =IF($C$2=2,'2'!G168,IF($C$2=3,'3'!G168,IF($C$2=4,'4'!G168,IF($C$2=5,'5'!G168,IF($C$2=6,'6'!G168,IF($C$2=8,'8'!G168,IF($C$2=9,'9'!G168,IF($C$2="PERU2020",PERU2020!G168)))))))) -> 66098 | O168: =IF($C$2=2,'2'!H168,IF($C$2=3,'3'!H168,IF($C$2=4,'4'!H168,IF($C$2=5,'5'!H168,IF($C$2=6,'6'!H168,IF($C$2=8,'8'!H168,IF($C$2=9,'9'!H168,IF($C$2="PERU2020",PERU2020!H168)))))))) -> 56104 | Q168: 164003 | R168: 115887 | S168: 80703 | T168: 66098 | U168: 56104
A169: 69 | B169: 69 | D169: 180441 | E169: 127509 | F169: 88782 | G169: 72723 | H169: 61749 | K169: =IF($C$2=2,'2'!D169,IF($C$2=3,'3'!D169,IF($C$2=4,'4'!D169,IF($C$2=5,'5'!D169,IF($C$2=6,'6'!D169,IF($C$2=8,'8'!D169,IF($C$2=9,'9'!D169,IF($C$2="PERU2020",PERU2020!D169)))))))) -> 180441 | L169: =IF($C$2=2,'2'!E169,IF($C$2=3,'3'!E169,IF($C$2=4,'4'!E169,IF($C$2=5,'5'!E169,IF($C$2=6,'6'!E169,IF($C$2=8,'8'!E169,IF($C$2=9,'9'!E169,IF($C$2="PERU2020",PERU2020!E169)))))))) -> 127509 | M169: =IF($C$2=2,'2'!F169,IF($C$2=3,'3'!F169,IF($C$2=4,'4'!F169,IF($C$2=5,'5'!F169,IF($C$2=6,'6'!F169,IF($C$2=8,'8'!F169,IF($C$2=9,'9'!F169,IF($C$2="PERU2020",PERU2020!F169)))))))) -> 88782 | N169: =IF($C$2=2,'2'!G169,IF($C$2=3,'3'!G169,IF($C$2=4,'4'!G169,IF($C$2=5,'5'!G169,IF($C$2=6,'6'!G169,IF($C$2=8,'8'!G169,IF($C$2=9,'9'!G169,IF($C$2="PERU2020",PERU2020!G169)))))))) -> 72723 | O169: =IF($C$2=2,'2'!H169,IF($C$2=3,'3'!H169,IF($C$2=4,'4'!H169,IF($C$2=5,'5'!H169,IF($C$2=6,'6'!H169,IF($C$2=8,'8'!H169,IF($C$2=9,'9'!H169,IF($C$2="PERU2020",PERU2020!H169)))))))) -> 61749 | Q169: 180441 | R169: 127509 | S169: 88782 | T169: 72723 | U169: 61749
A170: 70 | B170: 70 | D170: 222062 | E170: 155275 | F170: 104513 | G170: 84730 | H170: 72630 | K170: =IF($C$2=2,'2'!D170,IF($C$2=3,'3'!D170,IF($C$2=4,'4'!D170,IF($C$2=5,'5'!D170,IF($C$2=6,'6'!D170,IF($C$2=8,'8'!D170,IF($C$2=9,'9'!D170,IF($C$2="PERU2020",PERU2020!D170)))))))) -> 222062 | L170: =IF($C$2=2,'2'!E170,IF($C$2=3,'3'!E170,IF($C$2=4,'4'!E170,IF($C$2=5,'5'!E170,IF($C$2=6,'6'!E170,IF($C$2=8,'8'!E170,IF($C$2=9,'9'!E170,IF($C$2="PERU2020",PERU2020!E170)))))))) -> 155275 | M170: =IF($C$2=2,'2'!F170,IF($C$2=3,'3'!F170,IF($C$2=4,'4'!F170,IF($C$2=5,'5'!F170,IF($C$2=6,'6'!F170,IF($C$2=8,'8'!F170,IF($C$2=9,'9'!F170,IF($C$2="PERU2020",PERU2020!F170)))))))) -> 104513 | N170: =IF($C$2=2,'2'!G170,IF($C$2=3,'3'!G170,IF($C$2=4,'4'!G170,IF($C$2=5,'5'!G170,IF($C$2=6,'6'!G170,IF($C$2=8,'8'!G170,IF($C$2=9,'9'!G170,IF($C$2="PERU2020",PERU2020!G170)))))))) -> 84730 | O170: =IF($C$2=2,'2'!H170,IF($C$2=3,'3'!H170,IF($C$2=4,'4'!H170,IF($C$2=5,'5'!H170,IF($C$2=6,'6'!H170,IF($C$2=8,'8'!H170,IF($C$2=9,'9'!H170,IF($C$2="PERU2020",PERU2020!H170)))))))) -> 72630 | Q170: 222062 | R170: 155275 | S170: 104513 | T170: 84730 | U170: 72630
A171: 71 | B171: 71 | D171: 230777 | E171: 161357 | F171: 108621 | G171: 88066 | H171: 75488 | K171: =IF($C$2=2,'2'!D171,IF($C$2=3,'3'!D171,IF($C$2=4,'4'!D171,IF($C$2=5,'5'!D171,IF($C$2=6,'6'!D171,IF($C$2=8,'8'!D171,IF($C$2=9,'9'!D171,IF($C$2="PERU2020",PERU2020!D171)))))))) -> 230777 | L171: =IF($C$2=2,'2'!E171,IF($C$2=3,'3'!E171,IF($C$2=4,'4'!E171,IF($C$2=5,'5'!E171,IF($C$2=6,'6'!E171,IF($C$2=8,'8'!E171,IF($C$2=9,'9'!E171,IF($C$2="PERU2020",PERU2020!E171)))))))) -> 161357 | M171: =IF($C$2=2,'2'!F171,IF($C$2=3,'3'!F171,IF($C$2=4,'4'!F171,IF($C$2=5,'5'!F171,IF($C$2=6,'6'!F171,IF($C$2=8,'8'!F171,IF($C$2=9,'9'!F171,IF($C$2="PERU2020",PERU2020!F171)))))))) -> 108621 | N171: =IF($C$2=2,'2'!G171,IF($C$2=3,'3'!G171,IF($C$2=4,'4'!G171,IF($C$2=5,'5'!G171,IF($C$2=6,'6'!G171,IF($C$2=8,'8'!G171,IF($C$2=9,'9'!G171,IF($C$2="PERU2020",PERU2020!G171)))))))) -> 88066 | O171: =IF($C$2=2,'2'!H171,IF($C$2=3,'3'!H171,IF($C$2=4,'4'!H171,IF($C$2=5,'5'!H171,IF($C$2=6,'6'!H171,IF($C$2=8,'8'!H171,IF($C$2=9,'9'!H171,IF($C$2="PERU2020",PERU2020!H171)))))))) -> 75488 | Q171: 230777 | R171: 161357 | S171: 108621 | T171: 88066 | U171: 75488
A172: 72 | B172: 72 | D172: 237323 | E172: 165920 | F172: 111693 | G172: 90564 | H172: 77623 | K172: =IF($C$2=2,'2'!D172,IF($C$2=3,'3'!D172,IF($C$2=4,'4'!D172,IF($C$2=5,'5'!D172,IF($C$2=6,'6'!D172,IF($C$2=8,'8'!D172,IF($C$2=9,'9'!D172,IF($C$2="PERU2020",PERU2020!D172)))))))) -> 237323 | L172: =IF($C$2=2,'2'!E172,IF($C$2=3,'3'!E172,IF($C$2=4,'4'!E172,IF($C$2=5,'5'!E172,IF($C$2=6,'6'!E172,IF($C$2=8,'8'!E172,IF($C$2=9,'9'!E172,IF($C$2="PERU2020",PERU2020!E172)))))))) -> 165920 | M172: =IF($C$2=2,'2'!F172,IF($C$2=3,'3'!F172,IF($C$2=4,'4'!F172,IF($C$2=5,'5'!F172,IF($C$2=6,'6'!F172,IF($C$2=8,'8'!F172,IF($C$2=9,'9'!F172,IF($C$2="PERU2020",PERU2020!F172)))))))) -> 111693 | N172: =IF($C$2=2,'2'!G172,IF($C$2=3,'3'!G172,IF($C$2=4,'4'!G172,IF($C$2=5,'5'!G172,IF($C$2=6,'6'!G172,IF($C$2=8,'8'!G172,IF($C$2=9,'9'!G172,IF($C$2="PERU2020",PERU2020!G172)))))))) -> 90564 | O172: =IF($C$2=2,'2'!H172,IF($C$2=3,'3'!H172,IF($C$2=4,'4'!H172,IF($C$2=5,'5'!H172,IF($C$2=6,'6'!H172,IF($C$2=8,'8'!H172,IF($C$2=9,'9'!H172,IF($C$2="PERU2020",PERU2020!H172)))))))) -> 77623 | Q172: 237323 | R172: 165920 | S172: 111693 | T172: 90564 | U172: 77623
A173: 73 | B173: 73 | D173: 246021 | E173: 172021 | F173: 115787 | G173: 93883 | H173: 80494 | K173: =IF($C$2=2,'2'!D173,IF($C$2=3,'3'!D173,IF($C$2=4,'4'!D173,IF($C$2=5,'5'!D173,IF($C$2=6,'6'!D173,IF($C$2=8,'8'!D173,IF($C$2=9,'9'!D173,IF($C$2="PERU2020",PERU2020!D173)))))))) -> 246021 | L173: =IF($C$2=2,'2'!E173,IF($C$2=3,'3'!E173,IF($C$2=4,'4'!E173,IF($C$2=5,'5'!E173,IF($C$2=6,'6'!E173,IF($C$2=8,'8'!E173,IF($C$2=9,'9'!E173,IF($C$2="PERU2020",PERU2020!E173)))))))) -> 172021 | M173: =IF($C$2=2,'2'!F173,IF($C$2=3,'3'!F173,IF($C$2=4,'4'!F173,IF($C$2=5,'5'!F173,IF($C$2=6,'6'!F173,IF($C$2=8,'8'!F173,IF($C$2=9,'9'!F173,IF($C$2="PERU2020",PERU2020!F173)))))))) -> 115787 | N173: =IF($C$2=2,'2'!G173,IF($C$2=3,'3'!G173,IF($C$2=4,'4'!G173,IF($C$2=5,'5'!G173,IF($C$2=6,'6'!G173,IF($C$2=8,'8'!G173,IF($C$2=9,'9'!G173,IF($C$2="PERU2020",PERU2020!G173)))))))) -> 93883 | O173: =IF($C$2=2,'2'!H173,IF($C$2=3,'3'!H173,IF($C$2=4,'4'!H173,IF($C$2=5,'5'!H173,IF($C$2=6,'6'!H173,IF($C$2=8,'8'!H173,IF($C$2=9,'9'!H173,IF($C$2="PERU2020",PERU2020!H173)))))))) -> 80494 | Q173: 246021 | R173: 172021 | S173: 115787 | T173: 93883 | U173: 80494
A174: 74 | B174: 74 | D174: 250410 | E174: 175072 | F174: 117850 | G174: 95547 | H174: 81900 | K174: =IF($C$2=2,'2'!D174,IF($C$2=3,'3'!D174,IF($C$2=4,'4'!D174,IF($C$2=5,'5'!D174,IF($C$2=6,'6'!D174,IF($C$2=8,'8'!D174,IF($C$2=9,'9'!D174,IF($C$2="PERU2020",PERU2020!D174)))))))) -> 250410 | L174: =IF($C$2=2,'2'!E174,IF($C$2=3,'3'!E174,IF($C$2=4,'4'!E174,IF($C$2=5,'5'!E174,IF($C$2=6,'6'!E174,IF($C$2=8,'8'!E174,IF($C$2=9,'9'!E174,IF($C$2="PERU2020",PERU2020!E174)))))))) -> 175072 | M174: =IF($C$2=2,'2'!F174,IF($C$2=3,'3'!F174,IF($C$2=4,'4'!F174,IF($C$2=5,'5'!F174,IF($C$2=6,'6'!F174,IF($C$2=8,'8'!F174,IF($C$2=9,'9'!F174,IF($C$2="PERU2020",PERU2020!F174)))))))) -> 117850 | N174: =IF($C$2=2,'2'!G174,IF($C$2=3,'3'!G174,IF($C$2=4,'4'!G174,IF($C$2=5,'5'!G174,IF($C$2=6,'6'!G174,IF($C$2=8,'8'!G174,IF($C$2=9,'9'!G174,IF($C$2="PERU2020",PERU2020!G174)))))))) -> 95547 | O174: =IF($C$2=2,'2'!H174,IF($C$2=3,'3'!H174,IF($C$2=4,'4'!H174,IF($C$2=5,'5'!H174,IF($C$2=6,'6'!H174,IF($C$2=8,'8'!H174,IF($C$2=9,'9'!H174,IF($C$2="PERU2020",PERU2020!H174)))))))) -> 81900 | Q174: 250410 | R174: 175072 | S174: 117850 | T174: 95547 | U174: 81900
A175: 75 | B175: 75+ | D175: 261284 | E175: 182689 | F175: 122973 | G175: 99701 | H175: 85463 | K175: =IF($C$2=2,'2'!D175,IF($C$2=3,'3'!D175,IF($C$2=4,'4'!D175,IF($C$2=5,'5'!D175,IF($C$2=6,'6'!D175,IF($C$2=8,'8'!D175,IF($C$2=9,'9'!D175,IF($C$2="PERU2020",PERU2020!D175)))))))) -> 261284 | L175: =IF($C$2=2,'2'!E175,IF($C$2=3,'3'!E175,IF($C$2=4,'4'!E175,IF($C$2=5,'5'!E175,IF($C$2=6,'6'!E175,IF($C$2=8,'8'!E175,IF($C$2=9,'9'!E175,IF($C$2="PERU2020",PERU2020!E175)))))))) -> 182689 | M175: =IF($C$2=2,'2'!F175,IF($C$2=3,'3'!F175,IF($C$2=4,'4'!F175,IF($C$2=5,'5'!F175,IF($C$2=6,'6'!F175,IF($C$2=8,'8'!F175,IF($C$2=9,'9'!F175,IF($C$2="PERU2020",PERU2020!F175)))))))) -> 122973 | N175: =IF($C$2=2,'2'!G175,IF($C$2=3,'3'!G175,IF($C$2=4,'4'!G175,IF($C$2=5,'5'!G175,IF($C$2=6,'6'!G175,IF($C$2=8,'8'!G175,IF($C$2=9,'9'!G175,IF($C$2="PERU2020",PERU2020!G175)))))))) -> 99701 | O175: =IF($C$2=2,'2'!H175,IF($C$2=3,'3'!H175,IF($C$2=4,'4'!H175,IF($C$2=5,'5'!H175,IF($C$2=6,'6'!H175,IF($C$2=8,'8'!H175,IF($C$2=9,'9'!H175,IF($C$2="PERU2020",PERU2020!H175)))))))) -> 85463 | Q175: 261284 | R175: 182689 | S175: 122973 | T175: 99701 | U175: 85463
A176: 1 | B176: 1 Child | D176: 9518 | E176: 6969 | F176: 4969 | G176: 3767 | H176: 2795 | K176: =IF($C$2=2,'2'!D176,IF($C$2=3,'3'!D176,IF($C$2=4,'4'!D176,IF($C$2=5,'5'!D176,IF($C$2=6,'6'!D176,IF($C$2=8,'8'!D176,IF($C$2=9,'9'!D176,IF($C$2="PERU2020",PERU2020!D176)))))))) -> 9518 | L176: =IF($C$2=2,'2'!E176,IF($C$2=3,'3'!E176,IF($C$2=4,'4'!E176,IF($C$2=5,'5'!E176,IF($C$2=6,'6'!E176,IF($C$2=8,'8'!E176,IF($C$2=9,'9'!E176,IF($C$2="PERU2020",PERU2020!E176)))))))) -> 6969 | M176: =IF($C$2=2,'2'!F176,IF($C$2=3,'3'!F176,IF($C$2=4,'4'!F176,IF($C$2=5,'5'!F176,IF($C$2=6,'6'!F176,IF($C$2=8,'8'!F176,IF($C$2=9,'9'!F176,IF($C$2="PERU2020",PERU2020!F176)))))))) -> 4969 | N176: =IF($C$2=2,'2'!G176,IF($C$2=3,'3'!G176,IF($C$2=4,'4'!G176,IF($C$2=5,'5'!G176,IF($C$2=6,'6'!G176,IF($C$2=8,'8'!G176,IF($C$2=9,'9'!G176,IF($C$2="PERU2020",PERU2020!G176)))))))) -> 3767 | O176: =IF($C$2=2,'2'!H176,IF($C$2=3,'3'!H176,IF($C$2=4,'4'!H176,IF($C$2=5,'5'!H176,IF($C$2=6,'6'!H176,IF($C$2=8,'8'!H176,IF($C$2=9,'9'!H176,IF($C$2="PERU2020",PERU2020!H176)))))))) -> 2795 | Q176: =(K176)*$M$2 -> 9518 | R176: =(L176)*$M$2 -> 6969 | S176: 4969 | T176: 3767 | U176: 2795
A177: 2 | B177: 2 Children | D177: 15159 | E177: 11087 | F177: 7893 | G177: 5979 | H177: 4438 | K177: =IF($C$2=2,'2'!D177,IF($C$2=3,'3'!D177,IF($C$2=4,'4'!D177,IF($C$2=5,'5'!D177,IF($C$2=6,'6'!D177,IF($C$2=8,'8'!D177,IF($C$2=9,'9'!D177,IF($C$2="PERU2020",PERU2020!D177)))))))) -> 15159 | L177: =IF($C$2=2,'2'!E177,IF($C$2=3,'3'!E177,IF($C$2=4,'4'!E177,IF($C$2=5,'5'!E177,IF($C$2=6,'6'!E177,IF($C$2=8,'8'!E177,IF($C$2=9,'9'!E177,IF($C$2="PERU2020",PERU2020!E177)))))))) -> 11087 | M177: =IF($C$2=2,'2'!F177,IF($C$2=3,'3'!F177,IF($C$2=4,'4'!F177,IF($C$2=5,'5'!F177,IF($C$2=6,'6'!F177,IF($C$2=8,'8'!F177,IF($C$2=9,'9'!F177,IF($C$2="PERU2020",PERU2020!F177)))))))) -> 7893 | N177: =IF($C$2=2,'2'!G177,IF($C$2=3,'3'!G177,IF($C$2=4,'4'!G177,IF($C$2=5,'5'!G177,IF($C$2=6,'6'!G177,IF($C$2=8,'8'!G177,IF($C$2=9,'9'!G177,IF($C$2="PERU2020",PERU2020!G177)))))))) -> 5979 | O177: =IF($C$2=2,'2'!H177,IF($C$2=3,'3'!H177,IF($C$2=4,'4'!H177,IF($C$2=5,'5'!H177,IF($C$2=6,'6'!H177,IF($C$2=8,'8'!H177,IF($C$2=9,'9'!H177,IF($C$2="PERU2020",PERU2020!H177)))))))) -> 4438 | Q177: =(K177)*$M$2 -> 15159 | R177: =(L177)*$M$2 -> 11087 | S177: =(M177)*$M$2 -> 7893 | T177: =(N177)*$M$2 -> 5979 | U177: =(O177)*$M$2 -> 4438
A178: 3 | B178: 3+ Children | D178: 22217 | E178: 16239 | F178: 11558 | G178: 8762 | H178: 6505 | K178: =IF($C$2=2,'2'!D178,IF($C$2=3,'3'!D178,IF($C$2=4,'4'!D178,IF($C$2=5,'5'!D178,IF($C$2=6,'6'!D178,IF($C$2=8,'8'!D178,IF($C$2=9,'9'!D178,IF($C$2="PERU2020",PERU2020!D178)))))))) -> 22217 | L178: =IF($C$2=2,'2'!E178,IF($C$2=3,'3'!E178,IF($C$2=4,'4'!E178,IF($C$2=5,'5'!E178,IF($C$2=6,'6'!E178,IF($C$2=8,'8'!E178,IF($C$2=9,'9'!E178,IF($C$2="PERU2020",PERU2020!E178)))))))) -> 16239 | M178: =IF($C$2=2,'2'!F178,IF($C$2=3,'3'!F178,IF($C$2=4,'4'!F178,IF($C$2=5,'5'!F178,IF($C$2=6,'6'!F178,IF($C$2=8,'8'!F178,IF($C$2=9,'9'!F178,IF($C$2="PERU2020",PERU2020!F178)))))))) -> 11558 | N178: =IF($C$2=2,'2'!G178,IF($C$2=3,'3'!G178,IF($C$2=4,'4'!G178,IF($C$2=5,'5'!G178,IF($C$2=6,'6'!G178,IF($C$2=8,'8'!G178,IF($C$2=9,'9'!G178,IF($C$2="PERU2020",PERU2020!G178)))))))) -> 8762 | O178: =IF($C$2=2,'2'!H178,IF($C$2=3,'3'!H178,IF($C$2=4,'4'!H178,IF($C$2=5,'5'!H178,IF($C$2=6,'6'!H178,IF($C$2=8,'8'!H178,IF($C$2=9,'9'!H178,IF($C$2="PERU2020",PERU2020!H178)))))))) -> 6505 | Q178: 22217 | R178: 16239 | S178: 11558 | T178: 8762 | U178: 6505
A179: 1 | B179: Rider Comp. Maternidad | D179: 0 | E179: 0 | F179: 225 | G179: 225 | H179: 225
A180: 1 | B180: Transplante de organos | D180: 0 | E180: 0 | F180: 0 | G180: 0 | H180: 0
A184: TARIFAS SEMESTRALES
A185: EDAD
D186: CW2 | E186: CW3 | F186: CW4 | G186: CW5 | H186: CW6
A187: 18 | B187: 18-24 | D187: =$G$2*D152 -> 14560.69 | E187: 10010.64 | F187: 6464.41 | G187: 4131.35 | H187: 3141.84
A188: 25 | B188: 25-29 | D188: 15275.13 | E188: 11077 | F188: 7158.71 | G188: 4577.08 | H188: 3486.34
A189: 30 | B189: 30-34 | D189: 15941.34 | E189: 11848.15 | F189: 8032.68 | G189: 5536.38 | H189: 4222.51
A190: 35 | B190: 35-39 | D190: 17860.47 | E190: 13263.25 | F190: 9000.99 | G190: 6202.06 | H190: 4738.73
A191: 40 | B191: 40-44 | D191: 20674.24 | E191: 14543.2 | F191: 10005.87 | G191: 6835.94 | H191: 5218.38
A192: 45 | B192: 45-49 | D192: 23098.46 | E192: 16252.98 | F192: 11192.01 | G192: 7641.54 | H192: 5837.95
A193: 50 | B193: 50-54 | D193: 30196.75 | E193: 21436.38 | F193: 14693.19 | G193: 10913.23 | H193: 8340.61
A194: 55 | B194: 55-59 | D194: 32133.37 | E194: 22811.2 | F194: 15630.23 | G194: 11612.83 | H194: 8880.68
A195: 60 | B195: 60 | D195: 34994.84 | E195: 24770.61 | F195: 17797.93 | G195: 13816.57 | H195: 11086.01
A196: 61 | B196: 61 | D196: 37592.37 | E196: 26603.35 | F196: 19113.39 | G196: 14837.88 | H196: 11912.28
A197: 62 | B197: 62 | D197: =$G$2*D162 -> 41147.08 | E197: 29132.51 | F197: 20928.11 | G197: 16248.21 | H197: 13045.42
A198: 63 | B198: 63 | D198: 43753.62 | E198: 30976.38 | F198: 22249.4 | G198: 17279.59 | H198: 13875.4
A199: 64 | B199: 64 | D199: 47330.06 | E199: 33511.9 | F199: 24074.72 | G199: 18686.74 | H199: 15015.96
A200: 65 | B200: 65 | D200: 61871.14 | E200: 43720.23 | F200: 30438.43 | G200: 24921.66 | H200: 21161.84
A201: 66 | B201: 66 | D201: 71875.42 | E201: 50796.26 | F201: 35364.25 | G201: 28968.74 | H201: 24594.65
A202: 67 | B202: 67 | D202: 78504.13 | E202: 55482.52 | F202: 38627.46 | G202: 31638.35 | H202: 26859.87
A203: 68 | B203: 68 | D203: 86921.59 | E203: 61420.11 | F203: 42772.59 | G203: 35031.94 | H203: 29735.12
A204: 69 | B204: 69 | D204: 95633.73 | E204: 67579.77 | F204: 47054.46 | G204: 38543.19 | H204: 32726.97
A205: 70 | B205: 70 | D205: 117692.86 | E205: 82295.75 | F205: 55391.89 | G205: 44906.9 | H205: 38493.9
A206: 71 | B206: 71 | D206: 122311.81 | E206: 85519.21 | F206: 57569.13 | G206: 46674.98 | H206: 40008.64
A207: 72 | B207: 72 | D207: =$G$2*D172 -> 125781.19 | E207: 87937.6 | F207: 59197.29 | G207: 47998.92 | H207: 41140.19
A208: 73 | B208: 73 | D208: 130391.13 | E208: 91171.13 | F208: 61367.11 | G208: 49757.99 | H208: 42661.82
A209: 74 | B209: 74 | D209: 132717.3 | E209: 92788.16 | F209: 62460.5 | G209: 50639.91 | H209: 43407
A210: 75 | B210: 75+ | D210: 138480.52 | E210: 96825.17 | F210: 65175.69 | G210: 52841.53 | H210: 45295.39
A211: 1 | B211: 1 Child | D211: 5044.54 | E211: 3693.57 | F211: 2633.57 | G211: 1996.51 | H211: 1481.35
A212: 2 | B212: 2 Children | D212: 8034.27 | E212: 5876.11 | F212: 4183.29 | G212: 3168.87 | H212: 2352.14
A213: 3 | B213: 3+ Children | D213: 11775.01 | E213: 8606.67 | F213: 6125.74 | G213: 4643.86 | H213: 3447.65
A214: 1 | B214: Rider Comp. Maternidad | D214: =+D179*$G$2 -> 0 | E214: 0 | F214: 119.25 | G214: 119.25 | H214: 119.25
A215: 1 | B215: Transplante de organos | D215: 0 | E215: 0 | F215: 0 | G215: 0 | H215: 0
A220: COMPLETE (LATINAMERICA ONLY)
A221: TARIFAS ANUALES
A222: EDAD
... 335 more rows

Sheet 2 (hidden)
K1: D1 | L1: D2 | M1: D3 | N1: D4 | O1: D5 | P1: D6
B2: REGIÓN | C2: ='INGRESO DE DATOS'!W14 -> 2 | E2: FACTOR SEMESTRAL : | G2: 0.53 | I2: NEW BUSINESS DISCUOUNTS | K2: ='INGRESO DE DATOS'!O42 -> 1 | L2: ='INGRESO DE DATOS'!P42 -> 1 | M2: ='INGRESO DE DATOS'!Q42 -> 1 | N2: ='INGRESO DE DATOS'!R42 -> 1 | O2: ='INGRESO DE DATOS'!S42 -> 1 | P2: ='INGRESO DE DATOS'!T42 -> 1
A5: BUPA EXCLUSIVE CARE
A6: TARIFAS ANUALES
A7: EDAD
C8: DW1 | D8: DW2 | E8: DW3 | F8: DW4 | G8: DW5 | H8: DW6
A9: 18 | B9: 18-24 | D9: 32656 | E9: 21567 | F9: 14014 | G9: 8956 | H9: 7038
A10: 25 | B10: 25-29 | D10: 34251 | E10: 23835 | F10: 15520 | G10: 9931 | H10: 7799
A11: 30 | B11: 30-34 | D11: 35641 | E11: 25576 | F11: 17391 | G11: 11902 | H11: 9379
A12: 35 | B12: 35-39 | D12: 39907 | E12: 28627 | F12: 19507 | G12: 13350 | H12: 10507
A13: 40 | B13: 40-44 | D13: 46269 | E13: 31326 | F13: 21643 | G13: 14687 | H13: 11552
A14: 45 | B14: 45-49 | D14: 51738 | E14: 35032 | F14: 24197 | G14: 16420 | H14: 12928
A15: 50 | B15: 50-54 | D15: 66220 | E15: 45983 | F15: 31589 | G15: 23197 | H15: 18282
A16: 55 | B16: 55-59 | D16: 70466 | E16: 48930 | F16: 33611 | G16: 24692 | H16: 19465
A17: 60 | B17: 60 | D17: 76771 | E17: 53395 | F17: 38687 | G17: 29756 | H17: 24188
A18: 61 | B18: 61 | D18: 82481 | E18: 57366 | F18: 41549 | G18: 31989 | H18: 25997
A19: 62 | B19: 62 | D19: 90305 | E19: 62837 | F19: 45505 | G19: 35011 | H19: 28471
A20: 63 | B20: 63 | D20: 96023 | E20: 66806 | F20: 48379 | G20: 37241 | H20: 30272
A21: 64 | B21: 64 | D21: 103884 | E21: 72298 | F21: 52353 | G21: 40290 | H21: 32769
A22: 65 | B22: 65 | D22: 135812 | E22: 94304 | F22: 66211 | G22: 53747 | H22: 46222
A23: 66 | B23: 66 | D23: 157783 | E23: 109603 | F23: 76946 | G23: 62479 | H23: 53711
A24: 67 | B24: 67 | D24: 172345 | E24: 119704 | F24: 84053 | G24: 68224 | H24: 58675
A25: 68 | B25: 68 | D25: 190842 | E25: 132550 | F25: 93063 | G25: 75567 | H25: 64979
A26: 69 | B26: 69 | D26: 209982 | E26: 145831 | F26: 102405 | G26: 83139 | H26: 71509
A27: 70 | B27: 70 | D27: 258452 | E27: 177594 | F27: 120568 | G27: 96904 | H27: 84114
A28: 71 | B28: 71 | D28: 268594 | E28: 184561 | F28: 125300 | G28: 100708 | H28: 87422
A29: 72 | B29: 72 | D29: 276209 | E29: 189786 | F29: 128835 | G29: 103550 | H29: 89901
A30: 73 | B30: 73 | D30: 286350 | E30: 196773 | F30: 133565 | G30: 107377 | H30: 93210
A31: 74 | B31: 74 | D31: 291424 | E31: 200242 | F31: 135952 | G31: 109271 | H31: 94851
A32: 75 | B32: 75+ | D32: 304120 | E32: 208960 | F32: 141853 | G32: 114034 | H32: 98986
A33: 1 | B33: 1 Child | D33: 11361 | E33: 8367 | F33: 6281 | G33: 4775 | H33: 3723
A34: 2 | B34: 2 Children | D34: 18066 | E34: 13326 | F34: 9993 | G34: 7581 | H34: 5894
A35: 3 | B35: 3+ Children | D35: 26486 | E35: 19539 | F35: 14629 | G35: 11106 | H35: 8642
A36: 1 | B36: Rider Comp. Maternidad | D36: 0 | E36: 0 | F36: 225 | G36: 225 | H36: 225
A37: 1 | B37: Transplante de organos | D37: 0 | E37: 0 | F37: 0 | G37: 0 | H37: 0
A41: TARIFAS SEMESTRALES
A42: EDAD
D43: DW2 | E43: DW3 | F43: DW4 | G43: DW5 | H43: DW6
A44: 18 | B44: 18-24 | D44: =$G$2*D9 -> 17307.68 | E44: 11430.51 | F44: 7427.42 | G44: 4746.68 | H44: 3730.14
A45: 25 | B45: 25-29 | D45: 18153.03 | E45: 12632.55 | F45: 8225.6 | G45: 5263.43 | H45: 4133.47
A46: 30 | B46: 30-34 | D46: 18889.73 | E46: 13555.28 | F46: 9217.23 | G46: 6308.06 | H46: 4970.87
A47: 35 | B47: 35-39 | D47: 21150.71 | E47: 15172.31 | F47: 10338.71 | G47: 7075.5 | H47: 5568.71
A48: 40 | B48: 40-44 | D48: 24522.57 | E48: 16602.78 | F48: 11470.79 | G48: 7784.11 | H48: 6122.56
A49: 45 | B49: 45-49 | D49: 27421.14 | E49: 18566.96 | F49: 12824.41 | G49: 8702.6 | H49: 6851.84
A50: 50 | B50: 50-54 | D50: 35096.6 | E50: 24370.99 | F50: 16742.17 | G50: 12294.41 | H50: 9689.46
A51: 55 | B51: 55-59 | D51: 37346.98 | E51: 25932.9 | F51: 17813.83 | G51: 13086.76 | H51: 10316.45
A52: 60 | B52: 60 | D52: 40688.63 | E52: 28299.35 | F52: 20504.11 | G52: 15770.68 | H52: 12819.64
A53: 61 | B53: 61 | D53: 43714.93 | E53: 30403.98 | F53: 22020.97 | G53: 16954.17 | H53: 13778.41
A54: 62 | B54: 62 | D54: =$G$2*D19 -> 47861.65 | E54: 33303.61 | F54: 24117.65 | G54: 18555.83 | H54: 15089.63
A55: 63 | B55: 63 | D55: 50892.19 | E55: 35407.18 | F55: 25640.87 | G55: 19737.73 | H55: 16044.16
A56: 64 | B56: 64 | D56: 55058.52 | E56: 38317.94 | F56: 27747.09 | G56: 21353.7 | H56: 17367.57
A57: 65 | B57: 65 | D57: 71980.36 | E57: 49981.12 | F57: 35091.83 | G57: 28485.91 | H57: 24497.66
A58: 66 | B58: 66 | D58: 83624.99 | E58: 58089.59 | F58: 40781.38 | G58: 33113.87 | H58: 28466.83
A59: 67 | B59: 67 | D59: 91342.85 | E59: 63443.12 | F59: 44548.09 | G59: 36158.72 | H59: 31097.75
A60: 68 | B60: 68 | D60: 101146.26 | E60: 70251.5 | F60: 49323.39 | G60: 40050.51 | H60: 34438.87
A61: 69 | B61: 69 | D61: 111290.46 | E61: 77290.43 | F61: 54274.65 | G61: 44063.67 | H61: 37899.77
A62: 70 | B62: 70 | D62: 136979.56 | E62: 94124.82 | F62: 63901.04 | G62: 51359.12 | H62: 44580.42
A63: 71 | B63: 71 | D63: 142354.82 | E63: 97817.33 | F63: 66409 | G63: 53375.24 | H63: 46333.66
A64: 72 | B64: 72 | D64: =$G$2*D29 -> 146390.77 | E64: 100586.58 | F64: 68282.55 | G64: 54881.5 | H64: 47647.53
A65: 73 | B65: 73 | D65: 151765.5 | E65: 104289.69 | F65: 70789.45 | G65: 56909.81 | H65: 49401.3
A66: 74 | B66: 74 | D66: 154454.72 | E66: 106128.26 | F66: 72054.56 | G66: 57913.63 | H66: 50271.03
A67: 75 | B67: 75+ | D67: 161183.6 | E67: 110748.8 | F67: 75182.09 | G67: 60438.02 | H67: 52462.58
A68: 1 | B68: 1 Child | D68: 6021.33 | E68: 4434.51 | F68: 3328.93 | G68: 2530.75 | H68: 1973.19
A69: 2 | B69: 2 Children | D69: 9574.98 | E69: 7062.78 | F69: 5296.29 | G69: 4017.93 | H69: 3123.82
A70: 3 | B70: 3+ Children | D70: 14037.58 | E70: 10355.67 | F70: 7753.37 | G70: 5886.18 | H70: 4580.26
A71: 1 | B71: Rider Comp. Maternidad | D71: =+D36*$G$2 -> 0 | E71: 0 | F71: 119.25 | G71: 119.25 | H71: 119.25
A72: 1 | B72: Transplante de organos | D72: 0 | E72: 0 | F72: 0 | G72: 0 | H72: 0
A78: DIAMOND (LATINAMERICA ONLY)
A79: TARIFAS ANUALES
A80: EDAD
C81: DL1 | D81: DL2 | E81: DL3 | F81: DL4 | G81: DL5 | H81: DL6
A82: 18 | B82: - 24
A83: 25 | B83: - 29
A84: 30 | B84: - 34
A85: 35 | B85: - 39
A86: 40 | B86: - 44
A87: 45 | B87: - 49
A88: 50 | B88: - 54
A89: 55 | B89: - 59
A90: 60
A91: 61
A92: 62
A93: 63
A94: 64
A95: 65
A96: 66
A97: 67
A98: 68
A99: 69
A100: 70
A101: 71
A102: 72
A103: 73
A104: 74
A105: 75 | B105: o más
A106: 1 | B106: Hijo
A107: 2 | B107: Hijos
A108: 3 | B108: Hijos o más
A109: 1 | B109: Rider Comp. Maternidad
A110: 1 | B110: Transplante de organos | C110: 0 | D110: 0 | E110: 0 | F110: 0 | G110: 0 | H110: 0
A112: TARIFAS SEMESTRALES
A113: EDAD
C114: DL1 | D114: DL2 | E114: DL3 | F114: DL4 | G114: DL5 | H114: DL6
A115: 18 | B115: - 24 | C115: =+C82*$G$2 -> 0 | D115: 0 | E115: 0 | F115: 0 | G115: 0 | H115: 0
A116: 25 | B116: - 29 | C116: 0 | D116: 0 | E116: 0 | F116: 0 | G116: 0 | H116: 0
A117: 30 | B117: - 34 | C117: 0 | D117: 0 | E117: 0 | F117: 0 | G117: 0 | H117: 0
A118: 35 | B118: - 39 | C118: 0 | D118: 0 | E118: 0 | F118: 0 | G118: 0 | H118: 0
A119: 40 | B119: - 44 | C119: 0 | D119: 0 | E119: 0 | F119: 0 | G119: 0 | H119: 0
A120: 45 | B120: - 49 | C120: 0 | D120: 0 | E120: 0 | F120: 0 | G120: 0 | H120: 0
A121: 50 | B121: - 54 | C121: 0 | D121: 0 | E121: 0 | F121: 0 | G121: 0 | H121: 0
A122: 55 | B122: - 59 | C122: 0 | D122: 0 | E122: 0 | F122: 0 | G122: 0 | H122: 0
A123: 60 | C123: 0 | D123: 0 | E123: 0 | F123: 0 | G123: 0 | H123: 0
A124: 61 | C124: 0 | D124: 0 | E124: 0 | F124: 0 | G124: 0 | H124: 0
A125: 62 | C125: =+C92*$G$2 -> 0 | D125: 0 | E125: 0 | F125: 0 | G125: 0 | H125: 0
A126: 63 | C126: 0 | D126: 0 | E126: 0 | F126: 0 | G126: 0 | H126: 0
A127: 64 | C127: 0 | D127: 0 | E127: 0 | F127: 0 | G127: 0 | H127: 0
A128: 65 | C128: 0 | D128: 0 | E128: 0 | F128: 0 | G128: 0 | H128: 0
A129: 66 | C129: 0 | D129: 0 | E129: 0 | F129: 0 | G129: 0 | H129: 0
A130: 67 | C130: 0 | D130: 0 | E130: 0 | F130: 0 | G130: 0 | H130: 0
A131: 68 | C131: 0 | D131: 0 | E131: 0 | F131: 0 | G131: 0 | H131: 0
A132: 69 | C132: 0 | D132: 0 | E132: 0 | F132: 0 | G132: 0 | H132: 0
A133: 70 | C133: 0 | D133: 0 | E133: 0 | F133: 0 | G133: 0 | H133: 0
A134: 71 | C134: 0 | D134: 0 | E134: 0 | F134: 0 | G134: 0 | H134: 0
A135: 72 | C135: =+C102*$G$2 -> 0 | D135: 0 | E135: 0 | F135: 0 | G135: 0 | H135: 0
A136: 73 | C136: 0 | D136: 0 | E136: 0 | F136: 0 | G136: 0 | H136: 0
A137: 74 | C137: 0 | D137: 0 | E137: 0 | F137: 0 | G137: 0 | H137: 0
A138: 75 | B138: o más | C138: 0 | D138: 0 | E138: 0 | F138: 0 | G138: 0 | H138: 0
A139: 1 | B139: Hijo | C139: 0 | D139: 0 | E139: 0 | F139: 0 | G139: 0 | H139: 0
A140: 2 | B140: Hijos | C140: 0 | D140: 0 | E140: 0 | F140: 0 | G140: 0 | H140: 0
A141: 3 | B141: Hijos o más | C141: 0 | D141: 0 | E141: 0 | F141: 0 | G141: 0 | H141: 0
A142: 1 | B142: Rider Comp. Maternidad | C142: 0 | D142: 0 | E142: 0 | F142: 0 | G142: 0 | H142: 0
A143: 1 | B143: Transplante de organos | C143: 0 | D143: 0 | E143: 0 | F143: 0 | G143: 0 | H143: 0
A148: BUPA PRIVILEGE CARE
A149: TARIFAS ANUALES
A150: EDAD
C151: CW1 | D151: CW2 | E151: CW3 | F151: CW4 | G151: CW5 | H151: CW6
A152: 18 | B152: 18-24 | D152: 27473 | E152: 18888 | F152: 12197 | G152: 7795 | H152: 5928
A153: 25 | B153: 25-29 | D153: 28821 | E153: 20900 | F153: 13507 | G153: 8636 | H153: 6578
A154: 30 | B154: 30-34 | D154: 30078 | E154: 22355 | F154: 15156 | G154: 10446 | H154: 7967
A155: 35 | B155: 35-39 | D155: 33699 | E155: 25025 | F155: 16983 | G155: 11702 | H155: 8941
A156: 40 | B156: 40-44 | D156: 39008 | E156: 27440 | F156: 18879 | G156: 12898 | H156: 9846
A157: 45 | B157: 45-49 | D157: 43582 | E157: 30666 | F157: 21117 | G157: 14418 | H157: 11015
A158: 50 | B158: 50-54 | D158: 56975 | E158: 40446 | F158: 27723 | G158: 20591 | H158: 15737
A159: 55 | B159: 55-59 | D159: 60629 | E159: 43040 | F159: 29491 | G159: 21911 | H159: 16756
A160: 60 | B160: 60 | D160: 66028 | E160: 46737 | F160: 33581 | G160: 26069 | H160: 20917
A161: 61 | B161: 61 | D161: 70929 | E161: 50195 | F161: 36063 | G161: 27996 | H161: 22476
A162: 62 | B162: 62 | D162: 77636 | E162: 54967 | F162: 39487 | G162: 30657 | H162: 24614
A163: 63 | B163: 63 | D163: 82554 | E163: 58446 | F163: 41980 | G163: 32603 | H163: 26180
A164: 64 | B164: 64 | D164: 89302 | E164: 63230 | F164: 45424 | G164: 35258 | H164: 28332
A165: 65 | B165: 65 | D165: 116738 | E165: 82491 | F165: 57431 | G165: 47022 | H165: 39928
A166: 66 | B166: 66 | D166: 135614 | E166: 95842 | F166: 66725 | G166: 54658 | H166: 46405
A167: 67 | B167: 67 | D167: 148121 | E167: 104684 | F167: 72882 | G167: 59695 | H167: 50679
A168: 68 | B168: 68 | D168: 164003 | E168: 115887 | F168: 80703 | G168: 66098 | H168: 56104
A169: 69 | B169: 69 | D169: 180441 | E169: 127509 | F169: 88782 | G169: 72723 | H169: 61749
A170: 70 | B170: 70 | D170: 222062 | E170: 155275 | F170: 104513 | G170: 84730 | H170: 72630
A171: 71 | B171: 71 | D171: 230777 | E171: 161357 | F171: 108621 | G171: 88066 | H171: 75488
A172: 72 | B172: 72 | D172: 237323 | E172: 165920 | F172: 111693 | G172: 90564 | H172: 77623
A173: 73 | B173: 73 | D173: 246021 | E173: 172021 | F173: 115787 | G173: 93883 | H173: 80494
A174: 74 | B174: 74 | D174: 250410 | E174: 175072 | F174: 117850 | G174: 95547 | H174: 81900
A175: 75 | B175: 75+ | D175: 261284 | E175: 182689 | F175: 122973 | G175: 99701 | H175: 85463
A176: 1 | B176: 1 Child | D176: 9518 | E176: 6969 | F176: 4969 | G176: 3767 | H176: 2795
A177: 2 | B177: 2 Children | D177: 15159 | E177: 11087 | F177: 7893 | G177: 5979 | H177: 4438
A178: 3 | B178: 3+ Children | D178: 22217 | E178: 16239 | F178: 11558 | G178: 8762 | H178: 6505
A179: 1 | B179: Rider Comp. Maternidad | D179: 0 | E179: 0 | F179: 225 | G179: 225 | H179: 225
A180: 1 | B180: Transplante de organos | D180: 0 | E180: 0 | F180: 0 | G180: 0 | H180: 0
A184: TARIFAS SEMESTRALES
A185: EDAD
D186: CW2 | E186: CW3 | F186: CW4 | G186: CW5 | H186: CW6
A187: 18 | B187: 18-24 | D187: =$G$2*D152 -> 14560.69 | E187: 10010.64 | F187: 6464.41 | G187: 4131.35 | H187: 3141.84
A188: 25 | B188: 25-29 | D188: 15275.13 | E188: 11077 | F188: 7158.71 | G188: 4577.08 | H188: 3486.34
A189: 30 | B189: 30-34 | D189: 15941.34 | E189: 11848.15 | F189: 8032.68 | G189: 5536.38 | H189: 4222.51
A190: 35 | B190: 35-39 | D190: 17860.47 | E190: 13263.25 | F190: 9000.99 | G190: 6202.06 | H190: 4738.73
A191: 40 | B191: 40-44 | D191: 20674.24 | E191: 14543.2 | F191: 10005.87 | G191: 6835.94 | H191: 5218.38
A192: 45 | B192: 45-49 | D192: 23098.46 | E192: 16252.98 | F192: 11192.01 | G192: 7641.54 | H192: 5837.95
A193: 50 | B193: 50-54 | D193: 30196.75 | E193: 21436.38 | F193: 14693.19 | G193: 10913.23 | H193: 8340.61
A194: 55 | B194: 55-59 | D194: 32133.37 | E194: 22811.2 | F194: 15630.23 | G194: 11612.83 | H194: 8880.68
A195: 60 | B195: 60 | D195: 34994.84 | E195: 24770.61 | F195: 17797.93 | G195: 13816.57 | H195: 11086.01
A196: 61 | B196: 61 | D196: 37592.37 | E196: 26603.35 | F196: 19113.39 | G196: 14837.88 | H196: 11912.28
A197: 62 | B197: 62 | D197: =$G$2*D162 -> 41147.08 | E197: 29132.51 | F197: 20928.11 | G197: 16248.21 | H197: 13045.42
A198: 63 | B198: 63 | D198: 43753.62 | E198: 30976.38 | F198: 22249.4 | G198: 17279.59 | H198: 13875.4
A199: 64 | B199: 64 | D199: 47330.06 | E199: 33511.9 | F199: 24074.72 | G199: 18686.74 | H199: 15015.96
A200: 65 | B200: 65 | D200: 61871.14 | E200: 43720.23 | F200: 30438.43 | G200: 24921.66 | H200: 21161.84
A201: 66 | B201: 66 | D201: 71875.42 | E201: 50796.26 | F201: 35364.25 | G201: 28968.74 | H201: 24594.65
A202: 67 | B202: 67 | D202: 78504.13 | E202: 55482.52 | F202: 38627.46 | G202: 31638.35 | H202: 26859.87
A203: 68 | B203: 68 | D203: 86921.59 | E203: 61420.11 | F203: 42772.59 | G203: 35031.94 | H203: 29735.12
A204: 69 | B204: 69 | D204: 95633.73 | E204: 67579.77 | F204: 47054.46 | G204: 38543.19 | H204: 32726.97
A205: 70 | B205: 70 | D205: 117692.86 | E205: 82295.75 | F205: 55391.89 | G205: 44906.9 | H205: 38493.9
A206: 71 | B206: 71 | D206: 122311.81 | E206: 85519.21 | F206: 57569.13 | G206: 46674.98 | H206: 40008.64
A207: 72 | B207: 72 | D207: =$G$2*D172 -> 125781.19 | E207: 87937.6 | F207: 59197.29 | G207: 47998.92 | H207: 41140.19
A208: 73 | B208: 73 | D208: 130391.13 | E208: 91171.13 | F208: 61367.11 | G208: 49757.99 | H208: 42661.82
A209: 74 | B209: 74 | D209: 132717.3 | E209: 92788.16 | F209: 62460.5 | G209: 50639.91 | H209: 43407
A210: 75 | B210: 75+ | D210: 138480.52 | E210: 96825.17 | F210: 65175.69 | G210: 52841.53 | H210: 45295.39
A211: 1 | B211: 1 Child | D211: 5044.54 | E211: 3693.57 | F211: 2633.57 | G211: 1996.51 | H211: 1481.35
A212: 2 | B212: 2 Children | D212: 8034.27 | E212: 5876.11 | F212: 4183.29 | G212: 3168.87 | H212: 2352.14
A213: 3 | B213: 3+ Children | D213: 11775.01 | E213: 8606.67 | F213: 6125.74 | G213: 4643.86 | H213: 3447.65
A214: 1 | B214: Rider Comp. Maternidad | D214: =+D179*$G$2 -> 0 | E214: 0 | F214: 119.25 | G214: 119.25 | H214: 119.25
A215: 1 | B215: Transplante de organos | D215: 0 | E215: 0 | F215: 0 | G215: 0 | H215: 0
A220: COMPLETE (LATINAMERICA ONLY)
A221: TARIFAS ANUALES
A222: EDAD
... 335 more rows

Sheet 3 (hidden)
K1: D1 | L1: D2 | M1: D3 | N1: D4 | O1: D5 | P1: D6
B2: REGIÓN | C2: ='INGRESO DE DATOS'!W14 -> 2 | E2: FACTOR SEMESTRAL : | G2: 0.53 | I2: NEW BUSINESS DISCUOUNTS | K2: ='INGRESO DE DATOS'!O42 -> 1 | L2: ='INGRESO DE DATOS'!P42 -> 1 | M2: ='INGRESO DE DATOS'!Q42 -> 1 | N2: ='INGRESO DE DATOS'!R42 -> 1 | O2: ='INGRESO DE DATOS'!S42 -> 1 | P2: ='INGRESO DE DATOS'!T42 -> 1
A5: BUPA EXCLUSIVE CARE
A6: TARIFAS ANUALES
A7: EDAD
C8: DW1 | D8: DW2 | E8: DW3 | F8: DW4 | G8: DW5 | H8: DW6
A9: 18 | B9: 18-24 | D9: 33204 | E9: 21933 | F9: 14382 | G9: 9452 | H9: 7445
A10: 25 | B10: 25-29 | D10: 34818 | E10: 24236 | F10: 15934 | G10: 10498 | H10: 8244
A11: 30 | B11: 30-34 | D11: 36222 | E11: 25996 | F11: 17841 | G11: 12567 | H11: 9912
A12: 35 | B12: 35-39 | D12: 40566 | E12: 29109 | F12: 20004 | G12: 14096 | H12: 11103
A13: 40 | B13: 40-44 | D13: 47045 | E13: 31840 | F13: 22198 | G13: 15509 | H13: 12198
A14: 45 | B14: 45-49 | D14: 52592 | E14: 35606 | F14: 24831 | G14: 17326 | H14: 13648
A15: 50 | B15: 50-54 | D15: 67310 | E15: 46751 | F15: 32397 | G15: 24488 | H15: 19309
A16: 55 | B16: 55-59 | D16: 71615 | E16: 49736 | F16: 34476 | G16: 26064 | H16: 20550
A17: 60 | B17: 60 | D17: 78029 | E17: 54278 | F17: 39668 | G17: 31398 | H17: 25545
A18: 61 | B18: 61 | D18: 83842 | E18: 58307 | F18: 42611 | G18: 33759 | H18: 27445
A19: 62 | B19: 62 | D19: 91784 | E19: 63864 | F19: 46673 | G19: 36952 | H19: 30049
A20: 63 | B20: 63 | D20: 97600 | E20: 67896 | F20: 49618 | G20: 39300 | H20: 31955
A21: 64 | B21: 64 | D21: 105572 | E21: 73500 | F21: 53694 | G21: 42519 | H21: 34576
A22: 65 | B22: 65 | D22: 138028 | E22: 95855 | F22: 67895 | G22: 56724 | H22: 48789
A23: 66 | B23: 66 | D23: 160360 | E23: 111392 | F23: 78891 | G23: 65938 | H23: 56697
A24: 67 | B24: 67 | D24: 175150 | E24: 121656 | F24: 86183 | G24: 71984 | H24: 61920
A25: 68 | B25: 68 | D25: 193948 | E25: 134704 | F25: 95433 | G25: 79758 | H25: 68574
A26: 69 | B26: 69 | D26: 213390 | E26: 148209 | F26: 105016 | G26: 87745 | H26: 75456
A27: 70 | B27: 70 | D27: 262641 | E27: 180480 | F27: 123618 | G27: 102250 | H27: 88770
A28: 71 | B28: 71 | D28: 272969 | E28: 187569 | F28: 128476 | G28: 106274 | H28: 92268
A29: 72 | B29: 72 | D29: 280697 | E29: 192867 | F29: 132095 | G29: 109274 | H29: 94876
A30: 73 | B30: 73 | D30: 291011 | E30: 199978 | F30: 136955 | G30: 113303 | H30: 98370
A31: 74 | B31: 74 | D31: 296154 | E31: 203499 | F31: 139388 | G31: 115309 | H31: 100095
A32: 75 | B32: 75+ | D32: 309051 | E32: 212364 | F32: 145451 | G32: 120338 | H32: 104477
A33: 1 | B33: 1 Child | D33: 11543 | E33: 8505 | F33: 6440 | G33: 5036 | H33: 3930
A34: 2 | B34: 2 Children | D34: 18360 | E34: 13551 | F34: 10248 | G34: 7993 | H34: 6223
A35: 3 | B35: 3+ Children | D35: 26896 | E35: 19848 | F35: 14998 | G35: 11719 | H35: 9134
A36: 1 | B36: Rider Comp. Maternidad | D36: 0 | E36: 0 | F36: 225 | G36: 225 | H36: 225
A37: 1 | B37: Transplante de organos | D37: 0 | E37: 0 | F37: 0 | G37: 0 | H37: 0
A41: TARIFAS SEMESTRALES
A42: EDAD
D43: DW2 | E43: DW3 | F43: DW4 | G43: DW5 | H43: DW6
A44: 18 | B44: 18-24 | D44: =$G$2*D9 -> 17598.12 | E44: 11624.49 | F44: 7622.46 | G44: 5009.56 | H44: 3945.85
A45: 25 | B45: 25-29 | D45: 18453.54 | E45: 12845.08 | F45: 8445.02 | G45: 5563.94 | H45: 4369.32
A46: 30 | B46: 30-34 | D46: 19197.66 | E46: 13777.88 | F46: 9455.73 | G46: 6660.51 | H46: 5253.36
A47: 35 | B47: 35-39 | D47: 21499.98 | E47: 15427.77 | F47: 10602.12 | G47: 7470.88 | H47: 5884.59
A48: 40 | B48: 40-44 | D48: 24933.85 | E48: 16875.2 | F48: 11764.94 | G48: 8219.77 | H48: 6464.94
A49: 45 | B49: 45-49 | D49: 27873.76 | E49: 18871.18 | F49: 13160.43 | G49: 9182.78 | H49: 7233.44
A50: 50 | B50: 50-54 | D50: 35674.3 | E50: 24778.03 | F50: 17170.41 | G50: 12978.64 | H50: 10233.77
A51: 55 | B51: 55-59 | D51: 37955.95 | E51: 26360.08 | F51: 18272.28 | G51: 13813.92 | H51: 10891.5
A52: 60 | B52: 60 | D52: 41355.37 | E52: 28767.34 | F52: 21024.04 | G52: 16640.94 | H52: 13538.85
A53: 61 | B53: 61 | D53: 44436.26 | E53: 30902.71 | F53: 22583.83 | G53: 17892.27 | H53: 14545.85
A54: 62 | B54: 62 | D54: 48645.52 | E54: 33847.92 | F54: 24736.69 | G54: 19584.56 | H54: 15925.97
A55: 63 | B55: 63 | D55: 51728 | E55: 35984.88 | F55: 26297.54 | G55: 20829 | H55: 16936.15
A56: 64 | B56: 64 | D56: 55953.16 | E56: 38955 | F56: 28457.82 | G56: 22535.07 | H56: 18325.28
A57: 65 | B57: 65 | D57: 73154.84 | E57: 50803.15 | F57: 35984.35 | G57: 30063.72 | H57: 25858.17
A58: 66 | B58: 66 | D58: 84990.8 | E58: 59037.76 | F58: 41812.23 | G58: 34947.14 | H58: 30049.41
A59: 67 | B59: 67 | D59: 92829.5 | E59: 64477.68 | F59: 45676.99 | G59: 38151.52 | H59: 32817.6
A60: 68 | B60: 68 | D60: =$G$2*D25 -> 102792.44 | E60: 71393.12 | F60: 50579.49 | G60: 42271.74 | H60: 36344.22
A61: 69 | B61: 69 | D61: 113096.7 | E61: 78550.77 | F61: 55658.48 | G61: 46504.85 | H61: 39991.68
A62: 70 | B62: 70 | D62: 139199.73 | E62: 95654.4 | F62: 65517.54 | G62: 54192.5 | H62: 47048.1
A63: 71 | B63: 71 | D63: 144673.57 | E63: 99411.57 | F63: 68092.28 | G63: 56325.22 | H63: 48902.04
A64: 72 | B64: 72 | D64: 148769.41 | E64: 102219.51 | F64: 70010.35 | G64: 57915.22 | H64: 50284.28
A65: 73 | B65: 73 | D65: 154235.83 | E65: 105988.34 | F65: 72586.15 | G65: 60050.59 | H65: 52136.1
A66: 74 | B66: 74 | D66: 156961.62 | E66: 107854.47 | F66: 73875.64 | G66: 61113.77 | H66: 53050.35
A67: 75 | B67: 75+ | D67: 163797.03 | E67: 112552.92 | F67: 77089.03 | G67: 63779.14 | H67: 55372.81
A68: 1 | B68: 1 Child | D68: 6117.79 | E68: 4507.65 | F68: 3413.2 | G68: 2669.08 | H68: 2082.9
A69: 2 | B69: 2 Children | D69: 9730.8 | E69: 7182.03 | F69: 5431.44 | G69: 4236.29 | H69: 3298.19
A70: 3 | B70: 3+ Children | D70: 14254.88 | E70: 10519.44 | F70: 7948.94 | G70: 6211.07 | H70: 4841.02
A71: 1 | B71: Rider Comp. Maternidad | D71: =+D36*$G$2 -> 0 | E71: 0 | F71: 119.25 | G71: 119.25 | H71: 119.25
A72: 1 | B72: Transplante de organos | D72: 0 | E72: 0 | F72: 0 | G72: 0 | H72: 0
A78: DIAMOND (LATINAMERICA ONLY)
A79: TARIFAS ANUALES
A80: EDAD
C81: DL1 | D81: DL2 | E81: DL3 | F81: DL4 | G81: DL5 | H81: DL6
A82: 18 | B82: - 24
A83: 25 | B83: - 29
A84: 30 | B84: - 34
A85: 35 | B85: - 39
A86: 40 | B86: - 44
A87: 45 | B87: - 49
A88: 50 | B88: - 54
A89: 55 | B89: - 59
A90: 60
A91: 61
A92: 62
A93: 63
A94: 64
A95: 65
A96: 66
A97: 67
A98: 68
A99: 69
A100: 70
A101: 71
A102: 72
A103: 73
A104: 74
A105: 75 | B105: o más
A106: 1 | B106: Hijo
A107: 2 | B107: Hijos
A108: 3 | B108: Hijos o más
A109: 1 | B109: Rider Comp. Maternidad
A110: 1 | B110: Transplante de organos | C110: 0 | D110: 0 | E110: 0 | F110: 0 | G110: 0 | H110: 0
A112: TARIFAS SEMESTRALES
A113: EDAD
C114: DL1 | D114: DL2 | E114: DL3 | F114: DL4 | G114: DL5 | H114: DL6
A115: 18 | B115: - 24 | C115: =+C82*$G$2 -> 0 | D115: 0 | E115: 0 | F115: 0 | G115: 0 | H115: 0
A116: 25 | B116: - 29 | C116: 0 | D116: 0 | E116: 0 | F116: 0 | G116: 0 | H116: 0
A117: 30 | B117: - 34 | C117: 0 | D117: 0 | E117: 0 | F117: 0 | G117: 0 | H117: 0
A118: 35 | B118: - 39 | C118: 0 | D118: 0 | E118: 0 | F118: 0 | G118: 0 | H118: 0
A119: 40 | B119: - 44 | C119: 0 | D119: 0 | E119: 0 | F119: 0 | G119: 0 | H119: 0
A120: 45 | B120: - 49 | C120: 0 | D120: 0 | E120: 0 | F120: 0 | G120: 0 | H120: 0
A121: 50 | B121: - 54 | C121: 0 | D121: 0 | E121: 0 | F121: 0 | G121: 0 | H121: 0
A122: 55 | B122: - 59 | C122: 0 | D122: 0 | E122: 0 | F122: 0 | G122: 0 | H122: 0
A123: 60 | C123: 0 | D123: 0 | E123: 0 | F123: 0 | G123: 0 | H123: 0
A124: 61 | C124: 0 | D124: 0 | E124: 0 | F124: 0 | G124: 0 | H124: 0
A125: 62 | C125: 0 | D125: 0 | E125: 0 | F125: 0 | G125: 0 | H125: 0
A126: 63 | C126: 0 | D126: 0 | E126: 0 | F126: 0 | G126: 0 | H126: 0
A127: 64 | C127: 0 | D127: 0 | E127: 0 | F127: 0 | G127: 0 | H127: 0
A128: 65 | C128: 0 | D128: 0 | E128: 0 | F128: 0 | G128: 0 | H128: 0
A129: 66 | C129: 0 | D129: 0 | E129: 0 | F129: 0 | G129: 0 | H129: 0
A130: 67 | C130: 0 | D130: 0 | E130: 0 | F130: 0 | G130: 0 | H130: 0
A131: 68 | C131: =+C98*$G$2 -> 0 | D131: 0 | E131: 0 | F131: 0 | G131: 0 | H131: 0
A132: 69 | C132: 0 | D132: 0 | E132: 0 | F132: 0 | G132: 0 | H132: 0
A133: 70 | C133: 0 | D133: 0 | E133: 0 | F133: 0 | G133: 0 | H133: 0
A134: 71 | C134: 0 | D134: 0 | E134: 0 | F134: 0 | G134: 0 | H134: 0
A135: 72 | C135: 0 | D135: 0 | E135: 0 | F135: 0 | G135: 0 | H135: 0
A136: 73 | C136: 0 | D136: 0 | E136: 0 | F136: 0 | G136: 0 | H136: 0
A137: 74 | C137: 0 | D137: 0 | E137: 0 | F137: 0 | G137: 0 | H137: 0
A138: 75 | B138: o más | C138: 0 | D138: 0 | E138: 0 | F138: 0 | G138: 0 | H138: 0
A139: 1 | B139: Hijo | C139: 0 | D139: 0 | E139: 0 | F139: 0 | G139: 0 | H139: 0
A140: 2 | B140: Hijos | C140: 0 | D140: 0 | E140: 0 | F140: 0 | G140: 0 | H140: 0
A141: 3 | B141: Hijos o más | C141: 0 | D141: 0 | E141: 0 | F141: 0 | G141: 0 | H141: 0
A142: 1 | B142: Rider Comp. Maternidad | C142: 0 | D142: 0 | E142: 0 | F142: 0 | G142: 0 | H142: 0
A143: 1 | B143: Transplante de organos | C143: 0 | D143: 0 | E143: 0 | F143: 0 | G143: 0 | H143: 0
A148: BUPA PRIVILEGE CARE
A149: TARIFAS ANUALES
A150: EDAD
C151: CW1 | D151: CW2 | E151: CW3 | F151: CW4 | G151: CW5 | H151: CW6
A152: 18 | B152: 18-24 | D152: 27911 | E152: 19186 | F152: 12502 | G152: 8218 | H152: 6272
A153: 25 | B153: 25-29 | D153: 29298 | E153: 21252 | F153: 13845 | G153: 9117 | H153: 6947
A154: 30 | B154: 30-34 | D154: 30581 | E154: 22727 | F154: 15549 | G154: 11011 | H154: 8399
A155: 35 | B155: 35-39 | D155: 34242 | E155: 25438 | F155: 17415 | G155: 12347 | H155: 9423
A156: 40 | B156: 40-44 | D156: 39642 | E156: 27891 | F156: 19360 | G156: 13619 | H156: 10396
A157: 45 | B157: 45-49 | D157: 44295 | E157: 31158 | F157: 21642 | G157: 15228 | H157: 11631
A158: 50 | B158: 50-54 | D158: 57906 | E158: 41115 | F158: 28413 | G158: 21724 | H158: 16614
A159: 55 | B159: 55-59 | D159: 61606 | E159: 43746 | F159: 30244 | G159: 23118 | H159: 17667
A160: 60 | B160: 60 | D160: 67080 | E160: 47508 | F160: 34415 | G160: 27500 | H160: 22070
A161: 61 | B161: 61 | D161: 72099 | E161: 51002 | F161: 36992 | G161: 29551 | H161: 23714
A162: 62 | B162: 62 | D162: 78902 | E162: 55877 | F162: 40496 | G162: 32356 | H162: 25982
A163: 63 | B163: 63 | D163: 83882 | E163: 59411 | F163: 43047 | G163: 34397 | H163: 27629
A164: 64 | B164: 64 | D164: 90746 | E164: 64271 | F164: 46578 | G164: 37207 | H164: 29891
A165: 65 | B165: 65 | D165: 118623 | E165: 83823 | F165: 58888 | G165: 49622 | H165: 42143
A166: 66 | B166: 66 | D166: 137812 | E166: 97389 | F166: 68404 | G166: 57660 | H166: 48973
A167: 67 | B167: 67 | D167: 150518 | E167: 106361 | F167: 74710 | G167: 62977 | H167: 53483
A168: 68 | B168: 68 | D168: 166672 | E168: 117784 | F168: 82751 | G168: 69754 | H168: 59213
A169: 69 | B169: 69 | D169: 183357 | E169: 129586 | F169: 91032 | G169: 76726 | H169: 65168
A170: 70 | B170: 70 | D170: 225670 | E170: 157784 | F170: 107146 | G170: 89413 | H170: 76639
A171: 71 | B171: 71 | D171: 234500 | E171: 163986 | F171: 111348 | G171: 92918 | H171: 79652
A172: 72 | B172: 72 | D172: 241154 | E172: 168618 | F172: 114512 | G172: 95556 | H172: 81905
A173: 73 | B173: 73 | D173: 250022 | E173: 174812 | F173: 118721 | G173: 99067 | H173: 84924
A174: 74 | B174: 74 | D174: 254433 | E174: 177899 | F174: 120824 | G174: 100829 | H174: 86425
A175: 75 | B175: 75+ | D175: 265515 | E175: 185646 | F175: 126087 | G175: 105200 | H175: 90199
A176: 1 | B176: 1 Child | D176: 9690 | E176: 7089 | F176: 5096 | G176: 3982 | H176: 2954
A177: 2 | B177: 2 Children | D177: 15404 | E177: 11264 | F177: 8085 | G177: 6336 | H177: 4682
A178: 3 | B178: 3+ Children | D178: 22564 | E178: 16494 | F178: 11854 | G178: 9274 | H178: 6857
A179: 1 | B179: Rider Comp. Maternidad | D179: 0 | E179: 0 | F179: 225 | G179: 225 | H179: 225
A180: 1 | B180: Transplante de organos | D180: 0 | E180: 0 | F180: 0 | G180: 0 | H180: 0
A184: TARIFAS SEMESTRALES
A185: EDAD
D186: CW2 | E186: CW3 | F186: CW4 | G186: CW5 | H186: CW6
A187: 18 | B187: 18-24 | D187: =$G$2*D152 -> 14792.83 | E187: 10168.58 | F187: 6626.06 | G187: 4355.54 | H187: 3324.16
A188: 25 | B188: 25-29 | D188: 15527.94 | E188: 11263.56 | F188: 7337.85 | G188: 4832.01 | H188: 3681.91
A189: 30 | B189: 30-34 | D189: 16207.93 | E189: 12045.31 | F189: 8240.97 | G189: 5835.83 | H189: 4451.47
A190: 35 | B190: 35-39 | D190: 18148.26 | E190: 13482.14 | F190: 9229.95 | G190: 6543.91 | H190: 4994.19
A191: 40 | B191: 40-44 | D191: 21010.26 | E191: 14782.23 | F191: 10260.8 | G191: 7218.07 | H191: 5509.88
A192: 45 | B192: 45-49 | D192: 23476.35 | E192: 16513.74 | F192: 11470.26 | G192: 8070.84 | H192: 6164.43
A193: 50 | B193: 50-54 | D193: 30690.18 | E193: 21790.95 | F193: 15058.89 | G193: 11513.72 | H193: 8805.42
A194: 55 | B194: 55-59 | D194: 32651.18 | E194: 23185.38 | F194: 16029.32 | G194: 12252.54 | H194: 9363.51
A195: 60 | B195: 60 | D195: 35552.4 | E195: 25179.24 | F195: 18239.95 | G195: 14575 | H195: 11697.1
A196: 61 | B196: 61 | D196: 38212.47 | E196: 27031.06 | F196: 19605.76 | G196: 15662.03 | H196: 12568.42
A197: 62 | B197: 62 | D197: 41818.06 | E197: 29614.81 | F197: 21462.88 | G197: 17148.68 | H197: 13770.46
A198: 63 | B198: 63 | D198: 44457.46 | E198: 31487.83 | F198: 22814.91 | G198: 18230.41 | H198: 14643.37
A199: 64 | B199: 64 | D199: 48095.38 | E199: 34063.63 | F199: 24686.34 | G199: 19719.71 | H199: 15842.23
A200: 65 | B200: 65 | D200: 62870.19 | E200: 44426.19 | F200: 31210.64 | G200: 26299.66 | H200: 22335.79
A201: 66 | B201: 66 | D201: 73040.36 | E201: 51616.17 | F201: 36254.12 | G201: 30559.8 | H201: 25955.69
A202: 67 | B202: 67 | D202: 79774.54 | E202: 56371.33 | F202: 39596.3 | G202: 33377.81 | H202: 28345.99
A203: 68 | B203: 68 | D203: =$G$2*D168 -> 88336.16 | E203: 62425.52 | F203: 43858.03 | G203: 36969.62 | H203: 31382.89
A204: 69 | B204: 69 | D204: 97179.21 | E204: 68680.58 | F204: 48246.96 | G204: 40664.78 | H204: 34539.04
A205: 70 | B205: 70 | D205: 119605.1 | E205: 83625.52 | F205: 56787.38 | G205: 47388.89 | H205: 40618.67
A206: 71 | B206: 71 | D206: 124285 | E206: 86912.58 | F206: 59014.44 | G206: 49246.54 | H206: 42215.56
A207: 72 | B207: 72 | D207: 127811.62 | E207: 89367.54 | F207: 60691.36 | G207: 50644.68 | H207: 43409.65
A208: 73 | B208: 73 | D208: 132511.66 | E208: 92650.36 | F208: 62922.13 | G208: 52505.51 | H208: 45009.72
A209: 74 | B209: 74 | D209: 134849.49 | E209: 94286.47 | F209: 64036.72 | G209: 53439.37 | H209: 45805.25
A210: 75 | B210: 75+ | D210: 140722.95 | E210: 98392.38 | F210: 66826.11 | G210: 55756 | H210: 47805.47
A211: 1 | B211: 1 Child | D211: 5135.7 | E211: 3757.17 | F211: 2700.88 | G211: 2110.46 | H211: 1565.62
A212: 2 | B212: 2 Children | D212: 8164.12 | E212: 5969.92 | F212: 4285.05 | G212: 3358.08 | H212: 2481.46
A213: 3 | B213: 3+ Children | D213: 11958.92 | E213: 8741.82 | F213: 6282.62 | G213: 4915.22 | H213: 3634.21
A214: 1 | B214: Rider Comp. Maternidad | D214: =+D179*$G$2 -> 0 | E214: 0 | F214: 119.25 | G214: 119.25 | H214: 119.25
A215: 1 | B215: Transplante de organos | D215: 0 | E215: 0 | F215: 0 | G215: 0 | H215: 0
A220: COMPLETE (LATINAMERICA ONLY)
A221: TARIFAS ANUALES
A222: EDAD
... 335 more rows

Sheet 4 (hidden)
K1: D1 | L1: D2 | M1: D3 | N1: D4 | O1: D5 | P1: D6
B2: REGIÓN | C2: ='INGRESO DE DATOS'!W14 -> 2 | E2: FACTOR SEMESTRAL : | G2: 0.53 | I2: NEW BUSINESS DISCUOUNTS | K2: ='INGRESO DE DATOS'!O42 -> 1 | L2: ='INGRESO DE DATOS'!P42 -> 1 | M2: ='INGRESO DE DATOS'!Q42 -> 1 | N2: ='INGRESO DE DATOS'!R42 -> 1 | O2: ='INGRESO DE DATOS'!S42 -> 1 | P2: ='INGRESO DE DATOS'!T42 -> 1
A5: BUPA EXCLUSIVE CARE
A6: TARIFAS ANUALES
A7: EDAD
C8: DW1 | D8: DW2 | E8: DW3 | F8: DW4 | G8: DW5 | H8: DW6
A9: 18 | B9: 18-24 | D9: 28532 | E9: 18852 | F9: 12359 | G9: 7834 | H9: 6166
A10: 25 | B10: 25-29 | D10: 29931 | E10: 20836 | F10: 13694 | G10: 8688 | H10: 6828
A11: 30 | B11: 30-34 | D11: 31134 | E11: 22343 | F11: 15329 | G11: 10416 | H11: 8213
A12: 35 | B12: 35-39 | D12: 34870 | E12: 25014 | F12: 17188 | G12: 11674 | H12: 9197
A13: 40 | B13: 40-44 | D13: 40442 | E13: 27363 | F13: 19080 | G13: 12839 | H13: 10112
A14: 45 | B14: 45-49 | D14: 45212 | E14: 30603 | F14: 21326 | G14: 14342 | H14: 11305
A15: 50 | B15: 50-54 | D15: 57852 | E15: 40154 | F15: 27826 | G15: 20276 | H15: 15982
A16: 55 | B16: 55-59 | D16: 61553 | E16: 42730 | F16: 29597 | G16: 21571 | H16: 17012
A17: 60 | B17: 60 | D17: 67054 | E17: 46613 | F17: 34071 | G17: 25984 | H17: 21138
A18: 61 | B18: 61 | D18: 72038 | E18: 50092 | F18: 36587 | G18: 27938 | H18: 22712
A19: 62 | B19: 62 | D19: 78870 | E19: 54861 | F19: 40078 | G19: 30572 | H19: 24870
A20: 63 | B20: 63 | D20: 83865 | E20: 58332 | F20: 42594 | G20: 32528 | H20: 26436
A21: 64 | B21: 64 | D21: 90713 | E21: 63114 | F21: 46101 | G21: 35176 | H21: 28623
A22: 65 | B22: 65 | D22: 118596 | E22: 82328 | F22: 58288 | G22: 46921 | H22: 40360
A23: 66 | B23: 66 | D23: 137776 | E23: 95666 | F23: 67725 | G23: 54547 | H23: 46892
A24: 67 | B24: 67 | D24: 150495 | E24: 104487 | F24: 73977 | G24: 59562 | H24: 51227
A25: 68 | B25: 68 | D25: 166643 | E25: 115685 | F25: 81918 | G25: 65966 | H25: 56721
A26: 69 | B26: 69 | D26: 183352 | E26: 127276 | F26: 90135 | G26: 72575 | H26: 62420
A27: 70 | B27: 70 | D27: 225646 | E27: 154989 | F27: 106104 | G27: 84562 | H27: 73427
A28: 71 | B28: 71 | D28: 234519 | E28: 161068 | F28: 110279 | G28: 87896 | H28: 76311
A29: 72 | B29: 72 | D29: 241162 | E29: 165630 | F29: 113379 | G29: 90384 | H29: 78471
A30: 73 | B30: 73 | D30: 250016 | E30: 171724 | F30: 117551 | G30: 93710 | H30: 81337
A31: 74 | B31: 74 | D31: 254444 | E31: 174761 | F31: 119655 | G31: 95368 | H31: 82794
A32: 75 | B32: 75+ | D32: 265520 | E32: 182362 | F32: 124841 | G32: 99520 | H32: 86411
A33: 1 | B33: 1 Child | D33: 9914 | E33: 7304 | F33: 5529 | G33: 4166 | H33: 3240
A34: 2 | B34: 2 Children | D34: 15768 | E34: 11633 | F34: 8798 | G34: 6611 | H34: 5157
A35: 3 | B35: 3+ Children | D35: 23123 | E35: 17037 | F35: 12880 | G35: 9689 | H35: 7545
A36: 1 | B36: Rider Comp. Maternidad | D36: 0 | E36: 0 | F36: 225 | G36: 225 | H36: 225
A37: 1 | B37: Transplante de organos | D37: 0 | E37: 0 | F37: 0 | G37: 0 | H37: 0
A41: TARIFAS SEMESTRALES
A42: EDAD
D43: DW2 | E43: DW3 | F43: DW4 | G43: DW5 | H43: DW6
A44: 18 | B44: 18-24 | D44: =$G$2*D9 -> 15121.96 | E44: 9991.56 | F44: 6550.27 | G44: 4152.02 | H44: 3267.98
A45: 25 | B45: 25-29 | D45: 15863.43 | E45: 11043.08 | F45: 7257.82 | G45: 4604.64 | H45: 3618.84
A46: 30 | B46: 30-34 | D46: 16501.02 | E46: 11841.79 | F46: 8124.37 | G46: 5520.48 | H46: 4352.89
A47: 35 | B47: 35-39 | D47: 18481.1 | E47: 13257.42 | F47: 9109.64 | G47: 6187.22 | H47: 4874.41
A48: 40 | B48: 40-44 | D48: 21434.26 | E48: 14502.39 | F48: 10112.4 | G48: 6804.67 | H48: 5359.36
A49: 45 | B49: 45-49 | D49: 23962.36 | E49: 16219.59 | F49: 11302.78 | G49: 7601.26 | H49: 5991.65
A50: 50 | B50: 50-54 | D50: 30661.56 | E50: 21281.62 | F50: 14747.78 | G50: 10746.28 | H50: 8470.46
A51: 55 | B51: 55-59 | D51: 32623.09 | E51: 22646.9 | F51: 15686.41 | G51: 11432.63 | H51: 9016.36
A52: 60 | B52: 60 | D52: 35538.62 | E52: 24704.89 | F52: 18057.63 | G52: 13771.52 | H52: 11203.14
A53: 61 | B53: 61 | D53: 38180.14 | E53: 26548.76 | F53: 19391.11 | G53: 14807.14 | H53: 12037.36
A54: 62 | B54: 62 | D54: 41801.1 | E54: 29076.33 | F54: 21241.34 | G54: 16203.16 | H54: 13181.1
A55: 63 | B55: 63 | D55: 44448.45 | E55: 30915.96 | F55: 22574.82 | G55: 17239.84 | H55: 14011.08
A56: 64 | B56: 64 | D56: 48077.89 | E56: 33450.42 | F56: 24433.53 | G56: 18643.28 | H56: 15170.19
A57: 65 | B57: 65 | D57: 62855.88 | E57: 43633.84 | F57: 30892.64 | G57: 24868.13 | H57: 21390.8
A58: 66 | B58: 66 | D58: 73021.28 | E58: 50702.98 | F58: 35894.25 | G58: 28909.91 | H58: 24852.76
A59: 67 | B59: 67 | D59: 79762.35 | E59: 55378.11 | F59: 39207.81 | G59: 31567.86 | H59: 27150.31
A60: 68 | B60: 68 | D60: =$G$2*D25 -> 88320.79 | E60: 61313.05 | F60: 43416.54 | G60: 34961.98 | H60: 30062.13
A61: 69 | B61: 69 | D61: 97176.56 | E61: 67456.28 | F61: 47771.55 | G61: 38464.75 | H61: 33082.6
A62: 70 | B62: 70 | D62: 119592.38 | E62: 82144.17 | F62: 56235.12 | G62: 44817.86 | H62: 38916.31
A63: 71 | B63: 71 | D63: 124295.07 | E63: 85366.04 | F63: 58447.87 | G63: 46584.88 | H63: 40444.83
A64: 72 | B64: 72 | D64: 127815.86 | E64: 87783.9 | F64: 60090.87 | G64: 47903.52 | H64: 41589.63
A65: 73 | B65: 73 | D65: 132508.48 | E65: 91013.72 | F65: 62302.03 | G65: 49666.3 | H65: 43108.61
A66: 74 | B66: 74 | D66: 134855.32 | E66: 92623.33 | F66: 63417.15 | G66: 50545.04 | H66: 43880.82
A67: 75 | B67: 75+ | D67: 140725.6 | E67: 96651.86 | F67: 66165.73 | G67: 52745.6 | H67: 45797.83
A68: 1 | B68: 1 Child | D68: 5254.42 | E68: 3871.12 | F68: 2930.37 | G68: 2207.98 | H68: 1717.2
A69: 2 | B69: 2 Children | D69: 8357.04 | E69: 6165.49 | F69: 4662.94 | G69: 3503.83 | H69: 2733.21
A70: 3 | B70: 3+ Children | D70: 12255.19 | E70: 9029.61 | F70: 6826.4 | G70: 5135.17 | H70: 3998.85
A71: 1 | B71: Rider Comp. Maternidad | D71: =+D36*$G$2 -> 0 | E71: 0 | F71: 119.25 | G71: 119.25 | H71: 119.25
A72: 1 | B72: Transplante de organos | D72: 0 | E72: 0 | F72: 0 | G72: 0 | H72: 0
A78: DIAMOND (LATINAMERICA ONLY)
A79: TARIFAS ANUALES
A80: EDAD
C81: DL1 | D81: DL2 | E81: DL3 | F81: DL4 | G81: DL5 | H81: DL6
A82: 18 | B82: - 24
A83: 25 | B83: - 29
A84: 30 | B84: - 34
A85: 35 | B85: - 39
A86: 40 | B86: - 44
A87: 45 | B87: - 49
A88: 50 | B88: - 54
A89: 55 | B89: - 59
A90: 60
A91: 61
A92: 62
A93: 63
A94: 64
A95: 65
A96: 66
A97: 67
A98: 68
A99: 69
A100: 70
A101: 71
A102: 72
A103: 73
A104: 74
A105: 75 | B105: o más
A106: 1 | B106: Hijo
A107: 2 | B107: Hijos
A108: 3 | B108: Hijos o más
A109: 1 | B109: Rider Comp. Maternidad
A110: 1 | B110: Transplante de organos | C110: 0 | D110: 0 | E110: 0 | F110: 0 | G110: 0 | H110: 0
A112: TARIFAS SEMESTRALES
A113: EDAD
C114: DL1 | D114: DL2 | E114: DL3 | F114: DL4 | G114: DL5 | H114: DL6
A115: 18 | B115: - 24 | C115: =+C82*$G$2 -> 0 | D115: 0 | E115: 0 | F115: 0 | G115: 0 | H115: 0
A116: 25 | B116: - 29 | C116: 0 | D116: 0 | E116: 0 | F116: 0 | G116: 0 | H116: 0
A117: 30 | B117: - 34 | C117: 0 | D117: 0 | E117: 0 | F117: 0 | G117: 0 | H117: 0
A118: 35 | B118: - 39 | C118: 0 | D118: 0 | E118: 0 | F118: 0 | G118: 0 | H118: 0
A119: 40 | B119: - 44 | C119: 0 | D119: 0 | E119: 0 | F119: 0 | G119: 0 | H119: 0
A120: 45 | B120: - 49 | C120: 0 | D120: 0 | E120: 0 | F120: 0 | G120: 0 | H120: 0
A121: 50 | B121: - 54 | C121: 0 | D121: 0 | E121: 0 | F121: 0 | G121: 0 | H121: 0
A122: 55 | B122: - 59 | C122: 0 | D122: 0 | E122: 0 | F122: 0 | G122: 0 | H122: 0
A123: 60 | C123: 0 | D123: 0 | E123: 0 | F123: 0 | G123: 0 | H123: 0
A124: 61 | C124: 0 | D124: 0 | E124: 0 | F124: 0 | G124: 0 | H124: 0
A125: 62 | C125: 0 | D125: 0 | E125: 0 | F125: 0 | G125: 0 | H125: 0
A126: 63 | C126: 0 | D126: 0 | E126: 0 | F126: 0 | G126: 0 | H126: 0
A127: 64 | C127: 0 | D127: 0 | E127: 0 | F127: 0 | G127: 0 | H127: 0
A128: 65 | C128: 0 | D128: 0 | E128: 0 | F128: 0 | G128: 0 | H128: 0
A129: 66 | C129: 0 | D129: 0 | E129: 0 | F129: 0 | G129: 0 | H129: 0
A130: 67 | C130: 0 | D130: 0 | E130: 0 | F130: 0 | G130: 0 | H130: 0
A131: 68 | C131: =+C98*$G$2 -> 0 | D131: 0 | E131: 0 | F131: 0 | G131: 0 | H131: 0
A132: 69 | C132: 0 | D132: 0 | E132: 0 | F132: 0 | G132: 0 | H132: 0
A133: 70 | C133: 0 | D133: 0 | E133: 0 | F133: 0 | G133: 0 | H133: 0
A134: 71 | C134: 0 | D134: 0 | E134: 0 | F134: 0 | G134: 0 | H134: 0
A135: 72 | C135: 0 | D135: 0 | E135: 0 | F135: 0 | G135: 0 | H135: 0
A136: 73 | C136: 0 | D136: 0 | E136: 0 | F136: 0 | G136: 0 | H136: 0
A137: 74 | C137: 0 | D137: 0 | E137: 0 | F137: 0 | G137: 0 | H137: 0
A138: 75 | B138: o más | C138: 0 | D138: 0 | E138: 0 | F138: 0 | G138: 0 | H138: 0
A139: 1 | B139: Hijo | C139: 0 | D139: 0 | E139: 0 | F139: 0 | G139: 0 | H139: 0
A140: 2 | B140: Hijos | C140: 0 | D140: 0 | E140: 0 | F140: 0 | G140: 0 | H140: 0
A141: 3 | B141: Hijos o más | C141: 0 | D141: 0 | E141: 0 | F141: 0 | G141: 0 | H141: 0
A142: 1 | B142: Rider Comp. Maternidad | C142: 0 | D142: 0 | E142: 0 | F142: 0 | G142: 0 | H142: 0
A143: 1 | B143: Transplante de organos | C143: 0 | D143: 0 | E143: 0 | F143: 0 | G143: 0 | H143: 0
A148: BUPA PRIVILEGE CARE
A149: TARIFAS ANUALES
A150: EDAD
C151: CW1 | D151: CW2 | E151: CW3 | F151: CW4 | G151: CW5 | H151: CW6
A152: 18 | B152: 18-24 | D152: 24002 | E152: 16499 | F152: 10744 | G152: 6815 | H152: 5183
A153: 25 | B153: 25-29 | D153: 25174 | E153: 18254 | F153: 11897 | G153: 7544 | H153: 5742
A154: 30 | B154: 30-34 | D154: 26301 | E154: 19523 | F154: 13354 | G154: 9115 | H154: 6974
A155: 35 | B155: 35-39 | D155: 29441 | E155: 21855 | F155: 14966 | G155: 10225 | H155: 7807
A156: 40 | B156: 40-44 | D156: 34086 | E156: 23970 | F156: 16636 | G156: 11276 | H156: 8619
A157: 45 | B157: 45-49 | D157: 38081 | E157: 26783 | F157: 18585 | G157: 12604 | H157: 9625
A158: 50 | B158: 50-54 | D158: 49774 | E158: 35328 | F158: 24404 | G158: 17969 | H158: 13742
A159: 55 | B159: 55-59 | D159: 52947 | E159: 37581 | F159: 25967 | G159: 19128 | H159: 14621
A160: 60 | B160: 60 | D160: 57660 | E160: 40802 | F160: 29554 | G160: 22743 | H160: 18284
A161: 61 | B161: 61 | D161: 61947 | E161: 43830 | F161: 31749 | G161: 24445 | H161: 19636
A162: 62 | B162: 62 | D162: 67808 | E162: 48008 | F162: 34766 | G162: 26765 | H162: 21501
A163: 63 | B163: 63 | D163: 72108 | E163: 51038 | F163: 36960 | G163: 28472 | H163: 22856
A164: 64 | B164: 64 | D164: 77986 | E164: 55224 | F164: 39990 | G164: 30797 | H164: 24733
A165: 65 | B165: 65 | D165: 101964 | E165: 72016 | F165: 50555 | G165: 41059 | H165: 34868
A166: 66 | B166: 66 | D166: 118442 | E166: 83679 | F166: 58742 | G166: 47719 | H166: 40511
A167: 67 | B167: 67 | D167: 129354 | E167: 91390 | F167: 64158 | G167: 52098 | H167: 44250
A168: 68 | B168: 68 | D168: 143236 | E168: 101182 | F168: 71050 | G168: 57698 | H168: 48998
A169: 69 | B169: 69 | D169: 157586 | E169: 111318 | F169: 78154 | G169: 63473 | H169: 53915
A170: 70 | B170: 70 | D170: 193942 | E170: 135550 | F170: 92003 | G170: 73981 | H170: 63398
A171: 71 | B171: 71 | D171: 201558 | E171: 140852 | F171: 95601 | G171: 76876 | H171: 65902
A172: 72 | B172: 72 | D172: 207273 | E172: 144837 | F172: 98321 | G172: 79053 | H172: 67760
A173: 73 | B173: 73 | D173: 214872 | E173: 150170 | F173: 101925 | G173: 81960 | H173: 70270
A174: 74 | B174: 74 | D174: 218676 | E174: 152818 | F174: 103730 | G174: 83422 | H174: 71495
A175: 75 | B175: 75+ | D175: 228200 | E175: 159476 | F175: 108242 | G175: 87045 | H175: 74607
A176: 1 | B176: 1 Child | D176: 8320 | E176: 6071 | F176: 4365 | G176: 3290 | H176: 2441
A177: 2 | B177: 2 Children | D177: 13223 | E177: 9676 | F177: 6958 | G177: 5238 | H177: 3877
A178: 3 | B178: 3+ Children | D178: 19395 | E178: 14174 | F178: 10186 | G178: 7674 | H178: 5683
A179: 1 | B179: Rider Comp. Maternidad | D179: 0 | E179: 0 | F179: 225 | G179: 225 | H179: 225
A180: 1 | B180: Transplante de organos | D180: 0 | E180: 0 | F180: 0 | G180: 0 | H180: 0
A184: TARIFAS SEMESTRALES
A185: EDAD
D186: CW2 | E186: CW3 | F186: CW4 | G186: CW5 | H186: CW6
A187: 18 | B187: 18-24 | D187: =$G$2*D152 -> 12721.06 | E187: 8744.47 | F187: 5694.32 | G187: 3611.95 | H187: 2746.99
A188: 25 | B188: 25-29 | D188: 13342.22 | E188: 9674.62 | F188: 6305.41 | G188: 3998.32 | H188: 3043.26
A189: 30 | B189: 30-34 | D189: 13939.53 | E189: 10347.19 | F189: 7077.62 | G189: 4830.95 | H189: 3696.22
A190: 35 | B190: 35-39 | D190: 15603.73 | E190: 11583.15 | F190: 7931.98 | G190: 5419.25 | H190: 4137.71
A191: 40 | B191: 40-44 | D191: 18065.58 | E191: 12704.1 | F191: 8817.08 | G191: 5976.28 | H191: 4568.07
A192: 45 | B192: 45-49 | D192: 20182.93 | E192: 14194.99 | F192: 9850.05 | G192: 6680.12 | H192: 5101.25
A193: 50 | B193: 50-54 | D193: 26380.22 | E193: 18723.84 | F193: 12934.12 | G193: 9523.57 | H193: 7283.26
A194: 55 | B194: 55-59 | D194: 28061.91 | E194: 19917.93 | F194: 13762.51 | G194: 10137.84 | H194: 7749.13
A195: 60 | B195: 60 | D195: 30559.8 | E195: 21625.06 | F195: 15663.62 | G195: 12053.79 | H195: 9690.52
A196: 61 | B196: 61 | D196: 32831.91 | E196: 23229.9 | F196: 16826.97 | G196: 12955.85 | H196: 10407.08
A197: 62 | B197: 62 | D197: 35938.24 | E197: 25444.24 | F197: 18425.98 | G197: 14185.45 | H197: 11395.53
A198: 63 | B198: 63 | D198: 38217.24 | E198: 27050.14 | F198: 19588.8 | G198: 15090.16 | H198: 12113.68
A199: 64 | B199: 64 | D199: 41332.58 | E199: 29268.72 | F199: 21194.7 | G199: 16322.41 | H199: 13108.49
A200: 65 | B200: 65 | D200: 54040.92 | E200: 38168.48 | F200: 26794.15 | G200: 21761.27 | H200: 18480.04
A201: 66 | B201: 66 | D201: 62774.26 | E201: 44349.87 | F201: 31133.26 | G201: 25291.07 | H201: 21470.83
A202: 67 | B202: 67 | D202: 68557.62 | E202: 48436.7 | F202: 34003.74 | G202: 27611.94 | H202: 23452.5
A203: 68 | B203: 68 | D203: =$G$2*D168 -> 75915.08 | E203: 53626.46 | F203: 37656.5 | G203: 30579.94 | H203: 25968.94
A204: 69 | B204: 69 | D204: 83520.58 | E204: 58998.54 | F204: 41421.62 | G204: 33640.69 | H204: 28574.95
A205: 70 | B205: 70 | D205: 102789.26 | E205: 71841.5 | F205: 48761.59 | G205: 39209.93 | H205: 33600.94
A206: 71 | B206: 71 | D206: 106825.74 | E206: 74651.56 | F206: 50668.53 | G206: 40744.28 | H206: 34928.06
A207: 72 | B207: 72 | D207: 109854.69 | E207: 76763.61 | F207: 52110.13 | G207: 41898.09 | H207: 35912.8
A208: 73 | B208: 73 | D208: 113882.16 | E208: 79590.1 | F208: 54020.25 | G208: 43438.8 | H208: 37243.1
A209: 74 | B209: 74 | D209: 115898.28 | E209: 80993.54 | F209: 54976.9 | G209: 44213.66 | H209: 37892.35
A210: 75 | B210: 75+ | D210: 120946 | E210: 84522.28 | F210: 57368.26 | G210: 46133.85 | H210: 39541.71
A211: 1 | B211: 1 Child | D211: 4409.6 | E211: 3217.63 | F211: 2313.45 | G211: 1743.7 | H211: 1293.73
A212: 2 | B212: 2 Children | D212: 7008.19 | E212: 5128.28 | F212: 3687.74 | G212: 2776.14 | H212: 2054.81
A213: 3 | B213: 3+ Children | D213: 10279.35 | E213: 7512.22 | F213: 5398.58 | G213: 4067.22 | H213: 3011.99
A214: 1 | B214: Rider Comp. Maternidad | D214: =+D179*$G$2 -> 0 | E214: 0 | F214: 119.25 | G214: 119.25 | H214: 119.25
A215: 1 | B215: Transplante de organos | D215: 0 | E215: 0 | F215: 0 | G215: 0 | H215: 0
A220: COMPLETE (LATINAMERICA ONLY)
A221: TARIFAS ANUALES
A222: EDAD
... 335 more rows

Sheet 5 (hidden)
K1: D1 | L1: D2 | M1: D3 | N1: D4 | O1: D5 | P1: D6
B2: REGIÓN | C2: ='INGRESO DE DATOS'!W14 -> 2 | E2: FACTOR SEMESTRAL : | G2: 0.53 | I2: NEW BUSINESS DISCUOUNTS | K2: ='INGRESO DE DATOS'!O42 -> 1 | L2: ='INGRESO DE DATOS'!P42 -> 1 | M2: ='INGRESO DE DATOS'!Q42 -> 1 | N2: ='INGRESO DE DATOS'!R42 -> 1 | O2: ='INGRESO DE DATOS'!S42 -> 1 | P2: ='INGRESO DE DATOS'!T42 -> 1
A5: BUPA EXCLUSIVE CARE
A6: TARIFAS ANUALES
A7: EDAD
C8: DW1 | D8: DW2 | E8: DW3 | F8: DW4 | G8: DW5 | H8: DW6
A9: 18 | B9: 18-24 | D9: 17297 | E9: 11445 | F9: 7964 | G9: 5075 | H9: 3990
A10: 25 | B10: 25-29 | D10: 18144 | E10: 12640 | F10: 8815 | G10: 5611 | H10: 4418
A11: 30 | B11: 30-34 | D11: 18870 | E11: 13553 | F11: 9869 | G11: 6718 | H11: 5300
A12: 35 | B12: 35-39 | D12: 21140 | E12: 15176 | F12: 11056 | G12: 7529 | H12: 5934
A13: 40 | B13: 40-44 | D13: 24495 | E13: 16583 | F13: 12272 | G13: 8267 | H13: 6520
A14: 45 | B14: 45-49 | D14: 27381 | E14: 18549 | F14: 13700 | G14: 9244 | H14: 7286
A15: 50 | B15: 50-54 | D15: 35041 | E15: 24325 | F15: 17882 | G15: 13053 | H15: 10297
A16: 55 | B16: 55-59 | D16: 37272 | E16: 25884 | F16: 19023 | G16: 13885 | H16: 10957
A17: 60 | B17: 60 | D17: 40598 | E17: 28238 | F17: 21878 | G17: 16720 | H17: 13608
A18: 61 | B18: 61 | D18: 43622 | E18: 30340 | F18: 23487 | G18: 17969 | H18: 14616
A19: 62 | B19: 62 | D19: 47761 | E19: 33219 | F19: 25735 | G19: 19662 | H19: 16000
A20: 63 | B20: 63 | D20: 50774 | E20: 35319 | F20: 27351 | G20: 20920 | H20: 17017
A21: 64 | B21: 64 | D21: 54922 | E21: 38221 | F21: 29593 | G21: 22624 | H21: 18407
A22: 65 | B22: 65 | D22: 71780 | E22: 49843 | F22: 37407 | G22: 30163 | H22: 25948
A23: 66 | B23: 66 | D23: 83385 | E23: 57907 | F23: 43467 | G23: 35053 | H23: 30148
A24: 67 | B24: 67 | D24: 91084 | E24: 63240 | F24: 47476 | G24: 38283 | H24: 32921
A25: 68 | B25: 68 | D25: 100844 | E25: 70020 | F25: 52560 | G25: 42394 | H25: 36464
A26: 69 | B26: 69 | D26: 110963 | E26: 77052 | F26: 57826 | G26: 46634 | H26: 40113
A27: 70 | B27: 70 | D27: 136555 | E27: 93805 | F27: 68075 | G27: 54340 | H27: 47173
A28: 71 | B28: 71 | D28: 141914 | E28: 97493 | F28: 70745 | G28: 56479 | H28: 49025
A29: 72 | B29: 72 | D29: 145938 | E29: 100236 | F29: 72739 | G29: 58074 | H29: 50425
A30: 73 | B30: 73 | D30: 151295 | E30: 103921 | F30: 75413 | G30: 60214 | H30: 52272
A31: 74 | B31: 74 | D31: 153971 | E31: 105755 | F31: 76754 | G31: 61272 | H31: 53195
A32: 75 | B32: 75+ | D32: 160673 | E32: 110366 | F32: 80088 | G32: 63944 | H32: 55513
A33: 1 | B33: 1 Child | D33: 6009 | E33: 4421 | F33: 3550 | G33: 2673 | H33: 2088
A34: 2 | B34: 2 Children | D34: 9546 | E34: 7041 | F34: 5637 | G34: 4246 | H34: 3306
A35: 3 | B35: 3+ Children | D35: 13998 | E35: 10302 | F35: 8263 | G35: 6224 | H35: 4850
A36: 1 | B36: Rider Comp. Maternidad | D36: 0 | E36: 0 | F36: 225 | G36: 225 | H36: 225
A37: 1 | B37: Transplante de organos | D37: 0 | E37: 0 | F37: 0 | G37: 0 | H37: 0
A41: TARIFAS SEMESTRALES
A42: EDAD
D43: DW2 | E43: DW3 | F43: DW4 | G43: DW5 | H43: DW6
A44: 18 | B44: 18-24 | D44: =$G$2*D9 -> 9167.41 | E44: 6065.85 | F44: 4220.92 | G44: 2689.75 | H44: 2114.7
A45: 25 | B45: 25-29 | D45: 9616.32 | E45: 6699.2 | F45: 4671.95 | G45: 2973.83 | H45: 2341.54
A46: 30 | B46: 30-34 | D46: 10001.1 | E46: 7183.09 | F46: 5230.57 | G46: 3560.54 | H46: 2809
A47: 35 | B47: 35-39 | D47: 11204.2 | E47: 8043.28 | F47: 5859.68 | G47: 3990.37 | H47: 3145.02
A48: 40 | B48: 40-44 | D48: 12982.35 | E48: 8788.99 | F48: 6504.16 | G48: 4381.51 | H48: 3455.6
A49: 45 | B49: 45-49 | D49: 14511.93 | E49: 9830.97 | F49: 7261 | G49: 4899.32 | H49: 3861.58
A50: 50 | B50: 50-54 | D50: 18571.73 | E50: 12892.25 | F50: 9477.46 | G50: 6918.09 | H50: 5457.41
A51: 55 | B51: 55-59 | D51: 19754.16 | E51: 13718.52 | F51: 10082.19 | G51: 7359.05 | H51: 5807.21
A52: 60 | B52: 60 | D52: 21516.94 | E52: 14966.14 | F52: 11595.34 | G52: 8861.6 | H52: 7212.24
A53: 61 | B53: 61 | D53: 23119.66 | E53: 16080.2 | F53: 12448.11 | G53: 9523.57 | H53: 7746.48
A54: 62 | B54: 62 | D54: 25313.33 | E54: 17606.07 | F54: 13639.55 | G54: 10420.86 | H54: 8480
A55: 63 | B55: 63 | D55: 26910.22 | E55: 18719.07 | F55: 14496.03 | G55: 11087.6 | H55: 9019.01
A56: 64 | B56: 64 | D56: 29108.66 | E56: 20257.13 | F56: 15684.29 | G56: 11990.72 | H56: 9755.71
A57: 65 | B57: 65 | D57: 38043.4 | E57: 26416.79 | F57: 19825.71 | G57: 15986.39 | H57: 13752.44
A58: 66 | B58: 66 | D58: 44194.05 | E58: 30690.71 | F58: 23037.51 | G58: 18578.09 | H58: 15978.44
A59: 67 | B59: 67 | D59: 48274.52 | E59: 33517.2 | F59: 25162.28 | G59: 20289.99 | H59: 17448.13
A60: 68 | B60: 68 | D60: =$G$2*D25 -> 53447.32 | E60: 37110.6 | F60: 27856.8 | G60: 22468.82 | H60: 19325.92
A61: 69 | B61: 69 | D61: 58810.39 | E61: 40837.56 | F61: 30647.78 | G61: 24716.02 | H61: 21259.89
A62: 70 | B62: 70 | D62: 72374.15 | E62: 49716.65 | F62: 36079.75 | G62: 28800.2 | H62: 25001.69
A63: 71 | B63: 71 | D63: 75214.42 | E63: 51671.29 | F63: 37494.85 | G63: 29933.87 | H63: 25983.25
A64: 72 | B64: 72 | D64: 77347.14 | E64: 53125.08 | F64: 38551.67 | G64: 30779.22 | H64: 26725.25
A65: 73 | B65: 73 | D65: 80186.35 | E65: 55078.13 | F65: 39968.89 | G65: 31913.42 | H65: 27704.16
A66: 74 | B66: 74 | D66: 81604.63 | E66: 56050.15 | F66: 40679.62 | G66: 32474.16 | H66: 28193.35
A67: 75 | B67: 75+ | D67: 85156.69 | E67: 58493.98 | F67: 42446.64 | G67: 33890.32 | H67: 29421.89
A68: 1 | B68: 1 Child | D68: 3184.77 | E68: 2343.13 | F68: 1881.5 | G68: 1416.69 | H68: 1106.64
A69: 2 | B69: 2 Children | D69: 5059.38 | E69: 3731.73 | F69: 2987.61 | G69: 2250.38 | H69: 1752.18
A70: 3 | B70: 3+ Children | D70: 7418.94 | E70: 5460.06 | F70: 4379.39 | G70: 3298.72 | H70: 2570.5
A71: 1 | B71: Rider Comp. Maternidad | D71: =+D36*$G$2 -> 0 | E71: 0 | F71: 119.25 | G71: 119.25 | H71: 119.25
A72: 1 | B72: Transplante de organos | D72: 0 | E72: 0 | F72: 0 | G72: 0 | H72: 0
A78: DIAMOND (LATINAMERICA ONLY)
A79: TARIFAS ANUALES
A80: EDAD
C81: DL1 | D81: DL2 | E81: DL3 | F81: DL4 | G81: DL5 | H81: DL6
A82: 18 | B82: - 24
A83: 25 | B83: - 29
A84: 30 | B84: - 34
A85: 35 | B85: - 39
A86: 40 | B86: - 44
A87: 45 | B87: - 49
A88: 50 | B88: - 54
A89: 55 | B89: - 59
A90: 60
A91: 61
A92: 62
A93: 63
A94: 64
A95: 65
A96: 66
A97: 67
A98: 68
A99: 69
A100: 70
A101: 71
A102: 72
A103: 73
A104: 74
A105: 75 | B105: o más
A106: 1 | B106: Hijo
A107: 2 | B107: Hijos
A108: 3 | B108: Hijos o más
A109: 1 | B109: Rider Comp. Maternidad
A110: 1 | B110: Transplante de organos | C110: 0 | D110: 0 | E110: 0 | F110: 0 | G110: 0 | H110: 0
A112: TARIFAS SEMESTRALES
A113: EDAD
C114: DL1 | D114: DL2 | E114: DL3 | F114: DL4 | G114: DL5 | H114: DL6
A115: 18 | B115: - 24 | C115: =+C82*$G$2 -> 0 | D115: 0 | E115: 0 | F115: 0 | G115: 0 | H115: 0
A116: 25 | B116: - 29 | C116: 0 | D116: 0 | E116: 0 | F116: 0 | G116: 0 | H116: 0
A117: 30 | B117: - 34 | C117: 0 | D117: 0 | E117: 0 | F117: 0 | G117: 0 | H117: 0
A118: 35 | B118: - 39 | C118: 0 | D118: 0 | E118: 0 | F118: 0 | G118: 0 | H118: 0
A119: 40 | B119: - 44 | C119: 0 | D119: 0 | E119: 0 | F119: 0 | G119: 0 | H119: 0
A120: 45 | B120: - 49 | C120: 0 | D120: 0 | E120: 0 | F120: 0 | G120: 0 | H120: 0
A121: 50 | B121: - 54 | C121: 0 | D121: 0 | E121: 0 | F121: 0 | G121: 0 | H121: 0
A122: 55 | B122: - 59 | C122: 0 | D122: 0 | E122: 0 | F122: 0 | G122: 0 | H122: 0
A123: 60 | C123: 0 | D123: 0 | E123: 0 | F123: 0 | G123: 0 | H123: 0
A124: 61 | C124: 0 | D124: 0 | E124: 0 | F124: 0 | G124: 0 | H124: 0
A125: 62 | C125: 0 | D125: 0 | E125: 0 | F125: 0 | G125: 0 | H125: 0
A126: 63 | C126: 0 | D126: 0 | E126: 0 | F126: 0 | G126: 0 | H126: 0
A127: 64 | C127: 0 | D127: 0 | E127: 0 | F127: 0 | G127: 0 | H127: 0
A128: 65 | C128: 0 | D128: 0 | E128: 0 | F128: 0 | G128: 0 | H128: 0
A129: 66 | C129: 0 | D129: 0 | E129: 0 | F129: 0 | G129: 0 | H129: 0
A130: 67 | C130: 0 | D130: 0 | E130: 0 | F130: 0 | G130: 0 | H130: 0
A131: 68 | C131: =+C98*$G$2 -> 0 | D131: 0 | E131: 0 | F131: 0 | G131: 0 | H131: 0
A132: 69 | C132: 0 | D132: 0 | E132: 0 | F132: 0 | G132: 0 | H132: 0
A133: 70 | C133: 0 | D133: 0 | E133: 0 | F133: 0 | G133: 0 | H133: 0
A134: 71 | C134: 0 | D134: 0 | E134: 0 | F134: 0 | G134: 0 | H134: 0
A135: 72 | C135: 0 | D135: 0 | E135: 0 | F135: 0 | G135: 0 | H135: 0
A136: 73 | C136: 0 | D136: 0 | E136: 0 | F136: 0 | G136: 0 | H136: 0
A137: 74 | C137: 0 | D137: 0 | E137: 0 | F137: 0 | G137: 0 | H137: 0
A138: 75 | B138: o más | C138: 0 | D138: 0 | E138: 0 | F138: 0 | G138: 0 | H138: 0
A139: 1 | B139: Hijo | C139: 0 | D139: 0 | E139: 0 | F139: 0 | G139: 0 | H139: 0
A140: 2 | B140: Hijos | C140: 0 | D140: 0 | E140: 0 | F140: 0 | G140: 0 | H140: 0
A141: 3 | B141: Hijos o más | C141: 0 | D141: 0 | E141: 0 | F141: 0 | G141: 0 | H141: 0
A142: 1 | B142: Rider Comp. Maternidad | C142: 0 | D142: 0 | E142: 0 | F142: 0 | G142: 0 | H142: 0
A143: 1 | B143: Transplante de organos | C143: 0 | D143: 0 | E143: 0 | F143: 0 | G143: 0 | H143: 0
A148: BUPA PRIVILEGE CARE
A149: TARIFAS ANUALES
A150: EDAD
C151: CW1 | D151: CW2 | E151: CW3 | F151: CW4 | G151: CW5 | H151: CW6
A152: 18 | B152: 18-24 | D152: 14550 | E152: 10005 | F152: 6914 | G152: 4382 | H152: 3338
A153: 25 | B153: 25-29 | D153: 15267 | E153: 11061 | F153: 7660 | G153: 4857 | H153: 3708
A154: 30 | B154: 30-34 | D154: 15954 | E154: 11855 | F154: 8581 | G154: 5883 | H154: 4486
A155: 35 | B155: 35-39 | D155: 17860 | E155: 13267 | F155: 9612 | G155: 6587 | H155: 5025
A156: 40 | B156: 40-44 | D156: 20674 | E156: 14532 | F156: 10689 | G156: 7263 | H156: 5543
A157: 45 | B157: 45-49 | D157: 23086 | E157: 16244 | F157: 11959 | G157: 8112 | H157: 6200
A158: 50 | B158: 50-54 | D158: 30179 | E158: 21418 | F158: 15694 | G158: 11575 | H158: 8847
A159: 55 | B159: 55-59 | D159: 32112 | E159: 22786 | F159: 16700 | G159: 12318 | H159: 9419
A160: 60 | B160: 60 | D160: 34970 | E160: 24751 | F160: 18995 | G160: 14657 | H160: 11766
A161: 61 | B161: 61 | D161: 37565 | E161: 26583 | F161: 20404 | G161: 15740 | H161: 12635
A162: 62 | B162: 62 | D162: 41122 | E162: 29113 | F162: 22348 | G162: 17233 | H162: 13843
A163: 63 | B163: 63 | D163: 43724 | E163: 30943 | F163: 23755 | G163: 18320 | H163: 14714
A164: 64 | B164: 64 | D164: 47291 | E164: 33479 | F164: 25698 | G164: 19820 | H164: 15920
A165: 65 | B165: 65 | D165: 61811 | E165: 43666 | F165: 32496 | G165: 26422 | H165: 22443
A166: 66 | B166: 66 | D166: 71813 | E166: 50730 | F166: 37752 | G166: 30703 | H166: 26084
A167: 67 | B167: 67 | D167: 78440 | E167: 55414 | F167: 41228 | G167: 33534 | H167: 28478
A168: 68 | B168: 68 | D168: 86859 | E168: 61354 | F168: 45665 | G168: 37146 | H168: 31534
A169: 69 | B169: 69 | D169: 95555 | E169: 67500 | F169: 50234 | G169: 40857 | H169: 34698
A170: 70 | B170: 70 | D170: 117593 | E170: 82184 | F170: 59125 | G170: 47613 | H170: 40814
A171: 71 | B171: 71 | D171: 122209 | E171: 85399 | F171: 61454 | G171: 49473 | H171: 42414
A172: 72 | B172: 72 | D172: 125655 | E172: 87826 | F172: 63190 | G172: 50881 | H172: 43614
A173: 73 | B173: 73 | D173: 130295 | E173: 91049 | F173: 65510 | G173: 52747 | H173: 45220
A174: 74 | B174: 74 | D174: 132594 | E174: 92662 | F174: 66662 | G174: 53680 | H174: 46017
A175: 75 | B175: 75+ | D175: 138362 | E175: 96684 | F175: 69569 | G175: 56018 | H175: 48022
A176: 1 | B176: 1 Child | D176: 5049 | E176: 3689 | F176: 2810 | G176: 2122 | H176: 1571
A177: 2 | B177: 2 Children | D177: 8031 | E177: 5874 | F177: 4469 | G177: 3376 | H177: 2496
A178: 3 | B178: 3+ Children | D178: 11764 | E178: 8607 | F178: 6550 | G178: 4942 | H178: 3661
A179: 1 | B179: Rider Comp. Maternidad | D179: 0 | E179: 0 | F179: 225 | G179: 225 | H179: 225
A180: 1 | B180: Transplante de organos | D180: 0 | E180: 0 | F180: 0 | G180: 0 | H180: 0
A184: TARIFAS SEMESTRALES
A185: EDAD
D186: CW2 | E186: CW3 | F186: CW4 | G186: CW5 | H186: CW6
A187: 18 | B187: 18-24 | D187: =$G$2*D152 -> 7711.5 | E187: 5302.65 | F187: 3664.42 | G187: 2322.46 | H187: 1769.14
A188: 25 | B188: 25-29 | D188: 8091.51 | E188: 5862.33 | F188: 4059.8 | G188: 2574.21 | H188: 1965.24
A189: 30 | B189: 30-34 | D189: 8455.62 | E189: 6283.15 | F189: 4547.93 | G189: 3117.99 | H189: 2377.58
A190: 35 | B190: 35-39 | D190: 9465.8 | E190: 7031.51 | F190: 5094.36 | G190: 3491.11 | H190: 2663.25
A191: 40 | B191: 40-44 | D191: 10957.22 | E191: 7701.96 | F191: 5665.17 | G191: 3849.39 | H191: 2937.79
A192: 45 | B192: 45-49 | D192: 12235.58 | E192: 8609.32 | F192: 6338.27 | G192: 4299.36 | H192: 3286
A193: 50 | B193: 50-54 | D193: 15994.87 | E193: 11351.54 | F193: 8317.82 | G193: 6134.75 | H193: 4688.91
A194: 55 | B194: 55-59 | D194: 17019.36 | E194: 12076.58 | F194: 8851 | G194: 6528.54 | H194: 4992.07
A195: 60 | B195: 60 | D195: 18534.1 | E195: 13118.03 | F195: 10067.35 | G195: 7768.21 | H195: 6235.98
A196: 61 | B196: 61 | D196: 19909.45 | E196: 14088.99 | F196: 10814.12 | G196: 8342.2 | H196: 6696.55
A197: 62 | B197: 62 | D197: 21794.66 | E197: 15429.89 | F197: 11844.44 | G197: 9133.49 | H197: 7336.79
A198: 63 | B198: 63 | D198: 23173.72 | E198: 16399.79 | F198: 12590.15 | G198: 9709.6 | H198: 7798.42
A199: 64 | B199: 64 | D199: 25064.23 | E199: 17743.87 | F199: 13619.94 | G199: 10504.6 | H199: 8437.6
A200: 65 | B200: 65 | D200: 32759.83 | E200: 23142.98 | F200: 17222.88 | G200: 14003.66 | H200: 11894.79
A201: 66 | B201: 66 | D201: 38060.89 | E201: 26886.9 | F201: 20008.56 | G201: 16272.59 | H201: 13824.52
A202: 67 | B202: 67 | D202: 41573.2 | E202: 29369.42 | F202: 21850.84 | G202: 17773.02 | H202: 15093.34
A203: 68 | B203: 68 | D203: =$G$2*D168 -> 46035.27 | E203: 32517.62 | F203: 24202.45 | G203: 19687.38 | H203: 16713.02
A204: 69 | B204: 69 | D204: 50644.15 | E204: 35775 | F204: 26624.02 | G204: 21654.21 | H204: 18389.94
A205: 70 | B205: 70 | D205: 62324.29 | E205: 43557.52 | F205: 31336.25 | G205: 25234.89 | H205: 21631.42
A206: 71 | B206: 71 | D206: 64770.77 | E206: 45261.47 | F206: 32570.62 | G206: 26220.69 | H206: 22479.42
A207: 72 | B207: 72 | D207: 66597.15 | E207: 46547.78 | F207: 33490.7 | G207: 26966.93 | H207: 23115.42
A208: 73 | B208: 73 | D208: 69056.35 | E208: 48255.97 | F208: 34720.3 | G208: 27955.91 | H208: 23966.6
A209: 74 | B209: 74 | D209: 70274.82 | E209: 49110.86 | F209: 35330.86 | G209: 28450.4 | H209: 24389.01
A210: 75 | B210: 75+ | D210: 73331.86 | E210: 51242.52 | F210: 36871.57 | G210: 29689.54 | H210: 25451.66
A211: 1 | B211: 1 Child | D211: 2675.97 | E211: 1955.17 | F211: 1489.3 | G211: 1124.66 | H211: 832.63
A212: 2 | B212: 2 Children | D212: 4256.43 | E212: 3113.22 | F212: 2368.57 | G212: 1789.28 | H212: 1322.88
A213: 3 | B213: 3+ Children | D213: 6234.92 | E213: 4561.71 | F213: 3471.5 | G213: 2619.26 | H213: 1940.33
A214: 1 | B214: Rider Comp. Maternidad | D214: =+D179*$G$2 -> 0 | E214: 0 | F214: 119.25 | G214: 119.25 | H214: 119.25
A215: 1 | B215: Transplante de organos | D215: 0 | E215: 0 | F215: 0 | G215: 0 | H215: 0
A220: COMPLETE (LATINAMERICA ONLY)
A221: TARIFAS ANUALES
A222: EDAD
... 335 more rows

Sheet 6 (hidden)
K1: D1 | L1: D2 | M1: D3 | N1: D4 | O1: D5 | P1: D6
B2: REGIÓN | C2: ='INGRESO DE DATOS'!W14 -> 2 | E2: FACTOR SEMESTRAL : | G2: 0.53 | I2: NEW BUSINESS DISCUOUNTS | K2: ='INGRESO DE DATOS'!O42 -> 1 | L2: ='INGRESO DE DATOS'!P42 -> 1 | M2: ='INGRESO DE DATOS'!Q42 -> 1 | N2: ='INGRESO DE DATOS'!R42 -> 1 | O2: ='INGRESO DE DATOS'!S42 -> 1 | P2: ='INGRESO DE DATOS'!T42 -> 1
A5: BUPA EXCLUSIVE CARE
A6: TARIFAS ANUALES
A7: EDAD
C8: DW1 | D8: DW2 | E8: DW3 | F8: DW4 | G8: DW5 | H8: DW6
A9: 18 | B9: 18-24 | D9: 19606 | E9: 12970 | F9: 8810 | G9: 5491 | H9: 4323
A10: 25 | B10: 25-29 | D10: 20564 | E10: 14318 | F10: 9760 | G10: 6078 | H10: 4786
A11: 30 | B11: 30-34 | D11: 21379 | E11: 15368 | F11: 10925 | G11: 7272 | H11: 5737
A12: 35 | B12: 35-39 | D12: 23951 | E12: 17201 | F12: 12242 | G12: 8156 | H12: 6428
A13: 40 | B13: 40-44 | D13: 27760 | E13: 18816 | F13: 13578 | G13: 8963 | H13: 7062
A14: 45 | B14: 45-49 | D14: 31037 | E14: 21032 | F14: 15176 | G14: 10017 | H14: 7898
A15: 50 | B15: 50-54 | D15: 39706 | E15: 27583 | F15: 19803 | G15: 14144 | H15: 11152
A16: 55 | B16: 55-59 | D16: 42243 | E16: 29346 | F16: 21063 | G16: 15044 | H16: 11869
A17: 60 | B17: 60 | D17: 46019 | E17: 32019 | F17: 24229 | G17: 18120 | H17: 14740
A18: 61 | B18: 61 | D18: 49433 | E18: 34396 | F18: 26022 | G18: 19480 | H18: 15840
A19: 62 | B19: 62 | D19: 54125 | E19: 37677 | F19: 28501 | G19: 21311 | H19: 17348
A20: 63 | B20: 63 | D20: 57555 | E20: 40056 | F20: 30280 | G20: 22666 | H20: 18438
A21: 64 | B21: 64 | D21: 62244 | E21: 43340 | F21: 32764 | G21: 24523 | H21: 19944
A22: 65 | B22: 65 | D22: 81366 | E22: 56523 | F22: 41421 | G22: 32694 | H22: 28116
A23: 66 | B23: 66 | D23: 94515 | E23: 65670 | F23: 48140 | G23: 37995 | H23: 32674
A24: 67 | B24: 67 | D24: 103253 | E24: 71722 | F24: 52580 | G24: 41494 | H24: 35687
A25: 68 | B25: 68 | D25: 114310 | E25: 79423 | F25: 58215 | G25: 45952 | H25: 39521
A26: 69 | B26: 69 | D26: 125772 | E26: 87376 | F26: 64043 | G26: 50552 | H26: 43483
A27: 70 | B27: 70 | D27: 154790 | E27: 106385 | F27: 75398 | G27: 58901 | H27: 51136
A28: 71 | B28: 71 | D28: 160866 | E28: 110560 | F28: 78355 | G28: 61219 | H28: 53150
A29: 72 | B29: 72 | D29: 165422 | E29: 113682 | F29: 80561 | G29: 62955 | H29: 54663
A30: 73 | B30: 73 | D30: 171498 | E30: 117859 | F30: 83526 | G30: 65273 | H30: 56670
A31: 74 | B31: 74 | D31: 174528 | E31: 119942 | F31: 85003 | G31: 66423 | H31: 57678
A32: 75 | B32: 75+ | D32: 182136 | E32: 125156 | F32: 88703 | G32: 69324 | H32: 60183
A33: 1 | B33: 1 Child | D33: 6810 | E33: 5013 | F33: 3926 | G33: 2901 | H33: 2268
A34: 2 | B34: 2 Children | D34: 10820 | E34: 7973 | F34: 6248 | G34: 4603 | H34: 3582
A35: 3 | B35: 3+ Children | D35: 15863 | E35: 11692 | F35: 9147 | G35: 6753 | H35: 5260
A36: 1 | B36: Rider Comp. Maternidad | D36: 0 | E36: 0 | F36: 225 | G36: 225 | H36: 225
A37: 1 | B37: Transplante de organos | D37: 0 | E37: 0 | F37: 0 | G37: 0 | H37: 0
A41: TARIFAS SEMESTRALES
A42: EDAD
D43: DW2 | E43: DW3 | F43: DW4 | G43: DW5 | H43: DW6
A44: 18 | B44: 18-24 | D44: =$G$2*D9 -> 10391.18 | E44: 6874.1 | F44: 4669.3 | G44: 2910.23 | H44: 2291.19
A45: 25 | B45: 25-29 | D45: 10898.92 | E45: 7588.54 | F45: 5172.8 | G45: 3221.34 | H45: 2536.58
A46: 30 | B46: 30-34 | D46: 11330.87 | E46: 8145.04 | F46: 5790.25 | G46: 3854.16 | H46: 3040.61
A47: 35 | B47: 35-39 | D47: 12694.03 | E47: 9116.53 | F47: 6488.26 | G47: 4322.68 | H47: 3406.84
A48: 40 | B48: 40-44 | D48: 14712.8 | E48: 9972.48 | F48: 7196.34 | G48: 4750.39 | H48: 3742.86
A49: 45 | B49: 45-49 | D49: 16449.61 | E49: 11146.96 | F49: 8043.28 | G49: 5309.01 | H49: 4185.94
A50: 50 | B50: 50-54 | D50: 21044.18 | E50: 14618.99 | F50: 10495.59 | G50: 7496.32 | H50: 5910.56
A51: 55 | B51: 55-59 | D51: 22388.79 | E51: 15553.38 | F51: 11163.39 | G51: 7973.32 | H51: 6290.57
A52: 60 | B52: 60 | D52: 24390.07 | E52: 16970.07 | F52: 12841.37 | G52: 9603.6 | H52: 7812.2
A53: 61 | B53: 61 | D53: 26199.49 | E53: 18229.88 | F53: 13791.66 | G53: 10324.4 | H53: 8395.2
A54: 62 | B54: 62 | D54: 28686.25 | E54: 19968.81 | F54: 15105.53 | G54: 11294.83 | H54: 9194.44
A55: 63 | B55: 63 | D55: 30504.15 | E55: 21229.68 | F55: 16048.4 | G55: 12012.98 | H55: 9772.14
A56: 64 | B56: 64 | D56: 32989.32 | E56: 22970.2 | F56: 17364.92 | G56: 12997.19 | H56: 10570.32
A57: 65 | B57: 65 | D57: 43123.98 | E57: 29957.19 | F57: 21953.13 | G57: 17327.82 | H57: 14901.48
A58: 66 | B58: 66 | D58: 50092.95 | E58: 34805.1 | F58: 25514.2 | G58: 20137.35 | H58: 17317.22
A59: 67 | B59: 67 | D59: 54724.09 | E59: 38012.66 | F59: 27867.4 | G59: 21991.82 | H59: 18914.11
A60: 68 | B60: 68 | D60: =$G$2*D25 -> 60584.3 | E60: 42094.19 | F60: 30853.95 | G60: 24354.56 | H60: 20946.13
A61: 69 | B61: 69 | D61: 66659.16 | E61: 46309.28 | F61: 33942.79 | G61: 26792.56 | H61: 23045.99
A62: 70 | B62: 70 | D62: 82038.7 | E62: 56384.05 | F62: 39960.94 | G62: 31217.53 | H62: 27102.08
A63: 71 | B63: 71 | D63: 85258.98 | E63: 58596.8 | F63: 41528.15 | G63: 32446.07 | H63: 28169.5
A64: 72 | B64: 72 | D64: 87673.66 | E64: 60251.46 | F64: 42697.33 | G64: 33366.15 | H64: 28971.39
A65: 73 | B65: 73 | D65: 90893.94 | E65: 62465.27 | F65: 44268.78 | G65: 34594.69 | H65: 30035.1
A66: 74 | B66: 74 | D66: 92499.84 | E66: 63569.26 | F66: 45051.59 | G66: 35204.19 | H66: 30569.34
A67: 75 | B67: 75+ | D67: 96532.08 | E67: 66332.68 | F67: 47012.59 | G67: 36741.72 | H67: 31896.99
A68: 1 | B68: 1 Child | D68: 3609.3 | E68: 2656.89 | F68: 2080.78 | G68: 1537.53 | H68: 1202.04
A69: 2 | B69: 2 Children | D69: 5734.6 | E69: 4225.69 | F69: 3311.44 | G69: 2439.59 | H69: 1898.46
A70: 3 | B70: 3+ Children | D70: 8407.39 | E70: 6196.76 | F70: 4847.91 | G70: 3579.09 | H70: 2787.8
A71: 1 | B71: Rider Comp. Maternidad | D71: =+D36*$G$2 -> 0 | E71: 0 | F71: 119.25 | G71: 119.25 | H71: 119.25
A72: 1 | B72: Transplante de organos | D72: 0 | E72: 0 | F72: 0 | G72: 0 | H72: 0
A78: DIAMOND (LATINAMERICA ONLY)
A79: TARIFAS ANUALES
A80: EDAD
C81: DL1 | D81: DL2 | E81: DL3 | F81: DL4 | G81: DL5 | H81: DL6
A82: 18 | B82: - 24
A83: 25 | B83: - 29
A84: 30 | B84: - 34
A85: 35 | B85: - 39
A86: 40 | B86: - 44
A87: 45 | B87: - 49
A88: 50 | B88: - 54
A89: 55 | B89: - 59
A90: 60
A91: 61
A92: 62
A93: 63
A94: 64
A95: 65
A96: 66
A97: 67
A98: 68
A99: 69
A100: 70
A101: 71
A102: 72
A103: 73
A104: 74
A105: 75 | B105: o más
A106: 1 | B106: Hijo
A107: 2 | B107: Hijos
A108: 3 | B108: Hijos o más
A109: 1 | B109: Rider Comp. Maternidad
A110: 1 | B110: Transplante de organos | C110: 0 | D110: 0 | E110: 0 | F110: 0 | G110: 0 | H110: 0
A112: TARIFAS SEMESTRALES
A113: EDAD
C114: DL1 | D114: DL2 | E114: DL3 | F114: DL4 | G114: DL5 | H114: DL6
A115: 18 | B115: - 24 | C115: =+C82*$G$2 -> 0 | D115: 0 | E115: 0 | F115: 0 | G115: 0 | H115: 0
A116: 25 | B116: - 29 | C116: 0 | D116: 0 | E116: 0 | F116: 0 | G116: 0 | H116: 0
A117: 30 | B117: - 34 | C117: 0 | D117: 0 | E117: 0 | F117: 0 | G117: 0 | H117: 0
A118: 35 | B118: - 39 | C118: 0 | D118: 0 | E118: 0 | F118: 0 | G118: 0 | H118: 0
A119: 40 | B119: - 44 | C119: 0 | D119: 0 | E119: 0 | F119: 0 | G119: 0 | H119: 0
A120: 45 | B120: - 49 | C120: 0 | D120: 0 | E120: 0 | F120: 0 | G120: 0 | H120: 0
A121: 50 | B121: - 54 | C121: 0 | D121: 0 | E121: 0 | F121: 0 | G121: 0 | H121: 0
A122: 55 | B122: - 59 | C122: 0 | D122: 0 | E122: 0 | F122: 0 | G122: 0 | H122: 0
A123: 60 | C123: 0 | D123: 0 | E123: 0 | F123: 0 | G123: 0 | H123: 0
A124: 61 | C124: 0 | D124: 0 | E124: 0 | F124: 0 | G124: 0 | H124: 0
A125: 62 | C125: 0 | D125: 0 | E125: 0 | F125: 0 | G125: 0 | H125: 0
A126: 63 | C126: 0 | D126: 0 | E126: 0 | F126: 0 | G126: 0 | H126: 0
A127: 64 | C127: 0 | D127: 0 | E127: 0 | F127: 0 | G127: 0 | H127: 0
A128: 65 | C128: 0 | D128: 0 | E128: 0 | F128: 0 | G128: 0 | H128: 0
A129: 66 | C129: 0 | D129: 0 | E129: 0 | F129: 0 | G129: 0 | H129: 0
A130: 67 | C130: 0 | D130: 0 | E130: 0 | F130: 0 | G130: 0 | H130: 0
A131: 68 | C131: =+C98*$G$2 -> 0 | D131: 0 | E131: 0 | F131: 0 | G131: 0 | H131: 0
A132: 69 | C132: 0 | D132: 0 | E132: 0 | F132: 0 | G132: 0 | H132: 0
A133: 70 | C133: 0 | D133: 0 | E133: 0 | F133: 0 | G133: 0 | H133: 0
A134: 71 | C134: 0 | D134: 0 | E134: 0 | F134: 0 | G134: 0 | H134: 0
A135: 72 | C135: 0 | D135: 0 | E135: 0 | F135: 0 | G135: 0 | H135: 0
A136: 73 | C136: 0 | D136: 0 | E136: 0 | F136: 0 | G136: 0 | H136: 0
A137: 74 | C137: 0 | D137: 0 | E137: 0 | F137: 0 | G137: 0 | H137: 0
A138: 75 | B138: o más | C138: 0 | D138: 0 | E138: 0 | F138: 0 | G138: 0 | H138: 0
A139: 1 | B139: Hijo | C139: 0 | D139: 0 | E139: 0 | F139: 0 | G139: 0 | H139: 0
A140: 2 | B140: Hijos | C140: 0 | D140: 0 | E140: 0 | F140: 0 | G140: 0 | H140: 0
A141: 3 | B141: Hijos o más | C141: 0 | D141: 0 | E141: 0 | F141: 0 | G141: 0 | H141: 0
A142: 1 | B142: Rider Comp. Maternidad | C142: 0 | D142: 0 | E142: 0 | F142: 0 | G142: 0 | H142: 0
A143: 1 | B143: Transplante de organos | C143: 0 | D143: 0 | E143: 0 | F143: 0 | G143: 0 | H143: 0
A148: BUPA PRIVILEGE CARE
A149: TARIFAS ANUALES
A150: EDAD
C151: CW1 | D151: CW2 | E151: CW3 | F151: CW4 | G151: CW5 | H151: CW6
A152: 18 | B152: 18-24 | D152: 16493 | E152: 11343 | F152: 7648 | G152: 4752 | H152: 3624
A153: 25 | B153: 25-29 | D153: 17307 | E153: 12555 | F153: 8477 | G153: 5261 | H153: 4007
A154: 30 | B154: 30-34 | D154: 18080 | E154: 13437 | F154: 9506 | G154: 6364 | H154: 4859
A155: 35 | B155: 35-39 | D155: 20242 | E155: 15043 | F155: 10645 | G155: 7136 | H155: 5443
A156: 40 | B156: 40-44 | D156: 23428 | E156: 16478 | F156: 11846 | G156: 7867 | H156: 6006
A157: 45 | B157: 45-49 | D157: 26172 | E157: 18414 | F157: 13241 | G157: 8791 | H157: 6722
A158: 50 | B158: 50-54 | D158: 34216 | E158: 24290 | F158: 17371 | G158: 12548 | H158: 9584
A159: 55 | B159: 55-59 | D159: 36399 | E159: 25843 | F159: 18496 | G159: 13348 | H159: 10209
A160: 60 | B160: 60 | D160: 39640 | E160: 28070 | F160: 21039 | G160: 15875 | H160: 12756
A161: 61 | B161: 61 | D161: 42584 | E161: 30136 | F161: 22603 | G161: 17068 | H161: 13694
A162: 62 | B162: 62 | D162: 46613 | E162: 33011 | F162: 24754 | G162: 18688 | H162: 14996
A163: 63 | B163: 63 | D163: 49566 | E163: 35099 | F163: 26312 | G163: 19861 | H163: 15946
A164: 64 | B164: 64 | D164: 53612 | E164: 37974 | F164: 28467 | G164: 21485 | H164: 17256
A165: 65 | B165: 65 | D165: 70082 | E165: 49526 | F165: 35993 | G165: 28658 | H165: 24329
A166: 66 | B166: 66 | D166: 81415 | E166: 57548 | F166: 41820 | G166: 33299 | H166: 28273
A167: 67 | B167: 67 | D167: 88923 | E167: 62860 | F167: 45671 | G167: 36357 | H167: 30878
A168: 68 | B168: 68 | D168: 98466 | E168: 69589 | F168: 50590 | G168: 40280 | H168: 34188
A169: 69 | B169: 69 | D169: 108328 | E169: 76552 | F169: 55645 | G169: 44303 | H169: 37620
A170: 70 | B170: 70 | D170: 133313 | E170: 93224 | F170: 65496 | G170: 51619 | H170: 44252
A171: 71 | B171: 71 | D171: 138557 | E171: 96880 | F171: 68070 | G171: 53648 | H171: 45994
A172: 72 | B172: 72 | D172: 142480 | E172: 99626 | F172: 69997 | G172: 55168 | H172: 47285
A173: 73 | B173: 73 | D173: 147715 | E173: 103287 | F173: 72577 | G173: 57190 | H173: 49035
A174: 74 | B174: 74 | D174: 150325 | E174: 105106 | F174: 73853 | G174: 58211 | H174: 49901
A175: 75 | B175: 75+ | D175: 156882 | E175: 109683 | F175: 77070 | G175: 60745 | H175: 52065
A176: 1 | B176: 1 Child | D176: 5724 | E176: 4190 | F176: 3113 | G176: 2299 | H176: 1698
A177: 2 | B177: 2 Children | D177: 9109 | E177: 6664 | F177: 4950 | G177: 3655 | H177: 2704
A178: 3 | B178: 3+ Children | D178: 13329 | E178: 9768 | F178: 7248 | G178: 5351 | H178: 3968
A179: 1 | B179: Rider Comp. Maternidad | D179: 0 | E179: 0 | F179: 225 | G179: 225 | H179: 225
A180: 1 | B180: Transplante de organos | D180: 0 | E180: 0 | F180: 0 | G180: 0 | H180: 0
A184: TARIFAS SEMESTRALES
A185: EDAD
D186: CW2 | E186: CW3 | F186: CW4 | G186: CW5 | H186: CW6
A187: 18 | B187: 18-24 | D187: =$G$2*D152 -> 8741.29 | E187: 6011.79 | F187: 4053.44 | G187: 2518.56 | H187: 1920.72
A188: 25 | B188: 25-29 | D188: 9172.71 | E188: 6654.15 | F188: 4492.81 | G188: 2788.33 | H188: 2123.71
A189: 30 | B189: 30-34 | D189: 9582.4 | E189: 7121.61 | F189: 5038.18 | G189: 3372.92 | H189: 2575.27
A190: 35 | B190: 35-39 | D190: 10728.26 | E190: 7972.79 | F190: 5641.85 | G190: 3782.08 | H190: 2884.79
A191: 40 | B191: 40-44 | D191: 12416.84 | E191: 8733.34 | F191: 6278.38 | G191: 4169.51 | H191: 3183.18
A192: 45 | B192: 45-49 | D192: 13871.16 | E192: 9759.42 | F192: 7017.73 | G192: 4659.23 | H192: 3562.66
A193: 50 | B193: 50-54 | D193: 18134.48 | E193: 12873.7 | F193: 9206.63 | G193: 6650.44 | H193: 5079.52
A194: 55 | B194: 55-59 | D194: 19291.47 | E194: 13696.79 | F194: 9802.88 | G194: 7074.44 | H194: 5410.77
A195: 60 | B195: 60 | D195: 21009.2 | E195: 14877.1 | F195: 11150.67 | G195: 8413.75 | H195: 6760.68
A196: 61 | B196: 61 | D196: 22569.52 | E196: 15972.08 | F196: 11979.59 | G196: 9046.04 | H196: 7257.82
A197: 62 | B197: 62 | D197: 24704.89 | E197: 17495.83 | F197: 13119.62 | G197: 9904.64 | H197: 7947.88
A198: 63 | B198: 63 | D198: 26269.98 | E198: 18602.47 | F198: 13945.36 | G198: 10526.33 | H198: 8451.38
A199: 64 | B199: 64 | D199: 28414.36 | E199: 20126.22 | F199: 15087.51 | G199: 11387.05 | H199: 9145.68
A200: 65 | B200: 65 | D200: 37143.46 | E200: 26248.78 | F200: 19076.29 | G200: 15188.74 | H200: 12894.37
A201: 66 | B201: 66 | D201: 43149.95 | E201: 30500.44 | F201: 22164.6 | G201: 17648.47 | H201: 14984.69
A202: 67 | B202: 67 | D202: 47129.19 | E202: 33315.8 | F202: 24205.63 | G202: 19269.21 | H202: 16365.34
A203: 68 | B203: 68 | D203: =$G$2*D168 -> 52186.98 | E203: 36882.17 | F203: 26812.7 | G203: 21348.4 | H203: 18119.64
A204: 69 | B204: 69 | D204: 57413.84 | E204: 40572.56 | F204: 29491.85 | G204: 23480.59 | H204: 19938.6
A205: 70 | B205: 70 | D205: 70655.89 | E205: 49408.72 | F205: 34712.88 | G205: 27358.07 | H205: 23453.56
A206: 71 | B206: 71 | D206: 73435.21 | E206: 51346.4 | F206: 36077.1 | G206: 28433.44 | H206: 24376.82
A207: 72 | B207: 72 | D207: 75514.4 | E207: 52801.78 | F207: 37098.41 | G207: 29239.04 | H207: 25061.05
A208: 73 | B208: 73 | D208: 78288.95 | E208: 54742.11 | F208: 38465.81 | G208: 30310.7 | H208: 25988.55
A209: 74 | B209: 74 | D209: 79672.25 | E209: 55706.18 | F209: 39142.09 | G209: 30851.83 | H209: 26447.53
A210: 75 | B210: 75+ | D210: 83147.46 | E210: 58131.99 | F210: 40847.1 | G210: 32194.85 | H210: 27594.45
A211: 1 | B211: 1 Child | D211: 3033.72 | E211: 2220.7 | F211: 1649.89 | G211: 1218.47 | H211: 899.94
A212: 2 | B212: 2 Children | D212: 4827.77 | E212: 3531.92 | F212: 2623.5 | G212: 1937.15 | H212: 1433.12
A213: 3 | B213: 3+ Children | D213: 7064.37 | E213: 5177.04 | F213: 3841.44 | G213: 2836.03 | H213: 2103.04
A214: 1 | B214: Rider Comp. Maternidad | D214: =+D179*$G$2 -> 0 | E214: 0 | F214: 119.25 | G214: 119.25 | H214: 119.25
A215: 1 | B215: Transplante de organos | D215: 0 | E215: 0 | F215: 0 | G215: 0 | H215: 0
A220: COMPLETE (LATINAMERICA ONLY)
A221: TARIFAS ANUALES
A222: EDAD
... 335 more rows

Sheet 8 (hidden)
K1: D1 | L1: D2 | M1: D3 | N1: D4 | O1: D5 | P1: D6
B2: REGIÓN | C2: ='INGRESO DE DATOS'!W14 -> 2 | E2: FACTOR SEMESTRAL : | G2: 0.53 | I2: NEW BUSINESS DISCUOUNTS | K2: ='INGRESO DE DATOS'!O42 -> 1 | L2: ='INGRESO DE DATOS'!P42 -> 1 | M2: ='INGRESO DE DATOS'!Q42 -> 1 | N2: ='INGRESO DE DATOS'!R42 -> 1 | O2: ='INGRESO DE DATOS'!S42 -> 1 | P2: ='INGRESO DE DATOS'!T42 -> 1
A5: BUPA EXCLUSIVE CARE
A6: TARIFAS ANUALES
A7: EDAD
C8: DW1 | D8: DW2 | E8: DW3 | F8: DW4 | G8: DW5 | H8: DW6
A9: 18 | B9: 18-24 | D9: 14196 | E9: 9378 | F9: 6624 | G9: 4409 | H9: 3467
A10: 25 | B10: 25-29 | D10: 14888 | E10: 10363 | F10: 7341 | G10: 4887 | H10: 3839
A11: 30 | B11: 30-34 | D11: 15490 | E11: 11118 | F11: 8217 | G11: 5859 | H11: 4621
A12: 35 | B12: 35-39 | D12: 17350 | E12: 12446 | F12: 9214 | G12: 6567 | H12: 5174
A13: 40 | B13: 40-44 | D13: 20115 | E13: 13618 | F13: 10222 | G13: 7220 | H13: 5690
A14: 45 | B14: 45-49 | D14: 22492 | E14: 15224 | F14: 11432 | G14: 8063 | H14: 6359
A15: 50 | B15: 50-54 | D15: 28776 | E15: 19972 | F15: 14913 | G15: 11398 | H15: 8985
A16: 55 | B16: 55-59 | D16: 30620 | E16: 21258 | F16: 15862 | G16: 12127 | H16: 9567
A17: 60 | B17: 60 | D17: 33359 | E17: 23187 | F17: 18256 | G17: 14612 | H17: 11882
A18: 61 | B18: 61 | D18: 35834 | E18: 24919 | F18: 19606 | G18: 15705 | H18: 12771
A19: 62 | B19: 62 | D19: 39234 | E19: 27293 | F19: 21484 | G19: 17192 | H19: 13981
A20: 63 | B20: 63 | D20: 41720 | E20: 29019 | F20: 22828 | G20: 18288 | H20: 14866
A21: 64 | B21: 64 | D21: 45127 | E21: 31400 | F21: 24704 | G21: 19779 | H21: 16091
A22: 65 | B22: 65 | D22: 58997 | E22: 40951 | F22: 31233 | G22: 26376 | H22: 22689
A23: 66 | B23: 66 | D23: 68536 | E23: 47590 | F23: 36293 | G23: 30665 | H23: 26365
A24: 67 | B24: 67 | D24: 74865 | E24: 51978 | F24: 39642 | G24: 33481 | H24: 28799
A25: 68 | B25: 68 | D25: 82894 | E25: 57546 | F25: 43901 | G25: 37086 | H25: 31887
A26: 69 | B26: 69 | D26: 91204 | E26: 63312 | F26: 48305 | G26: 40798 | H26: 35089
A27: 70 | B27: 70 | D27: 112248 | E27: 77101 | F27: 56862 | G27: 47543 | H27: 41278
A28: 71 | B28: 71 | D28: 116661 | E28: 80126 | F28: 59099 | G28: 49413 | H28: 42903
A29: 72 | B29: 72 | D29: 119964 | E29: 82395 | F29: 60762 | G29: 50812 | H29: 44113
A30: 73 | B30: 73 | D30: 124369 | E30: 85426 | F30: 62991 | G30: 52678 | H30: 45730
A31: 74 | B31: 74 | D31: 126569 | E31: 86930 | F31: 64119 | G31: 53615 | H31: 46543
A32: 75 | B32: 75+ | D32: 132083 | E32: 90716 | F32: 66901 | G32: 55946 | H32: 48575
A33: 1 | B33: 1 Child | D33: 4935 | E33: 3636 | F33: 2962 | G33: 2344 | H33: 1827
A34: 2 | B34: 2 Children | D34: 7850 | E34: 5786 | F34: 4714 | G34: 3716 | H34: 2900
A35: 3 | B35: 3+ Children | D35: 11500 | E35: 8476 | F35: 6903 | G35: 5450 | H35: 4249
A36: 1 | B36: Rider Comp. Maternidad | D36: 0 | E36: 0 | F36: 225 | G36: 225 | H36: 225
A37: 1 | B37: Transplante de organos | D37: 0 | E37: 0 | F37: 0 | G37: 0 | H37: 0
A41: TARIFAS SEMESTRALES
A42: EDAD
D43: DW2 | E43: DW3 | F43: DW4 | G43: DW5 | H43: DW6
A44: 18 | B44: 18-24 | D44: =$G$2*D9 -> 7523.88 | E44: 4970.34 | F44: 3510.72 | G44: 2336.77 | H44: 1837.51
A45: 25 | B45: 25-29 | D45: 7890.64 | E45: 5492.39 | F45: 3890.73 | G45: 2590.11 | H45: 2034.67
A46: 30 | B46: 30-34 | D46: 8209.7 | E46: 5892.54 | F46: 4355.01 | G46: 3105.27 | H46: 2449.13
A47: 35 | B47: 35-39 | D47: 9195.5 | E47: 6596.38 | F47: 4883.42 | G47: 3480.51 | H47: 2742.22
A48: 40 | B48: 40-44 | D48: 10660.95 | E48: 7217.54 | F48: 5417.66 | G48: 3826.6 | H48: 3015.7
A49: 45 | B49: 45-49 | D49: 11920.76 | E49: 8068.72 | F49: 6058.96 | G49: 4273.39 | H49: 3370.27
A50: 50 | B50: 50-54 | D50: 15251.28 | E50: 10585.16 | F50: 7903.89 | G50: 6040.94 | H50: 4762.05
A51: 55 | B51: 55-59 | D51: 16228.6 | E51: 11266.74 | F51: 8406.86 | G51: 6427.31 | H51: 5070.51
A52: 60 | B52: 60 | D52: 17680.27 | E52: 12289.11 | F52: 9675.68 | G52: 7744.36 | H52: 6297.46
A53: 61 | B53: 61 | D53: 18992.02 | E53: 13207.07 | F53: 10391.18 | G53: 8323.65 | H53: 6768.63
A54: 62 | B54: 62 | D54: 20794.02 | E54: 14465.29 | F54: 11386.52 | G54: 9111.76 | H54: 7409.93
A55: 63 | B55: 63 | D55: 22111.6 | E55: 15380.07 | F55: 12098.84 | G55: 9692.64 | H55: 7878.98
A56: 64 | B56: 64 | D56: 23917.31 | E56: 16642 | F56: 13093.12 | G56: 10482.87 | H56: 8528.23
A57: 65 | B57: 65 | D57: 31268.41 | E57: 21704.03 | F57: 16553.49 | G57: 13979.28 | H57: 12025.17
A58: 66 | B58: 66 | D58: 36324.08 | E58: 25222.7 | F58: 19235.29 | G58: 16252.45 | H58: 13973.45
A59: 67 | B59: 67 | D59: 39678.45 | E59: 27548.34 | F59: 21010.26 | G59: 17744.93 | H59: 15263.47
A60: 68 | B60: 68 | D60: =$G$2*D25 -> 43933.82 | E60: 30499.38 | F60: 23267.53 | G60: 19655.58 | H60: 16900.11
A61: 69 | B61: 69 | D61: 48338.12 | E61: 33555.36 | F61: 25601.65 | G61: 21622.94 | H61: 18597.17
A62: 70 | B62: 70 | D62: 59491.44 | E62: 40863.53 | F62: 30136.86 | G62: 25197.79 | H62: 21877.34
A63: 71 | B63: 71 | D63: 61830.33 | E63: 42466.78 | F63: 31322.47 | G63: 26188.89 | H63: 22738.59
A64: 72 | B64: 72 | D64: 63580.92 | E64: 43669.35 | F64: 32203.86 | G64: 26930.36 | H64: 23379.89
A65: 73 | B65: 73 | D65: 65915.57 | E65: 45275.78 | F65: 33385.23 | G65: 27919.34 | H65: 24236.9
A66: 74 | B66: 74 | D66: 67081.57 | E66: 46072.9 | F66: 33983.07 | G66: 28415.95 | H66: 24667.79
A67: 75 | B67: 75+ | D67: 70003.99 | E67: 48079.48 | F67: 35457.53 | G67: 29651.38 | H67: 25744.75
A68: 1 | B68: 1 Child | D68: 2615.55 | E68: 1927.08 | F68: 1569.86 | G68: 1242.32 | H68: 968.31
A69: 2 | B69: 2 Children | D69: 4160.5 | E69: 3066.58 | F69: 2498.42 | G69: 1969.48 | H69: 1537
A70: 3 | B70: 3+ Children | D70: 6095 | E70: 4492.28 | F70: 3658.59 | G70: 2888.5 | H70: 2251.97
A71: 1 | B71: Rider Comp. Maternidad | D71: =+D36*$G$2 -> 0 | E71: 0 | F71: 119.25 | G71: 119.25 | H71: 119.25
A72: 1 | B72: Transplante de organos | D72: 0 | E72: 0 | F72: 0 | G72: 0 | H72: 0
A78: DIAMOND (LATINAMERICA ONLY)
A79: TARIFAS ANUALES
A80: EDAD
C81: DL1 | D81: DL2 | E81: DL3 | F81: DL4 | G81: DL5 | H81: DL6
A82: 18 | B82: - 24
A83: 25 | B83: - 29
A84: 30 | B84: - 34
A85: 35 | B85: - 39
A86: 40 | B86: - 44
A87: 45 | B87: - 49
A88: 50 | B88: - 54
A89: 55 | B89: - 59
A90: 60
A91: 61
A92: 62
A93: 63
A94: 64
A95: 65
A96: 66
A97: 67
A98: 68
A99: 69
A100: 70
A101: 71
A102: 72
A103: 73
A104: 74
A105: 75 | B105: o más
A106: 1 | B106: Hijo
A107: 2 | B107: Hijos
A108: 3 | B108: Hijos o más
A109: 1 | B109: Rider Comp. Maternidad
A110: 1 | B110: Transplante de organos | C110: 0 | D110: 0 | E110: 0 | F110: 0 | G110: 0 | H110: 0
A112: TARIFAS SEMESTRALES
A113: EDAD
C114: DL1 | D114: DL2 | E114: DL3 | F114: DL4 | G114: DL5 | H114: DL6
A115: 18 | B115: - 24 | C115: =+C82*$G$2 -> 0 | D115: 0 | E115: 0 | F115: 0 | G115: 0 | H115: 0
A116: 25 | B116: - 29 | C116: 0 | D116: 0 | E116: 0 | F116: 0 | G116: 0 | H116: 0
A117: 30 | B117: - 34 | C117: 0 | D117: 0 | E117: 0 | F117: 0 | G117: 0 | H117: 0
A118: 35 | B118: - 39 | C118: 0 | D118: 0 | E118: 0 | F118: 0 | G118: 0 | H118: 0
A119: 40 | B119: - 44 | C119: 0 | D119: 0 | E119: 0 | F119: 0 | G119: 0 | H119: 0
A120: 45 | B120: - 49 | C120: 0 | D120: 0 | E120: 0 | F120: 0 | G120: 0 | H120: 0
A121: 50 | B121: - 54 | C121: 0 | D121: 0 | E121: 0 | F121: 0 | G121: 0 | H121: 0
A122: 55 | B122: - 59 | C122: 0 | D122: 0 | E122: 0 | F122: 0 | G122: 0 | H122: 0
A123: 60 | C123: 0 | D123: 0 | E123: 0 | F123: 0 | G123: 0 | H123: 0
A124: 61 | C124: 0 | D124: 0 | E124: 0 | F124: 0 | G124: 0 | H124: 0
A125: 62 | C125: 0 | D125: 0 | E125: 0 | F125: 0 | G125: 0 | H125: 0
A126: 63 | C126: 0 | D126: 0 | E126: 0 | F126: 0 | G126: 0 | H126: 0
A127: 64 | C127: 0 | D127: 0 | E127: 0 | F127: 0 | G127: 0 | H127: 0
A128: 65 | C128: 0 | D128: 0 | E128: 0 | F128: 0 | G128: 0 | H128: 0
A129: 66 | C129: 0 | D129: 0 | E129: 0 | F129: 0 | G129: 0 | H129: 0
A130: 67 | C130: 0 | D130: 0 | E130: 0 | F130: 0 | G130: 0 | H130: 0
A131: 68 | C131: =+C98*$G$2 -> 0 | D131: 0 | E131: 0 | F131: 0 | G131: 0 | H131: 0
A132: 69 | C132: 0 | D132: 0 | E132: 0 | F132: 0 | G132: 0 | H132: 0
A133: 70 | C133: 0 | D133: 0 | E133: 0 | F133: 0 | G133: 0 | H133: 0
A134: 71 | C134: 0 | D134: 0 | E134: 0 | F134: 0 | G134: 0 | H134: 0
A135: 72 | C135: 0 | D135: 0 | E135: 0 | F135: 0 | G135: 0 | H135: 0
A136: 73 | C136: 0 | D136: 0 | E136: 0 | F136: 0 | G136: 0 | H136: 0
A137: 74 | C137: 0 | D137: 0 | E137: 0 | F137: 0 | G137: 0 | H137: 0
A138: 75 | B138: o más | C138: 0 | D138: 0 | E138: 0 | F138: 0 | G138: 0 | H138: 0
A139: 1 | B139: Hijo | C139: 0 | D139: 0 | E139: 0 | F139: 0 | G139: 0 | H139: 0
A140: 2 | B140: Hijos | C140: 0 | D140: 0 | E140: 0 | F140: 0 | G140: 0 | H140: 0
A141: 3 | B141: Hijos o más | C141: 0 | D141: 0 | E141: 0 | F141: 0 | G141: 0 | H141: 0
A142: 1 | B142: Rider Comp. Maternidad | C142: 0 | D142: 0 | E142: 0 | F142: 0 | G142: 0 | H142: 0
A143: 1 | B143: Transplante de organos | C143: 0 | D143: 0 | E143: 0 | F143: 0 | G143: 0 | H143: 0
A148: BUPA PRIVILEGE CARE
A149: TARIFAS ANUALES
A150: EDAD
C151: CW1 | D151: CW2 | E151: CW3 | F151: CW4 | G151: CW5 | H151: CW6
A152: 18 | B152: 18-24 | D152: 11882 | E152: 8174 | F152: 5733 | G152: 3813 | H152: 2901
A153: 25 | B153: 25-29 | D153: 12469 | E153: 9040 | F153: 6347 | G153: 4224 | H153: 3217
A154: 30 | B154: 30-34 | D154: 13026 | E154: 9669 | F154: 7123 | G154: 5101 | H154: 3904
A155: 35 | B155: 35-39 | D155: 14578 | E155: 10821 | F155: 7980 | G155: 5726 | H155: 4368
A156: 40 | B156: 40-44 | D156: 16877 | E156: 11868 | F156: 8875 | G156: 6310 | H156: 4821
A157: 45 | B157: 45-49 | D157: 18860 | E157: 13265 | F157: 9916 | G157: 7056 | H157: 5392
A158: 50 | B158: 50-54 | D158: 24649 | E158: 17499 | F158: 13017 | G158: 10058 | H158: 7691
A159: 55 | B159: 55-59 | D159: 26216 | E159: 18607 | F159: 13850 | G159: 10703 | H159: 8187
A160: 60 | B160: 60 | D160: 28555 | E160: 20204 | F160: 15767 | G160: 12730 | H160: 10234
A161: 61 | B161: 61 | D161: 30678 | E161: 21706 | F161: 16934 | G161: 13681 | H161: 10990
A162: 62 | B162: 62 | D162: 33578 | E162: 23774 | F162: 18545 | G162: 14980 | H162: 12035
A163: 63 | B163: 63 | D163: 35706 | E163: 25272 | F163: 19716 | G163: 15932 | H163: 12792
A164: 64 | B164: 64 | D164: 38617 | E164: 27348 | F164: 21338 | G164: 17236 | H164: 13843
A165: 65 | B165: 65 | D165: 50488 | E165: 35659 | F165: 26971 | G165: 22978 | H165: 19511
A166: 66 | B166: 66 | D166: 58650 | E166: 41434 | F166: 31332 | G166: 26705 | H166: 22668
A167: 67 | B167: 67 | D167: 64054 | E167: 45254 | F167: 34224 | G167: 29156 | H167: 24765
A168: 68 | B168: 68 | D168: 70922 | E168: 50104 | F168: 37900 | G168: 32290 | H168: 27417
A169: 69 | B169: 69 | D169: 78033 | E169: 55119 | F169: 41689 | G169: 35521 | H169: 30170
A170: 70 | B170: 70 | D170: 96032 | E170: 67115 | F170: 49076 | G170: 41397 | H170: 35478
A171: 71 | B171: 71 | D171: 99806 | E171: 69745 | F171: 50999 | G171: 43018 | H171: 36881
A172: 72 | B172: 72 | D172: 102636 | E172: 71721 | F172: 52445 | G172: 44236 | H172: 37919
A173: 73 | B173: 73 | D173: 106395 | E173: 74357 | F173: 54369 | G173: 45865 | H173: 39320
A174: 74 | B174: 74 | D174: 108281 | E174: 75673 | F174: 55334 | G174: 46679 | H174: 40013
A175: 75 | B175: 75+ | D175: 112996 | E175: 78967 | F175: 57743 | G175: 48710 | H175: 41746
A176: 1 | B176: 1 Child | D176: 4122 | E176: 3014 | F176: 2330 | G176: 1847 | H176: 1367
A177: 2 | B177: 2 Children | D177: 6548 | E177: 4794 | F177: 3713 | G177: 2932 | H177: 2171
A178: 3 | B178: 3+ Children | D178: 9606 | E178: 7023 | F178: 5436 | G178: 4290 | H178: 3182
A179: 1 | B179: Rider Comp. Maternidad | D179: 0 | E179: 0 | F179: 225 | G179: 225 | H179: 225
A180: 1 | B180: Transplante de organos | D180: 0 | E180: 0 | F180: 0 | G180: 0 | H180: 0
A184: TARIFAS SEMESTRALES
A185: EDAD
D186: CW2 | E186: CW3 | F186: CW4 | G186: CW5 | H186: CW6
A187: 18 | B187: 18-24 | D187: =$G$2*D152 -> 6297.46 | E187: 4332.22 | F187: 3038.49 | G187: 2020.89 | H187: 1537.53
A188: 25 | B188: 25-29 | D188: 6608.57 | E188: 4791.2 | F188: 3363.91 | G188: 2238.72 | H188: 1705.01
A189: 30 | B189: 30-34 | D189: 6903.78 | E189: 5124.57 | F189: 3775.19 | G189: 2703.53 | H189: 2069.12
A190: 35 | B190: 35-39 | D190: 7726.34 | E190: 5735.13 | F190: 4229.4 | G190: 3034.78 | H190: 2315.04
A191: 40 | B191: 40-44 | D191: 8944.81 | E191: 6290.04 | F191: 4703.75 | G191: 3344.3 | H191: 2555.13
A192: 45 | B192: 45-49 | D192: 9995.8 | E192: 7030.45 | F192: 5255.48 | G192: 3739.68 | H192: 2857.76
A193: 50 | B193: 50-54 | D193: 13063.97 | E193: 9274.47 | F193: 6899.01 | G193: 5330.74 | H193: 4076.23
A194: 55 | B194: 55-59 | D194: 13894.48 | E194: 9861.71 | F194: 7340.5 | G194: 5672.59 | H194: 4339.11
A195: 60 | B195: 60 | D195: 15134.15 | E195: 10708.12 | F195: 8356.51 | G195: 6746.9 | H195: 5424.02
A196: 61 | B196: 61 | D196: 16259.34 | E196: 11504.18 | F196: 8975.02 | G196: 7250.93 | H196: 5824.7
A197: 62 | B197: 62 | D197: 17796.34 | E197: 12600.22 | F197: 9828.85 | G197: 7939.4 | H197: 6378.55
A198: 63 | B198: 63 | D198: 18924.18 | E198: 13394.16 | F198: 10449.48 | G198: 8443.96 | H198: 6779.76
A199: 64 | B199: 64 | D199: 20467.01 | E199: 14494.44 | F199: 11309.14 | G199: 9135.08 | H199: 7336.79
A200: 65 | B200: 65 | D200: 26758.64 | E200: 18899.27 | F200: 14294.63 | G200: 12178.34 | H200: 10340.83
A201: 66 | B201: 66 | D201: 31084.5 | E201: 21960.02 | F201: 16605.96 | G201: 14153.65 | H201: 12014.04
A202: 67 | B202: 67 | D202: 33948.62 | E202: 23984.62 | F202: 18138.72 | G202: 15452.68 | H202: 13125.45
A203: 68 | B203: 68 | D203: =$G$2*D168 -> 37588.66 | E203: 26555.12 | F203: 20087 | G203: 17113.7 | H203: 14531.01
A204: 69 | B204: 69 | D204: 41357.49 | E204: 29213.07 | F204: 22095.17 | G204: 18826.13 | H204: 15990.1
A205: 70 | B205: 70 | D205: 50896.96 | E205: 35570.95 | F205: 26010.28 | G205: 21940.41 | H205: 18803.34
A206: 71 | B206: 71 | D206: 52897.18 | E206: 36964.85 | F206: 27029.47 | G206: 22799.54 | H206: 19546.93
A207: 72 | B207: 72 | D207: 54397.08 | E207: 38012.13 | F207: 27795.85 | G207: 23445.08 | H207: 20097.07
A208: 73 | B208: 73 | D208: 56389.35 | E208: 39409.21 | F208: 28815.57 | G208: 24308.45 | H208: 20839.6
A209: 74 | B209: 74 | D209: 57388.93 | E209: 40106.69 | F209: 29327.02 | G209: 24739.87 | H209: 21206.89
A210: 75 | B210: 75+ | D210: 59887.88 | E210: 41852.51 | F210: 30603.79 | G210: 25816.3 | H210: 22125.38
A211: 1 | B211: 1 Child | D211: 2184.66 | E211: 1597.42 | F211: 1234.9 | G211: 978.91 | H211: 724.51
A212: 2 | B212: 2 Children | D212: 3470.44 | E212: 2540.82 | F212: 1967.89 | G212: 1553.96 | H212: 1150.63
A213: 3 | B213: 3+ Children | D213: 5091.18 | E213: 3722.19 | F213: 2881.08 | G213: 2273.7 | H213: 1686.46
A214: 1 | B214: Rider Comp. Maternidad | D214: =+D179*$G$2 -> 0 | E214: 0 | F214: 119.25 | G214: 119.25 | H214: 119.25
A215: 1 | B215: Transplante de organos | D215: 0 | E215: 0 | F215: 0 | G215: 0 | H215: 0
A220: COMPLETE (LATINAMERICA ONLY)
A221: TARIFAS ANUALES
A222: EDAD
... 335 more rows

Sheet 9 (hidden)
K1: D1 | L1: D2 | M1: D3 | N1: D4 | O1: D5 | P1: D6
B2: REGIÓN | C2: ='INGRESO DE DATOS'!W14 -> 2 | E2: FACTOR SEMESTRAL : | G2: 0.53 | I2: NEW BUSINESS DISCUOUNTS | K2: ='INGRESO DE DATOS'!O42 -> 1 | L2: ='INGRESO DE DATOS'!P42 -> 1 | M2: ='INGRESO DE DATOS'!Q42 -> 1 | N2: ='INGRESO DE DATOS'!R42 -> 1 | O2: ='INGRESO DE DATOS'!S42 -> 1 | P2: ='INGRESO DE DATOS'!T42 -> 1
A5: BUPA EXCLUSIVE CARE
A6: TARIFAS ANUALES
A7: EDAD
C8: DW1 | D8: DW2 | E8: DW3 | F8: DW4 | G8: DW5 | H8: DW6
A9: 18 | B9: 18-24 | D9: 29457 | E9: 19484 | F9: 13475 | G9: 8727 | H9: 6875
A10: 25 | B10: 25-29 | D10: 30896 | E10: 21519 | F10: 14921 | G10: 9677 | H10: 7611
A11: 30 | B11: 30-34 | D11: 32129 | E11: 23072 | F11: 16706 | G11: 11582 | H11: 9137
A12: 35 | B12: 35-39 | D12: 35980 | E12: 25832 | F12: 18714 | G12: 12968 | H12: 10231
A13: 40 | B13: 40-44 | D13: 41698 | E13: 28233 | F13: 20761 | G13: 14249 | H13: 11237
A14: 45 | B14: 45-49 | D14: 46619 | E14: 31585 | F14: 23188 | G14: 15922 | H14: 12550
A15: 50 | B15: 50-54 | D15: 59653 | E15: 41409 | F15: 30269 | G15: 22482 | H15: 17739
A16: 55 | B16: 55-59 | D16: 63460 | E16: 44065 | F16: 32197 | G16: 23932 | H16: 18887
A17: 60 | B17: 60 | D17: 69124 | E17: 48073 | F17: 37043 | G17: 28811 | H17: 23451
A18: 61 | B18: 61 | D18: 74266 | E18: 51662 | F18: 39766 | G18: 30975 | H18: 25188
A19: 62 | B19: 62 | D19: 81307 | E19: 56556 | F19: 43564 | G19: 33888 | H19: 27573
A20: 63 | B20: 63 | D20: 86443 | E20: 60136 | F20: 46299 | G20: 36052 | H20: 29316
A21: 64 | B21: 64 | D21: 93508 | E21: 65072 | F21: 50092 | G21: 38982 | H21: 31714
A22: 65 | B22: 65 | D22: 122213 | E22: 84857 | F22: 63324 | G22: 51976 | H22: 44718
A23: 66 | B23: 66 | D23: 141971 | E23: 98586 | F23: 73585 | G23: 60405 | H23: 51955
A24: 67 | B24: 67 | D24: 155088 | E24: 107682 | F24: 80362 | G24: 65963 | H24: 56730
A25: 68 | B25: 68 | D25: 171700 | E25: 119219 | F25: 88978 | G25: 73061 | H25: 62830
A26: 69 | B26: 69 | D26: 188937 | E26: 131179 | F26: 97890 | G26: 80373 | H26: 69127
A27: 70 | B27: 70 | D27: 232504 | E27: 159715 | F27: 115245 | G27: 93650 | H27: 81305
A28: 71 | B28: 71 | D28: 241631 | E28: 165992 | F28: 119760 | G28: 97332 | H28: 84488
A29: 72 | B29: 72 | D29: 248481 | E29: 170673 | F29: 123138 | G29: 100080 | H29: 86891
A30: 73 | B30: 73 | D30: 257605 | E30: 176951 | F30: 127672 | G30: 103768 | H30: 90083
A31: 74 | B31: 74 | D31: 262149 | E31: 180069 | F31: 129927 | G31: 105590 | H31: 91681
A32: 75 | B32: 75+ | D32: 273576 | E32: 187909 | F32: 135578 | G32: 110200 | H32: 95666
A33: 1 | B33: 1 Child | D33: 10227 | E33: 7528 | F33: 6000 | G33: 4600 | H33: 3599
A34: 2 | B34: 2 Children | D34: 16244 | E34: 11983 | F34: 9540 | G34: 7320 | H34: 5688
A35: 3 | B35: 3+ Children | D35: 23820 | E35: 17536 | F35: 13985 | G35: 10721 | H35: 8348
A36: 1 | B36: Rider Comp. Maternidad | D36: 0 | E36: 0 | F36: 225 | G36: 225 | H36: 225
A37: 1 | B37: Transplante de organos | D37: 0 | E37: 0 | F37: 0 | G37: 0 | H37: 0
A41: TARIFAS SEMESTRALES
A42: EDAD
D43: DW2 | E43: DW3 | F43: DW4 | G43: DW5 | H43: DW6
A44: 18 | B44: 18-24 | D44: =$G$2*D9 -> 15612.21 | E44: 10326.52 | F44: 7141.75 | G44: 4625.31 | H44: 3643.75
A45: 25 | B45: 25-29 | D45: 16374.88 | E45: 11405.07 | F45: 7908.13 | G45: 5128.81 | H45: 4033.83
A46: 30 | B46: 30-34 | D46: 17028.37 | E46: 12228.16 | F46: 8854.18 | G46: 6138.46 | H46: 4842.61
A47: 35 | B47: 35-39 | D47: 19069.4 | E47: 13690.96 | F47: 9918.42 | G47: 6873.04 | H47: 5422.43
A48: 40 | B48: 40-44 | D48: 22099.94 | E48: 14963.49 | F48: 11003.33 | G48: 7551.97 | H48: 5955.61
A49: 45 | B49: 45-49 | D49: 24708.07 | E49: 16740.05 | F49: 12289.64 | G49: 8438.66 | H49: 6651.5
A50: 50 | B50: 50-54 | D50: 31616.09 | E50: 21946.77 | F50: 16042.57 | G50: 11915.46 | H50: 9401.67
A51: 55 | B51: 55-59 | D51: 33633.8 | E51: 23354.45 | F51: 17064.41 | G51: 12683.96 | H51: 10010.11
A52: 60 | B52: 60 | D52: 36635.72 | E52: 25478.69 | F52: 19632.79 | G52: 15269.83 | H52: 12429.03
A53: 61 | B53: 61 | D53: 39360.98 | E53: 27380.86 | F53: 21075.98 | G53: 16416.75 | H53: 13349.64
A54: 62 | B54: 62 | D54: 43092.71 | E54: 29974.68 | F54: 23088.92 | G54: 17960.64 | H54: 14613.69
A55: 63 | B55: 63 | D55: 45814.79 | E55: 31872.08 | F55: 24538.47 | G55: 19107.56 | H55: 15537.48
A56: 64 | B56: 64 | D56: 49559.24 | E56: 34488.16 | F56: 26548.76 | G56: 20660.46 | H56: 16808.42
A57: 65 | B57: 65 | D57: 64772.89 | E57: 44974.21 | F57: 33561.72 | G57: 27547.28 | H57: 23700.54
A58: 66 | B58: 66 | D58: 75244.63 | E58: 52250.58 | F58: 39000.05 | G58: 32014.65 | H58: 27536.15
A59: 67 | B59: 67 | D59: 82196.64 | E59: 57071.46 | F59: 42591.86 | G59: 34960.39 | H59: 30066.9
A60: 68 | B60: 68 | D60: =$G$2*D25 -> 91001 | E60: 63186.07 | F60: 47158.34 | G60: 38722.33 | H60: 33299.9
A61: 69 | B61: 69 | D61: 100136.61 | E61: 69524.87 | F61: 51881.7 | G61: 42597.69 | H61: 36637.31
A62: 70 | B62: 70 | D62: 123227.12 | E62: 84648.95 | F62: 61079.85 | G62: 49634.5 | H62: 43091.65
A63: 71 | B63: 71 | D63: 128064.43 | E63: 87975.76 | F63: 63472.8 | G63: 51585.96 | H63: 44778.64
A64: 72 | B64: 72 | D64: 131694.93 | E64: 90456.69 | F64: 65263.14 | G64: 53042.4 | H64: 46052.23
A65: 73 | B65: 73 | D65: 136530.65 | E65: 93784.03 | F65: 67666.16 | G65: 54997.04 | H65: 47743.99
A66: 74 | B66: 74 | D66: 138938.97 | E66: 95436.57 | F66: 68861.31 | G66: 55962.7 | H66: 48590.93
A67: 75 | B67: 75+ | D67: 144995.28 | E67: 99591.77 | F67: 71856.34 | G67: 58406 | H67: 50702.98
A68: 1 | B68: 1 Child | D68: 5420.31 | E68: 3989.84 | F68: 3180 | G68: 2438 | H68: 1907.47
A69: 2 | B69: 2 Children | D69: 8609.32 | E69: 6350.99 | F69: 5056.2 | G69: 3879.6 | H69: 3014.64
A70: 3 | B70: 3+ Children | D70: 12624.6 | E70: 9294.08 | F70: 7412.05 | G70: 5682.13 | H70: 4424.44
A71: 1 | B71: Rider Comp. Maternidad | D71: =+D36*$G$2 -> 0 | E71: 0 | F71: 119.25 | G71: 119.25 | H71: 119.25
A72: 1 | B72: Transplante de organos | D72: 0 | E72: 0 | F72: 0 | G72: 0 | H72: 0
A78: DIAMOND (LATINAMERICA ONLY)
A79: TARIFAS ANUALES
A80: EDAD
C81: DL1 | D81: DL2 | E81: DL3 | F81: DL4 | G81: DL5 | H81: DL6
A82: 18 | B82: - 24
A83: 25 | B83: - 29
A84: 30 | B84: - 34
A85: 35 | B85: - 39
A86: 40 | B86: - 44
A87: 45 | B87: - 49
A88: 50 | B88: - 54
A89: 55 | B89: - 59
A90: 60
A91: 61
A92: 62
A93: 63
A94: 64
A95: 65
A96: 66
A97: 67
A98: 68
A99: 69
A100: 70
A101: 71
A102: 72
A103: 73
A104: 74
A105: 75 | B105: o más
A106: 1 | B106: Hijo
A107: 2 | B107: Hijos
A108: 3 | B108: Hijos o más
A109: 1 | B109: Rider Comp. Maternidad
A110: 1 | B110: Transplante de organos | C110: 0 | D110: 0 | E110: 0 | F110: 0 | G110: 0 | H110: 0
A112: TARIFAS SEMESTRALES
A113: EDAD
C114: DL1 | D114: DL2 | E114: DL3 | F114: DL4 | G114: DL5 | H114: DL6
A115: 18 | B115: - 24 | C115: =+C82*$G$2 -> 0 | D115: 0 | E115: 0 | F115: 0 | G115: 0 | H115: 0
A116: 25 | B116: - 29 | C116: 0 | D116: 0 | E116: 0 | F116: 0 | G116: 0 | H116: 0
A117: 30 | B117: - 34 | C117: 0 | D117: 0 | E117: 0 | F117: 0 | G117: 0 | H117: 0
A118: 35 | B118: - 39 | C118: 0 | D118: 0 | E118: 0 | F118: 0 | G118: 0 | H118: 0
A119: 40 | B119: - 44 | C119: 0 | D119: 0 | E119: 0 | F119: 0 | G119: 0 | H119: 0
A120: 45 | B120: - 49 | C120: 0 | D120: 0 | E120: 0 | F120: 0 | G120: 0 | H120: 0
A121: 50 | B121: - 54 | C121: 0 | D121: 0 | E121: 0 | F121: 0 | G121: 0 | H121: 0
A122: 55 | B122: - 59 | C122: 0 | D122: 0 | E122: 0 | F122: 0 | G122: 0 | H122: 0
A123: 60 | C123: 0 | D123: 0 | E123: 0 | F123: 0 | G123: 0 | H123: 0
A124: 61 | C124: 0 | D124: 0 | E124: 0 | F124: 0 | G124: 0 | H124: 0
A125: 62 | C125: 0 | D125: 0 | E125: 0 | F125: 0 | G125: 0 | H125: 0
A126: 63 | C126: 0 | D126: 0 | E126: 0 | F126: 0 | G126: 0 | H126: 0
A127: 64 | C127: 0 | D127: 0 | E127: 0 | F127: 0 | G127: 0 | H127: 0
A128: 65 | C128: 0 | D128: 0 | E128: 0 | F128: 0 | G128: 0 | H128: 0
A129: 66 | C129: 0 | D129: 0 | E129: 0 | F129: 0 | G129: 0 | H129: 0
A130: 67 | C130: 0 | D130: 0 | E130: 0 | F130: 0 | G130: 0 | H130: 0
A131: 68 | C131: =+C98*$G$2 -> 0 | D131: 0 | E131: 0 | F131: 0 | G131: 0 | H131: 0
A132: 69 | C132: 0 | D132: 0 | E132: 0 | F132: 0 | G132: 0 | H132: 0
A133: 70 | C133: 0 | D133: 0 | E133: 0 | F133: 0 | G133: 0 | H133: 0
A134: 71 | C134: 0 | D134: 0 | E134: 0 | F134: 0 | G134: 0 | H134: 0
A135: 72 | C135: 0 | D135: 0 | E135: 0 | F135: 0 | G135: 0 | H135: 0
A136: 73 | C136: 0 | D136: 0 | E136: 0 | F136: 0 | G136: 0 | H136: 0
A137: 74 | C137: 0 | D137: 0 | E137: 0 | F137: 0 | G137: 0 | H137: 0
A138: 75 | B138: o más | C138: 0 | D138: 0 | E138: 0 | F138: 0 | G138: 0 | H138: 0
A139: 1 | B139: Hijo | C139: 0 | D139: 0 | E139: 0 | F139: 0 | G139: 0 | H139: 0
A140: 2 | B140: Hijos | C140: 0 | D140: 0 | E140: 0 | F140: 0 | G140: 0 | H140: 0
A141: 3 | B141: Hijos o más | C141: 0 | D141: 0 | E141: 0 | F141: 0 | G141: 0 | H141: 0
A142: 1 | B142: Rider Comp. Maternidad | C142: 0 | D142: 0 | E142: 0 | F142: 0 | G142: 0 | H142: 0
A143: 1 | B143: Transplante de organos | C143: 0 | D143: 0 | E143: 0 | F143: 0 | G143: 0 | H143: 0
A148: BUPA PRIVILEGE CARE
A149: TARIFAS ANUALES
A150: EDAD
C151: CW1 | D151: CW2 | E151: CW3 | F151: CW4 | G151: CW5 | H151: CW6
A152: 18 | B152: 18-24 | D152: 24769 | E152: 17019 | F152: 11699 | G152: 7550 | H152: 5753
A153: 25 | B153: 25-29 | D153: 25992 | E153: 18831 | F153: 12963 | G153: 8366 | H153: 6384
A154: 30 | B154: 30-34 | D154: 27149 | E154: 20183 | F154: 14523 | G154: 10130 | H154: 7727
A155: 35 | B155: 35-39 | D155: 30401 | E155: 22587 | F155: 16276 | G155: 11350 | H155: 8663
A156: 40 | B156: 40-44 | D156: 35184 | E156: 24743 | F156: 18098 | G156: 12511 | H156: 9544
A157: 45 | B157: 45-49 | D157: 39303 | E157: 27649 | F157: 20244 | G157: 13972 | H157: 10682
A158: 50 | B158: 50-54 | D158: 51385 | E158: 36460 | F158: 26564 | G158: 19947 | H158: 15254
A159: 55 | B159: 55-59 | D159: 54667 | E159: 38794 | F159: 28267 | G159: 21225 | H159: 16233
A160: 60 | B160: 60 | D160: 59534 | E160: 42144 | F160: 32163 | G160: 25252 | H160: 20269
A161: 61 | B161: 61 | D161: 63955 | E161: 45259 | F161: 34549 | G161: 27122 | H161: 21776
A162: 62 | B162: 62 | D162: 70009 | E162: 49559 | F162: 37839 | G162: 29696 | H162: 23853
A163: 63 | B163: 63 | D163: 74449 | E163: 52689 | F163: 40220 | G163: 31576 | H163: 25350
A164: 64 | B164: 64 | D164: 80512 | E164: 56993 | F164: 43501 | G164: 34151 | H164: 27445
A165: 65 | B165: 65 | D165: 105245 | E165: 74342 | F165: 55008 | G165: 45530 | H165: 38676
A166: 66 | B166: 66 | D166: 122260 | E166: 86379 | F166: 63906 | G166: 52917 | H166: 44944
A167: 67 | B167: 67 | D167: 133548 | E167: 94346 | F167: 69796 | G167: 57791 | H167: 49076
A168: 68 | B168: 68 | D168: 147884 | E168: 104458 | F168: 77306 | G168: 64011 | H168: 54346
A169: 69 | B169: 69 | D169: 162685 | E169: 114921 | F169: 85039 | G169: 70412 | H169: 59799
A170: 70 | B170: 70 | D170: 200222 | E170: 139916 | F170: 100087 | G170: 82056 | H170: 70329
A171: 71 | B171: 71 | D171: 208068 | E171: 145408 | F171: 104031 | G171: 85268 | H171: 73092
A172: 72 | B172: 72 | D172: 213948 | E172: 149536 | F172: 106965 | G172: 87682 | H172: 75163
A173: 73 | B173: 73 | D173: 221841 | E173: 155022 | F173: 110903 | G173: 90896 | H173: 77927
A174: 74 | B174: 74 | D174: 225758 | E174: 157774 | F174: 112857 | G174: 92510 | H174: 79298
A175: 75 | B175: 75+ | D175: 235580 | E175: 164624 | F175: 117772 | G175: 96542 | H175: 82749
A176: 1 | B176: 1 Child | D176: 8602 | E176: 6286 | F176: 4750 | G176: 3647 | H176: 2696
A177: 2 | B177: 2 Children | D177: 13676 | E177: 10001 | F177: 7567 | G177: 5808 | H177: 4297
A178: 3 | B178: 3+ Children | D178: 20021 | E178: 14643 | F178: 11079 | G178: 8504 | H178: 6299
A179: 1 | B179: Rider Comp. Maternidad | D179: 0 | E179: 0 | F179: 225 | G179: 225 | H179: 225
A180: 1 | B180: Transplante de organos | D180: 0 | E180: 0 | F180: 0 | G180: 0 | H180: 0
A184: TARIFAS SEMESTRALES
A185: EDAD
D186: CW2 | E186: CW3 | F186: CW4 | G186: CW5 | H186: CW6
A187: 18 | B187: 18-24 | D187: =$G$2*D152 -> 13127.57 | E187: 9020.07 | F187: 6200.47 | G187: 4001.5 | H187: 3049.09
A188: 25 | B188: 25-29 | D188: 13775.76 | E188: 9980.43 | F188: 6870.39 | G188: 4433.98 | H188: 3383.52
A189: 30 | B189: 30-34 | D189: 14388.97 | E189: 10696.99 | F189: 7697.19 | G189: 5368.9 | H189: 4095.31
A190: 35 | B190: 35-39 | D190: 16112.53 | E190: 11971.11 | F190: 8626.28 | G190: 6015.5 | H190: 4591.39
A191: 40 | B191: 40-44 | D191: 18647.52 | E191: 13113.79 | F191: 9591.94 | G191: 6630.83 | H191: 5058.32
A192: 45 | B192: 45-49 | D192: 20830.59 | E192: 14653.97 | F192: 10729.32 | G192: 7405.16 | H192: 5661.46
A193: 50 | B193: 50-54 | D193: 27234.05 | E193: 19323.8 | F193: 14078.92 | G193: 10571.91 | H193: 8084.62
A194: 55 | B194: 55-59 | D194: 28973.51 | E194: 20560.82 | F194: 14981.51 | G194: 11249.25 | H194: 8603.49
A195: 60 | B195: 60 | D195: 31553.02 | E195: 22336.32 | F195: 17046.39 | G195: 13383.56 | H195: 10742.57
A196: 61 | B196: 61 | D196: 33896.15 | E196: 23987.27 | F196: 18310.97 | G196: 14374.66 | H196: 11541.28
A197: 62 | B197: 62 | D197: 37104.77 | E197: 26266.27 | F197: 20054.67 | G197: 15738.88 | H197: 12642.09
A198: 63 | B198: 63 | D198: 39457.97 | E198: 27925.17 | F198: 21316.6 | G198: 16735.28 | H198: 13435.5
A199: 64 | B199: 64 | D199: 42671.36 | E199: 30206.29 | F199: 23055.53 | G199: 18100.03 | H199: 14545.85
A200: 65 | B200: 65 | D200: 55779.85 | E200: 39401.26 | F200: 29154.24 | G200: 24130.9 | H200: 20498.28
A201: 66 | B201: 66 | D201: 64797.8 | E201: 45780.87 | F201: 33870.18 | G201: 28046.01 | H201: 23820.32
A202: 67 | B202: 67 | D202: 70780.44 | E202: 50003.38 | F202: 36991.88 | G202: 30629.23 | H202: 26010.28
A203: 68 | B203: 68 | D203: =$G$2*D168 -> 78378.52 | E203: 55362.74 | F203: 40972.18 | G203: 33925.83 | H203: 28803.38
A204: 69 | B204: 69 | D204: 86223.05 | E204: 60908.13 | F204: 45070.67 | G204: 37318.36 | H204: 31693.47
A205: 70 | B205: 70 | D205: 106117.66 | E205: 74155.48 | F205: 53046.11 | G205: 43489.68 | H205: 37274.37
A206: 71 | B206: 71 | D206: 110276.04 | E206: 77066.24 | F206: 55136.43 | G206: 45192.04 | H206: 38738.76
A207: 72 | B207: 72 | D207: 113392.44 | E207: 79254.08 | F207: 56691.45 | G207: 46471.46 | H207: 39836.39
A208: 73 | B208: 73 | D208: 117575.73 | E208: 82161.66 | F208: 58778.59 | G208: 48174.88 | H208: 41301.31
A209: 74 | B209: 74 | D209: 119651.74 | E209: 83620.22 | F209: 59814.21 | G209: 49030.3 | H209: 42027.94
A210: 75 | B210: 75+ | D210: 124857.4 | E210: 87250.72 | F210: 62419.16 | G210: 51167.26 | H210: 43856.97
A211: 1 | B211: 1 Child | D211: 4559.06 | E211: 3331.58 | F211: 2517.5 | G211: 1932.91 | H211: 1428.88
A212: 2 | B212: 2 Children | D212: 7248.28 | E212: 5300.53 | F212: 4010.51 | G212: 3078.24 | H212: 2277.41
A213: 3 | B213: 3+ Children | D213: 10611.13 | E213: 7760.79 | F213: 5871.87 | G213: 4507.12 | H213: 3338.47
A214: 1 | B214: Rider Comp. Maternidad | D214: =+D179*$G$2 -> 0 | E214: 0 | F214: 119.25 | G214: 119.25 | H214: 119.25
A215: 1 | B215: Transplante de organos | D215: 0 | E215: 0 | F215: 0 | G215: 0 | H215: 0
A220: COMPLETE (LATINAMERICA ONLY)
A221: TARIFAS ANUALES
A222: EDAD
... 335 more rows

Sheet PERU2020 (hidden)
K1: D1 | L1: D2 | M1: D3 | N1: D4 | O1: D5 | P1: D6
B2: REGIÓN | C2: ='INGRESO DE DATOS'!W14 -> 2 | E2: FACTOR SEMESTRAL : | G2: 0.53 | I2: NEW BUSINESS DISCUOUNTS | K2: ='INGRESO DE DATOS'!O42 -> 1 | L2: ='INGRESO DE DATOS'!P42 -> 1 | M2: ='INGRESO DE DATOS'!Q42 -> 1 | N2: ='INGRESO DE DATOS'!R42 -> 1 | O2: ='INGRESO DE DATOS'!S42 -> 1 | P2: ='INGRESO DE DATOS'!T42 -> 1
A5: BUPA EXCLUSIVE CARE
A6: TARIFAS ANUALES
A7: EDAD | K7: Usar tarifas de la Zona 4
C8: DW1 | D8: DW2 | E8: DW3 | F8: DW4 | G8: DW5 | H8: DW6
A9: 18 | B9: 18-24 | D9: 28532 | E9: 18852 | F9: 12359 | G9: 7834 | H9: 6166
A10: 25 | B10: 25-29 | D10: 29931 | E10: 20836 | F10: 13694 | G10: 8688 | H10: 6828
A11: 30 | B11: 30-34 | D11: 31134 | E11: 22343 | F11: 15329 | G11: 10416 | H11: 8213
A12: 35 | B12: 35-39 | D12: 34870 | E12: 25014 | F12: 17188 | G12: 11674 | H12: 9197
A13: 40 | B13: 40-44 | D13: 40442 | E13: 27363 | F13: 19080 | G13: 12839 | H13: 10112
A14: 45 | B14: 45-49 | D14: 45212 | E14: 30603 | F14: 21326 | G14: 14342 | H14: 11305
A15: 50 | B15: 50-54 | D15: 57852 | E15: 40154 | F15: 27826 | G15: 20276 | H15: 15982
A16: 55 | B16: 55-59 | D16: 61553 | E16: 42730 | F16: 29597 | G16: 21571 | H16: 17012
A17: 60 | B17: 60 | D17: 67054 | E17: 46613 | F17: 34071 | G17: 25984 | H17: 21138
A18: 61 | B18: 61 | D18: 72038 | E18: 50092 | F18: 36587 | G18: 27938 | H18: 22712
A19: 62 | B19: 62 | D19: 78870 | E19: 54861 | F19: 40078 | G19: 30572 | H19: 24870
A20: 63 | B20: 63 | D20: 83865 | E20: 58332 | F20: 42594 | G20: 32528 | H20: 26436
A21: 64 | B21: 64 | D21: 90713 | E21: 63114 | F21: 46101 | G21: 35176 | H21: 28623
A22: 65 | B22: 65 | D22: 118596 | E22: 82328 | F22: 58288 | G22: 46921 | H22: 40360
A23: 66 | B23: 66 | D23: 137776 | E23: 95666 | F23: 67725 | G23: 54547 | H23: 46892
A24: 67 | B24: 67 | D24: 150495 | E24: 104487 | F24: 73977 | G24: 59562 | H24: 51227
A25: 68 | B25: 68 | D25: 166643 | E25: 115685 | F25: 81918 | G25: 65966 | H25: 56721
A26: 69 | B26: 69 | D26: 183352 | E26: 127276 | F26: 90135 | G26: 72575 | H26: 62420
A27: 70 | B27: 70 | D27: 225646 | E27: 154989 | F27: 106104 | G27: 84562 | H27: 73427
A28: 71 | B28: 71 | D28: 234519 | E28: 161068 | F28: 110279 | G28: 87896 | H28: 76311
A29: 72 | B29: 72 | D29: 241162 | E29: 165630 | F29: 113379 | G29: 90384 | H29: 78471
A30: 73 | B30: 73 | D30: 250016 | E30: 171724 | F30: 117551 | G30: 93710 | H30: 81337
A31: 74 | B31: 74 | D31: 254444 | E31: 174761 | F31: 119655 | G31: 95368 | H31: 82794
A32: 75 | B32: 75+ | D32: 265520 | E32: 182362 | F32: 124841 | G32: 99520 | H32: 86411
A33: 1 | B33: 1 Child | D33: 9914 | E33: 7304 | F33: 5529 | G33: 4166 | H33: 3240
A34: 2 | B34: 2 Children | D34: 15768 | E34: 11633 | F34: 8798 | G34: 6611 | H34: 5157
A35: 3 | B35: 3+ Children | D35: 23123 | E35: 17037 | F35: 12880 | G35: 9689 | H35: 7545
A36: 1 | B36: Rider Comp. Maternidad | D36: 0 | E36: 0 | F36: 225 | G36: 225 | H36: 225
A37: 1 | B37: Transplante de organos | D37: 0 | E37: 0 | F37: 0 | G37: 0 | H37: 0
A41: TARIFAS SEMESTRALES
A42: EDAD
D43: DW2 | E43: DW3 | F43: DW4 | G43: DW5 | H43: DW6
A44: 18 | B44: 18-24 | D44: =$G$2*D9 -> 15121.96 | E44: 9991.56 | F44: 6550.27 | G44: 4152.02 | H44: 3267.98
A45: 25 | B45: 25-29 | D45: 15863.43 | E45: 11043.08 | F45: 7257.82 | G45: 4604.64 | H45: 3618.84
A46: 30 | B46: 30-34 | D46: 16501.02 | E46: 11841.79 | F46: 8124.37 | G46: 5520.48 | H46: 4352.89
A47: 35 | B47: 35-39 | D47: 18481.1 | E47: 13257.42 | F47: 9109.64 | G47: 6187.22 | H47: 4874.41
A48: 40 | B48: 40-44 | D48: 21434.26 | E48: 14502.39 | F48: 10112.4 | G48: 6804.67 | H48: 5359.36
A49: 45 | B49: 45-49 | D49: 23962.36 | E49: 16219.59 | F49: 11302.78 | G49: 7601.26 | H49: 5991.65
A50: 50 | B50: 50-54 | D50: 30661.56 | E50: 21281.62 | F50: 14747.78 | G50: 10746.28 | H50: 8470.46
A51: 55 | B51: 55-59 | D51: 32623.09 | E51: 22646.9 | F51: 15686.41 | G51: 11432.63 | H51: 9016.36
A52: 60 | B52: 60 | D52: 35538.62 | E52: 24704.89 | F52: 18057.63 | G52: 13771.52 | H52: 11203.14
A53: 61 | B53: 61 | D53: 38180.14 | E53: 26548.76 | F53: 19391.11 | G53: 14807.14 | H53: 12037.36
A54: 62 | B54: 62 | D54: 41801.1 | E54: 29076.33 | F54: 21241.34 | G54: 16203.16 | H54: 13181.1
A55: 63 | B55: 63 | D55: 44448.45 | E55: 30915.96 | F55: 22574.82 | G55: 17239.84 | H55: 14011.08
A56: 64 | B56: 64 | D56: 48077.89 | E56: 33450.42 | F56: 24433.53 | G56: 18643.28 | H56: 15170.19
A57: 65 | B57: 65 | D57: 62855.88 | E57: 43633.84 | F57: 30892.64 | G57: 24868.13 | H57: 21390.8
A58: 66 | B58: 66 | D58: 73021.28 | E58: 50702.98 | F58: 35894.25 | G58: 28909.91 | H58: 24852.76
A59: 67 | B59: 67 | D59: 79762.35 | E59: 55378.11 | F59: 39207.81 | G59: 31567.86 | H59: 27150.31
A60: 68 | B60: 68 | D60: =$G$2*D25 -> 88320.79 | E60: 61313.05 | F60: 43416.54 | G60: 34961.98 | H60: 30062.13
A61: 69 | B61: 69 | D61: 97176.56 | E61: 67456.28 | F61: 47771.55 | G61: 38464.75 | H61: 33082.6
A62: 70 | B62: 70 | D62: 119592.38 | E62: 82144.17 | F62: 56235.12 | G62: 44817.86 | H62: 38916.31
A63: 71 | B63: 71 | D63: 124295.07 | E63: 85366.04 | F63: 58447.87 | G63: 46584.88 | H63: 40444.83
A64: 72 | B64: 72 | D64: 127815.86 | E64: 87783.9 | F64: 60090.87 | G64: 47903.52 | H64: 41589.63
A65: 73 | B65: 73 | D65: 132508.48 | E65: 91013.72 | F65: 62302.03 | G65: 49666.3 | H65: 43108.61
A66: 74 | B66: 74 | D66: 134855.32 | E66: 92623.33 | F66: 63417.15 | G66: 50545.04 | H66: 43880.82
A67: 75 | B67: 75+ | D67: 140725.6 | E67: 96651.86 | F67: 66165.73 | G67: 52745.6 | H67: 45797.83
A68: 1 | B68: 1 Child | D68: 5254.42 | E68: 3871.12 | F68: 2930.37 | G68: 2207.98 | H68: 1717.2
A69: 2 | B69: 2 Children | D69: 8357.04 | E69: 6165.49 | F69: 4662.94 | G69: 3503.83 | H69: 2733.21
A70: 3 | B70: 3+ Children | D70: 12255.19 | E70: 9029.61 | F70: 6826.4 | G70: 5135.17 | H70: 3998.85
A71: 1 | B71: Rider Comp. Maternidad | D71: =+D36*$G$2 -> 0 | E71: 0 | F71: 119.25 | G71: 119.25 | H71: 119.25
A72: 1 | B72: Transplante de organos | D72: 0 | E72: 0 | F72: 0 | G72: 0 | H72: 0
A78: DIAMOND (LATINAMERICA ONLY)
A79: TARIFAS ANUALES
A80: EDAD
C81: DL1 | D81: DL2 | E81: DL3 | F81: DL4 | G81: DL5 | H81: DL6
A82: 18 | B82: - 24
A83: 25 | B83: - 29
A84: 30 | B84: - 34
A85: 35 | B85: - 39
A86: 40 | B86: - 44
A87: 45 | B87: - 49
A88: 50 | B88: - 54
A89: 55 | B89: - 59
A90: 60
A91: 61
A92: 62
A93: 63
A94: 64
A95: 65
A96: 66
A97: 67
A98: 68
A99: 69
A100: 70
A101: 71
A102: 72
A103: 73
A104: 74
A105: 75 | B105: o más
A106: 1 | B106: Hijo
A107: 2 | B107: Hijos
A108: 3 | B108: Hijos o más
A109: 1 | B109: Rider Comp. Maternidad
A110: 1 | B110: Transplante de organos | C110: 0 | D110: 0 | E110: 0 | F110: 0 | G110: 0 | H110: 0
A112: TARIFAS SEMESTRALES
A113: EDAD
C114: DL1 | D114: DL2 | E114: DL3 | F114: DL4 | G114: DL5 | H114: DL6
A115: 18 | B115: - 24 | C115: =+C82*$G$2 -> 0 | D115: 0 | E115: 0 | F115: 0 | G115: 0 | H115: 0
A116: 25 | B116: - 29 | C116: 0 | D116: 0 | E116: 0 | F116: 0 | G116: 0 | H116: 0
A117: 30 | B117: - 34 | C117: 0 | D117: 0 | E117: 0 | F117: 0 | G117: 0 | H117: 0
A118: 35 | B118: - 39 | C118: 0 | D118: 0 | E118: 0 | F118: 0 | G118: 0 | H118: 0
A119: 40 | B119: - 44 | C119: 0 | D119: 0 | E119: 0 | F119: 0 | G119: 0 | H119: 0
A120: 45 | B120: - 49 | C120: 0 | D120: 0 | E120: 0 | F120: 0 | G120: 0 | H120: 0
A121: 50 | B121: - 54 | C121: 0 | D121: 0 | E121: 0 | F121: 0 | G121: 0 | H121: 0
A122: 55 | B122: - 59 | C122: 0 | D122: 0 | E122: 0 | F122: 0 | G122: 0 | H122: 0
A123: 60 | C123: 0 | D123: 0 | E123: 0 | F123: 0 | G123: 0 | H123: 0
A124: 61 | C124: 0 | D124: 0 | E124: 0 | F124: 0 | G124: 0 | H124: 0
A125: 62 | C125: 0 | D125: 0 | E125: 0 | F125: 0 | G125: 0 | H125: 0
A126: 63 | C126: 0 | D126: 0 | E126: 0 | F126: 0 | G126: 0 | H126: 0
A127: 64 | C127: 0 | D127: 0 | E127: 0 | F127: 0 | G127: 0 | H127: 0
A128: 65 | C128: 0 | D128: 0 | E128: 0 | F128: 0 | G128: 0 | H128: 0
A129: 66 | C129: 0 | D129: 0 | E129: 0 | F129: 0 | G129: 0 | H129: 0
A130: 67 | C130: 0 | D130: 0 | E130: 0 | F130: 0 | G130: 0 | H130: 0
A131: 68 | C131: =+C98*$G$2 -> 0 | D131: 0 | E131: 0 | F131: 0 | G131: 0 | H131: 0
A132: 69 | C132: 0 | D132: 0 | E132: 0 | F132: 0 | G132: 0 | H132: 0
A133: 70 | C133: 0 | D133: 0 | E133: 0 | F133: 0 | G133: 0 | H133: 0
A134: 71 | C134: 0 | D134: 0 | E134: 0 | F134: 0 | G134: 0 | H134: 0
A135: 72 | C135: 0 | D135: 0 | E135: 0 | F135: 0 | G135: 0 | H135: 0
A136: 73 | C136: 0 | D136: 0 | E136: 0 | F136: 0 | G136: 0 | H136: 0
A137: 74 | C137: 0 | D137: 0 | E137: 0 | F137: 0 | G137: 0 | H137: 0
A138: 75 | B138: o más | C138: 0 | D138: 0 | E138: 0 | F138: 0 | G138: 0 | H138: 0
A139: 1 | B139: Hijo | C139: 0 | D139: 0 | E139: 0 | F139: 0 | G139: 0 | H139: 0
A140: 2 | B140: Hijos | C140: 0 | D140: 0 | E140: 0 | F140: 0 | G140: 0 | H140: 0
A141: 3 | B141: Hijos o más | C141: 0 | D141: 0 | E141: 0 | F141: 0 | G141: 0 | H141: 0
A142: 1 | B142: Rider Comp. Maternidad | C142: 0 | D142: 0 | E142: 0 | F142: 0 | G142: 0 | H142: 0
A143: 1 | B143: Transplante de organos | C143: 0 | D143: 0 | E143: 0 | F143: 0 | G143: 0 | H143: 0
A148: BUPA PRIVILEGE CARE
A149: TARIFAS ANUALES
A150: EDAD
C151: CW1 | D151: CW2 | E151: CW3 | F151: CW4 | G151: CW5 | H151: CW6
A152: 18 | B152: 18-24 | D152: 24002 | E152: 16499 | F152: 10744 | G152: 6815 | H152: 5183
A153: 25 | B153: 25-29 | D153: 25174 | E153: 18254 | F153: 11897 | G153: 7544 | H153: 5742
A154: 30 | B154: 30-34 | D154: 26301 | E154: 19523 | F154: 13354 | G154: 9115 | H154: 6974
A155: 35 | B155: 35-39 | D155: 29441 | E155: 21855 | F155: 14966 | G155: 10225 | H155: 7807
A156: 40 | B156: 40-44 | D156: 34086 | E156: 23970 | F156: 16636 | G156: 11276 | H156: 8619
A157: 45 | B157: 45-49 | D157: 38081 | E157: 26783 | F157: 18585 | G157: 12604 | H157: 9625
A158: 50 | B158: 50-54 | D158: 49774 | E158: 35328 | F158: 24404 | G158: 17969 | H158: 13742
A159: 55 | B159: 55-59 | D159: 52947 | E159: 37581 | F159: 25967 | G159: 19128 | H159: 14621
A160: 60 | B160: 60 | D160: 57660 | E160: 40802 | F160: 29554 | G160: 22743 | H160: 18284
A161: 61 | B161: 61 | D161: 61947 | E161: 43830 | F161: 31749 | G161: 24445 | H161: 19636
A162: 62 | B162: 62 | D162: 67808 | E162: 48008 | F162: 34766 | G162: 26765 | H162: 21501
A163: 63 | B163: 63 | D163: 72108 | E163: 51038 | F163: 36960 | G163: 28472 | H163: 22856
A164: 64 | B164: 64 | D164: 77986 | E164: 55224 | F164: 39990 | G164: 30797 | H164: 24733
A165: 65 | B165: 65 | D165: 101964 | E165: 72016 | F165: 50555 | G165: 41059 | H165: 34868
A166: 66 | B166: 66 | D166: 118442 | E166: 83679 | F166: 58742 | G166: 47719 | H166: 40511
A167: 67 | B167: 67 | D167: 129354 | E167: 91390 | F167: 64158 | G167: 52098 | H167: 44250
A168: 68 | B168: 68 | D168: 143236 | E168: 101182 | F168: 71050 | G168: 57698 | H168: 48998
A169: 69 | B169: 69 | D169: 157586 | E169: 111318 | F169: 78154 | G169: 63473 | H169: 53915
A170: 70 | B170: 70 | D170: 193942 | E170: 135550 | F170: 92003 | G170: 73981 | H170: 63398
A171: 71 | B171: 71 | D171: 201558 | E171: 140852 | F171: 95601 | G171: 76876 | H171: 65902
A172: 72 | B172: 72 | D172: 207273 | E172: 144837 | F172: 98321 | G172: 79053 | H172: 67760
A173: 73 | B173: 73 | D173: 214872 | E173: 150170 | F173: 101925 | G173: 81960 | H173: 70270
A174: 74 | B174: 74 | D174: 218676 | E174: 152818 | F174: 103730 | G174: 83422 | H174: 71495
A175: 75 | B175: 75+ | D175: 228200 | E175: 159476 | F175: 108242 | G175: 87045 | H175: 74607
A176: 1 | B176: 1 Child | D176: 8320 | E176: 6071 | F176: 4365 | G176: 3290 | H176: 2441
A177: 2 | B177: 2 Children | D177: 13223 | E177: 9676 | F177: 6958 | G177: 5238 | H177: 3877
A178: 3 | B178: 3+ Children | D178: 19395 | E178: 14174 | F178: 10186 | G178: 7674 | H178: 5683
A179: 1 | B179: Rider Comp. Maternidad | D179: 0 | E179: 0 | F179: 225 | G179: 225 | H179: 225
A180: 1 | B180: Transplante de organos | D180: 0 | E180: 0 | F180: 0 | G180: 0 | H180: 0
A184: TARIFAS SEMESTRALES
A185: EDAD
D186: CW2 | E186: CW3 | F186: CW4 | G186: CW5 | H186: CW6
A187: 18 | B187: 18-24 | D187: =$G$2*D152 -> 12721.06 | E187: 8744.47 | F187: 5694.32 | G187: 3611.95 | H187: 2746.99
A188: 25 | B188: 25-29 | D188: 13342.22 | E188: 9674.62 | F188: 6305.41 | G188: 3998.32 | H188: 3043.26
A189: 30 | B189: 30-34 | D189: 13939.53 | E189: 10347.19 | F189: 7077.62 | G189: 4830.95 | H189: 3696.22
A190: 35 | B190: 35-39 | D190: 15603.73 | E190: 11583.15 | F190: 7931.98 | G190: 5419.25 | H190: 4137.71
A191: 40 | B191: 40-44 | D191: 18065.58 | E191: 12704.1 | F191: 8817.08 | G191: 5976.28 | H191: 4568.07
A192: 45 | B192: 45-49 | D192: 20182.93 | E192: 14194.99 | F192: 9850.05 | G192: 6680.12 | H192: 5101.25
A193: 50 | B193: 50-54 | D193: 26380.22 | E193: 18723.84 | F193: 12934.12 | G193: 9523.57 | H193: 7283.26
A194: 55 | B194: 55-59 | D194: 28061.91 | E194: 19917.93 | F194: 13762.51 | G194: 10137.84 | H194: 7749.13
A195: 60 | B195: 60 | D195: 30559.8 | E195: 21625.06 | F195: 15663.62 | G195: 12053.79 | H195: 9690.52
A196: 61 | B196: 61 | D196: 32831.91 | E196: 23229.9 | F196: 16826.97 | G196: 12955.85 | H196: 10407.08
A197: 62 | B197: 62 | D197: 35938.24 | E197: 25444.24 | F197: 18425.98 | G197: 14185.45 | H197: 11395.53
A198: 63 | B198: 63 | D198: 38217.24 | E198: 27050.14 | F198: 19588.8 | G198: 15090.16 | H198: 12113.68
A199: 64 | B199: 64 | D199: 41332.58 | E199: 29268.72 | F199: 21194.7 | G199: 16322.41 | H199: 13108.49
A200: 65 | B200: 65 | D200: 54040.92 | E200: 38168.48 | F200: 26794.15 | G200: 21761.27 | H200: 18480.04
A201: 66 | B201: 66 | D201: 62774.26 | E201: 44349.87 | F201: 31133.26 | G201: 25291.07 | H201: 21470.83
A202: 67 | B202: 67 | D202: 68557.62 | E202: 48436.7 | F202: 34003.74 | G202: 27611.94 | H202: 23452.5
A203: 68 | B203: 68 | D203: =$G$2*D168 -> 75915.08 | E203: 53626.46 | F203: 37656.5 | G203: 30579.94 | H203: 25968.94
A204: 69 | B204: 69 | D204: 83520.58 | E204: 58998.54 | F204: 41421.62 | G204: 33640.69 | H204: 28574.95
A205: 70 | B205: 70 | D205: 102789.26 | E205: 71841.5 | F205: 48761.59 | G205: 39209.93 | H205: 33600.94
A206: 71 | B206: 71 | D206: 106825.74 | E206: 74651.56 | F206: 50668.53 | G206: 40744.28 | H206: 34928.06
A207: 72 | B207: 72 | D207: 109854.69 | E207: 76763.61 | F207: 52110.13 | G207: 41898.09 | H207: 35912.8
A208: 73 | B208: 73 | D208: 113882.16 | E208: 79590.1 | F208: 54020.25 | G208: 43438.8 | H208: 37243.1
A209: 74 | B209: 74 | D209: 115898.28 | E209: 80993.54 | F209: 54976.9 | G209: 44213.66 | H209: 37892.35
A210: 75 | B210: 75+ | D210: 120946 | E210: 84522.28 | F210: 57368.26 | G210: 46133.85 | H210: 39541.71
A211: 1 | B211: 1 Child | D211: 4409.6 | E211: 3217.63 | F211: 2313.45 | G211: 1743.7 | H211: 1293.73
A212: 2 | B212: 2 Children | D212: 7008.19 | E212: 5128.28 | F212: 3687.74 | G212: 2776.14 | H212: 2054.81
A213: 3 | B213: 3+ Children | D213: 10279.35 | E213: 7512.22 | F213: 5398.58 | G213: 4067.22 | H213: 3011.99
A214: 1 | B214: Rider Comp. Maternidad | D214: =+D179*$G$2 -> 0 | E214: 0 | F214: 119.25 | G214: 119.25 | H214: 119.25
A215: 1 | B215: Transplante de organos | D215: 0 | E215: 0 | F215: 0 | G215: 0 | H215: 0
A220: COMPLETE (LATINAMERICA ONLY)
A221: TARIFAS ANUALES
A222: EDAD
... 335 more rows
